Workbook

Sheet Instructions
A1: Version: Juillet 2022
B3: Ce manuel de l'Outil opérationnel de surveillance et de partage d'informations (SIS OT) doit être utilisé conjointement avec le guide SIS OT disponible à l'adresse suivante: https://www.fao.org/documents/card/en/c/cc0716en
B6: Outil opérationnel de surveillance et de partage d'informations
B8: MANUEL SIS OT
B10: Le manuel SIS OT est le principal instrument de l'Outil opérationnel de surveillance et de partage d'informations (SIS OT). Le SIS OT aide les autorités nationales à mettre en place ou à renforcer un système de surveillance et de partage d'informations (SIS) coordonné et multisectoriel «Une seule santé» sur les zoonoses. Le SIS OT a été développé dans le cadre d'un effort tripartite conjoint (FAO, OMS et OMSA) visant à mettre en place des outils pratiques aidant les pays à appliquer les orientations du Guide tripartite pour la gestion des zoonoses (GTZ) et à renforcer les approches «Une seule santé» pour lutter contre celles-ci. Le manuel SIS OT guide les utilisateurs à travers une évaluation étape par étape du degré de développement de la surveillance et du partage d'informations coordonnés dans un pays, par la définition de cinq jalons visant à renforcer la capacité de surveillance coordonnée des zoonoses, regroupés en trois sections: Section 1: Planification préalable; Section 2: Évaluation; Planification; et Mise en œuvre; Section 3: Suivi et évaluation. Ces sections contiennent un total de 32 activités uniques destinées au développement du SIS, regroupées en 14 catégories. Une fois l'évaluation de toutes les étapes terminée, le manuel SIS OT oriente les utilisateurs à travers le processus de planification visant à identifier les activités qui permettront de mettre en place ou de renforcer la surveillance et le partage d'informations au niveau national pour les zoonoses, une liste de ressources et d'outils suggérés pour réaliser chaque étape, et l'élaboration d'une feuille de route pour la mise en œuvre de ces activités.
B35: Instructions
B36: Les utilisateurs sont vivement encouragés à lire le guide SIS OT et les présentes instructions avant d'utiliser le manuel SIS OT. Évaluation • Après avoir lu ces instructions, ouvrez la page «Organigramme» en utilisant le menu de navigation de gauche ou en cliquant sur le bouton «Suivant: Organigramme» situé en haut ou en bas à droite. Cette page offre un aperçu de la procédure d'évaluation et permet d'accéder rapidement aux différentes étapes du processus SIS OT dans le manuel. L'évaluation peut se faire de manière linéaire, en suivant l'ordre des catégories à l'intérieur de chaque section à l'aide des boutons «Suivant» qui se trouvent au bas de la page, ou dans l'ordre souhaité par l'utilisateur en accédant directement aux catégories ciblées à travers l'«Organigramme». • Commencez l'évaluation depuis la Section 1: Étape «Planification préalable» en cliquant sur le bouton «Section I». - Réalisez le processus d'évaluation de la même manière pour le Niveau 2 et le Niveau 3. Veuillez noter que certaines activités n'ont qu'un ou deux niveaux de capacité, par exemple uniquement le Niveau 1, ou seulement les Niveaux 1 et 3. - Le champ Commentaires peut être utilisé pour saisir d'importants sujets de discussion afin de s'y référer ultérieurement. - Une fois terminées toutes les activités de la catégorie, cliquez sur le bouton «Suivant» ou naviguez à travers l'organigramme pour passer à la catégorie suivante. - Une fois terminées toutes les catégories de la section, cliquez sur le bouton «Suivant» ou naviguez à travers l'organigramme pour accéder à la section suivante et répétez la procédure. Le bouton «Retour» permet aux utilisateurs de revenir à la catégorie précédente. - Une fois les trois sections terminées, revenez à l'Organigramme pour réviser les évaluations, si nécessaire. Révision des résultats de l'évaluation - Une fois l'évaluation terminée, passez aux «Résultats de l'évaluation» en utilisant le menu de navigation de gauche ou en cliquant sur le bouton «Suivant: Résultats de l'évaluation» dans la page de la dernière catégorie «Normes de qualité des données», ou naviguez à travers l'Organigramme. • Révisez les «Résultats de l'évaluation». Cette page présente le prochain niveau de capacité (Niveau 1, Niveau 2 ou Niveau 3) des 32 activités évaluées comme étant le «niveau de capacité cible» que le pays doit ensuite atteindre. Par exemple, si pour une activité déterminée, le Niveau 1 de capacité a été atteint, la cible sera le «Niveau 2». Une activité est considérée comme étant pleinement exécutée et conforme lorsqu'un pays a atteint le Niveau 3. • Si le résultat affiché pour le niveau de capacité cible est «N/A», l'évaluation de cette activité particulière n'est pas terminée. Dans ce cas, retournez à la page d'évaluation de cette activité en cliquant sur le bouton correspondant à droite, à côté de la colonne Guide des ressources. Sélection des outils et des ressources pour favoriser la mise en œuvre des activités • Commencez par vous rendre sur la page «Enquête par attributs» en utilisant le menu de navigation de l'outil. - Donnez une valeur en points (entre 0 et 100) à chacun des neuf attributs utilisés pour décrire les outils et les ressources dans la case correspondante, située à droite de la description de chaque attribut. Saisissez les valeurs de manière à obtenir un total de 100 points répartis entre les neuf attributs, ainsi pondérés en fonction de leur importance relative dans la sélection des ressources selon l'utilisateur. • Une fois l'enquête par attributs terminée, accédez à la page «Résultats de l'évaluation» du manuel SIS OT en utilisant le bouton «Résultats de l'évaluation» du menu de navigation ou en cliquant sur le bouton «Suivant: Résultats de l'évaluation» situé au bas de la page. - Les flèches situées à côté de chaque activité dans les résultats de l'évaluation indiquent des liens vers les «pages de ressources» contenant la liste des ressources et des outils recommandés disponibles pour faciliter la progression vers le niveau de capacité cible de cette activité. Pour chaque activité, la page des ressources est accessible via le lien correspondant. - Les pages de ressources contiennent la liste des ressources pour chaque activité, regroupées en fonction de leur objectif. Les «ressources les mieux adaptées» sont celles dont l'objet ou la fonction principale est d'aider directement l'utilisateur à terminer l'activité définie, tandis que les «autres ressources intéressantes» sont celles qui l'aident partiellement ou indirectement à le faire. - Pour chacune des ressources répertoriées, les pages de ressources fournissent une brève description, des informations sur le type et sur le champ d'application de la ressource, en précisant par exemple si celle-ci est spécifique du secteur ou correspond à l'approche «Une seule santé», et encore si elle est spécifique d'une maladie, ou généralisée à toutes les zoonoses ou maladies infectieuses. - La page présente également les scores d'évaluation de chacun des outils par l'équipe de développement de SIS OT, qui servent à faciliter la sélection. Les scores bruts obtenus dans le cadre du processus de révision de l'outil, ainsi que les scores pondérés basés sur les valeurs accordées par les utilisateurs à chacun des neuf attributs, servent à faciliter la sélection. - Le bouton «Accéder à la boîte à outils»permet d'obtenir des informations plus détaillées sur la ressource dans la boîte à outils. - Sélectionnez une ou deux ressources qui pourraient vous aider à mener à bien chaque activité, sur la base des informations présentées pour chaque ressource. • Accédez à la page «Sélection des ressources» via le menu de navigation. Enregistrez les ressources sélectionnées dans la colonne «Ressource 1» en utilisant la liste déroulante pour chaque activité. Le cas échéant, pour enregistrer une seconde ressource sélectionnée en option, utilisez la colonne «Ressource 2». Priorisation et feuille de route • Accédez à la page «Priorisation et feuille de route» via le menu de navigation. - Pour chacune des activités cibles, sélectionnez dans la liste déroulante un délai de mise en œuvre et une priorité (par exemple, «à entreprendre maintenant - dans un an» - priorité élevée; «à commencer dans 2 ou 3 ans» - priorité moyenne; «à commencer dans plus de 3 ans» - priorité faible). Si l'activité est considérée comme étant terminée, sélectionnez «terminé» dans la liste déroulante et ne la prenez pas en compte dans les discussions. - Déterminez et convenez d'un calendrier (par exemple, trois ans ou cinq ans) pour le plan de développement du SIS. - Sélectionnez les activités à entreprendre dans le cadre de ce plan de développement du SIS en fonction de leur délai de mise en œuvre et de leur priorité et en tenant compte du calendrier convenu (par exemple, pour un plan sur trois ans, il est possible de sélectionner des activités à priorité élevée et moyenne). - Pour les activités qu'il a été décidé de ne pas entreprendre, sélectionnez «ne pas entreprendre pour ce plan» dans la liste déroulante. - Modifiez le diagramme de Gantt en fonction du calendrier du plan de développement sélectionné (par exemple, cinq ans à partir du premier trimestre de l'année 2020). - Pour chaque activité cible sélectionnée dans le cadre du plan de développement du SIS, déterminez le calendrier de mise en œuvre, en précisant à la fois la durée de l'activité (par exemple, un trimestre, deux trimestres ou jusqu'à la fin de la période de planification) et le moment de son démarrage (par exemple, le premier trimestre de l'année 1), sur la base du calendrier et de la priorité de mise en œuvre précédemment sélectionnés. Indiquez ce calendrier sur le diagramme de Gantt en utilisant des couleurs et en vous servant des listes déroulantes des colonnes «Trimestre de démarrage de l'activité» et «Durée de l'activité». Plan de développement • Accédez à la page «Plan de développement» via le menu de navigation. Les éléments suivants, qui sont décrits ci-dessus et proviennent des sélections effectuées dans les pages précédentes, apparaissent automatiquement dans le tableau du plan de développement: - Activité et niveau de capacité cible - Ressources et outils sélectionnés - Moment de démarrage de l'activité - Durée de l'activité Remplissez les autres colonnes de chaque activité, notamment la liste des actions nécessaires pour mener celle-ci à bien, les rôles et les responsabilités associés à la mise en œuvre de ces actions, les défis à relever, les points de contact et les indicateurs nécessaires au suivi et à la démonstration des résultats accomplis, ainsi qu'à la promotion des ressources et des soutiens nécessaires. Révisez et ajustez au besoin tous les éléments provenant de différentes feuilles de travail.
B135: ©Organisation mondiale de la santé (OMS), Organisation des Nations Unies pour l'alimentation et l'agriculture (FAO) et Organisation mondiale de la santé animale (OMSA), 2022. Tous droits réservés.

Sheet Map
B3: Outil opérationnel de surveillance et de partage d'informations
B6: MANUEL SIS OT: ORGANIGRAMME

Sheet Attribute Survey
B2: Enquête par attributs
B6: Vous avez correctement répondu aux trois sections ! Avant de passer aux résultats, déterminez pour chaque ressource les attributs qui vous semblent les plus importants en fonction de votre utilisation. Cette étape vous permet de donner des valeurs en points pondérés aux neuf attributs utilisés pour évaluer les ressources dans le SIS OT. Les valeurs en points que vous donnez doivent refléter l'importance relative que vous accordez à la sélection de ces ressources. Elles sont utilisées pour calculer un score global ajusté spécifique de l'utilisateur pour chaque ressource, sur la base des scores d'évaluation donnés par l'équipe des évaluateurs du SIS OT. Les scores pondérés peuvent vous aider à mieux identifier les ressources qui répondent à vos préférences.
B14: Donnez des valeurs en points (de 1 à 100) à chacun des attributs décrits ci-dessous, la somme de tous les attributs devant être égale à 100.
C18: ATTRIBUT | H18: DESCRIPTION DE L'ATTRIBUT | S18: VALEUR EN POINTS (Entre 1 et 100, le total s'élevant à 100) | V18: ←Doit être compris entre 1 et 100, et la somme de tous les attributs doit faire 100 !
C22: Accessibilité | H22: La logistique d'accès et d'utilisation de l'outil, notamment son ouverture ou son accessibilité, son coût et l'assistance portée aux utilisateurs
C26: Langue | H26: La disponibilité de la ressource et sa facilité de traduction dans différentes langues
C30: Facilité d'utilisation | H30: Le niveau de complexité et de difficulté à naviguer et à comprendre la ressource, ainsi que les compétences techniques ou opérationnelles nécessaires pour utiliser l'outil
C34: Flexibilité | H34: La capacité d'adaptation de l'outil à son utilisation dans différents contextes et scénarios
C38: Besoins de données | H38: Les besoins en matière de systèmes et de dispositifs à satisfaire pour que la ressource fonctionne, ainsi que pour assurer le stockage et la sécurité des données
C42: Analyse des données | H42: La manière dont la ressource traite et vérifie la qualité des données, y compris les performances de l'outil et sa capacité à établir des rapports
C46: Acceptabilité | H46: Mesures de l'acceptation de l'utilisation de la ressource, sur la base des publications, des rapports et/ou du nombre de projets pilotes et de réalisations
C50: «Une seule santé» | H50: La capacité de la ressource à faciliter la communication et la collaboration entre les différents secteurs de l'approche «Une seule santé» (santé humaine, santé animale, santé environnementale et partenaires concernés)
C54: Impact | H54: Preuve que la ressource a permis d'améliorer l'approche «Une seule santé» et les capacités de suivi, sur la base d'indicateurs de suivi et d'évaluation ou d'exemples passés
C58: TOTAL | S58: =SUM(S22:T56) -> 0

Sheet Results
B2: RÉSULTATS DE L'ÉVALUATION
B6: ÉTAPE | G6: ACTIVITÉ | K6: Description de l'activité | T6: Niveau de capacité cible | X6: Indicateur de niveau | Y6: Guide des ressources
B9: Planification préalable | G9: =""&Activities!B2 -> PP-1 Identification préliminaire des parties prenantes | K9: =IF('Focal Points'!O44=0,AE9,IF(AND('Focal Points'!O44=1,'Focal Points'!X44=0),AE10,IF(AND('Focal Points'!X44=1,'Focal Points'!AG44=0),AE11,"Complete"))) -> Des coordonnateurs, des «champions» ou des groupes de travail techniques ont été identifiés dans tous les secteurs participants au niveau national pour planifier la mise en œuvre de la surveillance coordonnée. | T9: =IF('Focal Points'!O44="","N/A",IF(AND('Focal Points'!O44=0),"1",IF(AND('Focal Points'!O44=1,'Focal Points'!X44=0),"2",IF(AND('Focal Points'!X44=1,'Focal Points'!AG44=0),"3","Complete")))) -> N/A | X9: → | Y9: Cliquez pour voir les ressources de Niveau 1 | AE9: =Activities!C2 -> Des coordonnateurs, des «champions» ou des groupes de travail techniques ont été identifiés dans tous les secteurs participants au niveau national pour planifier la mise en œuvre de la surveillance coordonnée.
X10: → | Y10: Aucune ressource de Niveau 2 (voir Niveau 1) | AE10: =Activities!C3 -> Des coordonnateurs, des «champions» ou des groupes de travail techniques ont été identifiés dans tous les secteurs participants et à tous les niveaux du pays pour planifier la mise en œuvre de la surveillance coordonnée.
X11: → | Y11: Cliquez pour voir les ressources de Niveau 3 | AE11: =Activities!C4 -> Des coordonnateurs, des «champions» ou des groupes de travail techniques (y compris des coordonnateurs ou des «champions» identifiés) chargés de la surveillance coordonnée ont été institutionnalisés (par exemple, par le biais d'un organe directeur tel qu'un MCM)
G13: =""&Activities!B5 -> PP-2 Priorisation | K13: =IF(Prioritization!O44=0,AE13,IF(AND(Prioritization!O44=1,Prioritization!X44=0),AE14,IF(AND(Prioritization!X44=1,Prioritization!AG44=0),AE15,"Complete"))) -> Il existe une liste de zoonoses priorisées à intégrer dans un système de surveillance coordonné | T13: =IF(Prioritization!O44="","N/A",IF(AND(Prioritization!O44=0),"1",IF(AND(Prioritization!O44=1,Prioritization!X44=0),"2",IF(AND(Prioritization!X44=1,Prioritization!AG44=0),"3","Complete")))) -> N/A | X13: → | Y13: Cliquez pour voir les ressources de Niveau 1 | AE13: =Activities!C5 -> Il existe une liste de zoonoses priorisées à intégrer dans un système de surveillance coordonné
X14: → | Y14: Aucune ressource de Niveau 2 (voir Niveau 1) | AE14: =Activities!C6 -> Une liste des zoonoses est largement diffusée aux niveaux infranational et communautaire
X15: → | Y15: Aucune ressource de Niveau 3 (voir Niveau 1) | AE15: =Activities!C7 -> Une liste des zoonoses est établie en utilisant une approche multisectorielle «Une seule santé». Une telle approche impliquerait tous les secteurs concernés dans un processus de priorisation fondé sur des preuves, transparent et reproductible
G17: =""&Activities!B8 -> PP-3 Établissement des objectifs | K17: =IF('Goal Setting'!O44=0,AE17,IF(AND('Goal Setting'!O44=1,'Goal Setting'!X44=0),AE18,IF(AND('Goal Setting'!X44=1,'Goal Setting'!AG44=0),AE19,"Complete"))) -> Les objectifs, les rôles et les responsabilités de tous les secteurs participant au système de surveillance coordonné sont accordés au niveau national | T17: =IF('Goal Setting'!O44="","N/A",IF(AND('Goal Setting'!O44=0),"1",IF(AND('Goal Setting'!O44=1,'Goal Setting'!X44=0),"2",IF(AND('Goal Setting'!X44=1,'Goal Setting'!AG44=0),"3","Complete")))) -> N/A | X17: → | Y17: Cliquez pour voir les ressources de Niveau 1 | AE17: =Activities!C8 -> Les objectifs, les rôles et les responsabilités de tous les secteurs participant au système de surveillance coordonné sont accordés au niveau national
X18: → | Y18: Cliquez pour voir les ressources de Niveau 2 | AE18: =Activities!C9 -> Les objectifs, les rôles et les responsabilités de tous les secteurs participant au système de surveillance coordonné sont accordés et étendus à tous les niveaux du pays
X19: → | Y19: Cliquez pour voir les ressources de Niveau 3 | AE19: =Activities!C10 -> Les objectifs, les rôles et les responsabilités du système de surveillance coordonné ont été réévalués pour refléter les besoins réels du système de surveillance coordonné
B21: Évaluation | G21: =""&Activities!G2 -> E-1 Cartographie des parties prenantes | K21: =IF(Stakeholders!O44=0,AE21,IF(AND(Stakeholders!O44=1,Stakeholders!X44=0),AE22,IF(AND(Stakeholders!X44=1,Stakeholders!AG44=0),AE23,"Complete"))) -> Des parties prenantes travaillant dans les domaines de la surveillance, de l'épidémiologie, des laboratoires et du partage d'informations ont été identifiées | T21: =IF(Stakeholders!O44="","N/A",IF(AND(Stakeholders!O44=0),"1",IF(AND(Stakeholders!O44=1,Stakeholders!X44=0),"2",IF(AND(Stakeholders!X44=1,Stakeholders!AG44=0),"3","Complete")))) -> N/A | X21: → | Y21: Cliquez pour voir les ressources de Niveau 1 | AE21: =Activities!H2 -> Des parties prenantes travaillant dans les domaines de la surveillance, de l'épidémiologie, des laboratoires et du partage d'informations ont été identifiées
X22: → | Y22: Cliquez pour voir les ressources de Niveau 2 | AE22: =Activities!H3 -> L'analyse des parties prenantes a été utilisée pour identifier les participants à tous les niveaux du pays
X23: → | Y23: Cliquez pour voir les ressources de Niveau 3 | AE23: =Activities!H4 -> Les rôles et responsabilités des parties prenantes ont été institutionnalisés et adoptés dans les politiques
G25: =""&Activities!G5 -> E-2 Évaluation des connexions entre les systèmes de surveillance | K25: =IF('Plans & Organization'!O44=0,AE25,IF(AND('Plans & Organization'!O44=1,'Plans & Organization'!X44=0),AE26,IF(AND('Plans & Organization'!X44=1,'Plans & Organization'!AG44=0),AE27,"Complete"))) -> Les interconnexions entre les systèmes de surveillance des zoonoses actuellement priorisées ont été évaluées entre les secteurs | T25: =IF('Plans & Organization'!O44="","N/A",IF(AND('Plans & Organization'!O44=0),"1",IF(AND('Plans & Organization'!O44=1,'Plans & Organization'!X44=0),"2",IF(AND('Plans & Organization'!X44=1,'Plans & Organization'!AG44=0),"3","Complete")))) -> N/A | X25: → | Y25: Cliquez pour voir les ressources de Niveau 1 | AE25: =Activities!H5 -> Les interconnexions entre les systèmes de surveillance des zoonoses actuellement priorisées ont été évaluées entre les secteurs
X26: → | Y26: Cliquez pour voir les ressources de Niveau 2 | AE26: =Activities!H6 -> Les interconnexions entre les systèmes de surveillance actuels ont été évaluées parmi les secteurs et à tous les niveaux du pays
X27: → | Y27: Cliquez pour voir les ressources de Niveau 3 | AE27: =Activities!H7 -> Les interconnexions entre les systèmes de surveillance coordonnés ont été évaluées et sont considérées comme étant conformes aux objectifs du système de surveillance coordonné
G29: =""&Activities!G8 -> E-3 Évaluation des cadres juridiques | K29: =IF('Policy & Legal'!O44=0,AE29,IF(AND('Policy & Legal'!O44=1,'Policy & Legal'!AG44=0),AE31,"Complete")) -> Les cadres juridiques (règles, politiques, directives et réglementations, y compris les normes internationales) qui régissent les normes d'éthique et de confidentialité en matière de surveillance et de partage des données ont été évalués | T29: =IF('Policy & Legal'!O44="","N/A",IF(AND('Policy & Legal'!O44=0),"1",IF(AND('Policy & Legal'!O44=1,'Policy & Legal'!AG44=0),"3","Complete"))) -> N/A | X29: → | Y29: Cliquez pour voir les ressources de Niveau 1 | AE29: =Activities!H8 -> Les cadres juridiques (règles, politiques, directives et réglementations, y compris les normes internationales) qui régissent les normes d'éthique et de confidentialité en matière de surveillance et de partage des données ont été évalués
X30: →
X31: → | Y31: Aucune ressource de Niveau 3 (voir Niveau 1) | AE31: =Activities!H9 -> Les cadres juridiques (règles, politiques, directives et réglementations, y compris les normes internationales) qui régissent les normes d'éthique et de confidentialité en matière de surveillance et de partage des données sont évalués à tous les niveaux du pays
G33: =""&Activities!G16 -> E-4 Cartographie des infrastructures | K33: =IF('Plans & Organization'!O60=0,AE33,IF(AND('Plans & Organization'!O60=1,'Plans & Organization'!X60=0),AE34,IF(AND('Plans & Organization'!X60=1,'Plans & Organization'!AG60=0),AE35,"Complete"))) -> Des exercices basiques de cartographie des infrastructures (telle que définie au point 4.1 du GTZ) ont été utilisés pour décrire la structure et les connexions sectorielles et intersectorielles | T33: =IF('Plans & Organization'!O60="","N/A",IF(AND('Plans & Organization'!O60=0),"1",IF(AND('Plans & Organization'!O60=1,'Plans & Organization'!X60=0),"2",IF(AND('Plans & Organization'!X60=1,'Plans & Organization'!AG60=0),"3","Complete")))) -> N/A | X33: → | Y33: Cliquez pour voir les ressources de Niveau 1 | AE33: =Activities!H16 -> Des exercices basiques de cartographie des infrastructures (telle que définie au point 4.1 du GTZ) ont été utilisés pour décrire la structure et les connexions sectorielles et intersectorielles
X34: → | Y34: Cliquez pour voir les ressources de Niveau 2 | AE34: =Activities!H17 -> La cartographie des infrastructures (telle que décrite au point 4.1 du GTZ) a été utilisée pour décrire la plupart des domaines à cartographier
X35: → | Y35: Aucune ressource de Niveau 3 (voir Niveau 2) | AE35: =Activities!H18 -> La cartographie complète des infrastructures (telle que décrite au point 4.1 du GTZ) a été utilisée pour décrire la totalité des domaines à cartographier.
G37: =""&Activities!G19 -> E-5 Évaluation des besoins économiques | K37: =IF('Budgets & Finances'!O44=0,AE37,IF(AND('Budgets & Finances'!O44=1,'Budgets & Finances'!AG44=0),AE39,"Complete")) -> Des évaluations économiques ont été utilisées pour déterminer les besoins financiers nationaux du système de surveillance coordonné | T37: =IF('Budgets & Finances'!O44="","N/A",IF(AND('Budgets & Finances'!O44=0),"1",IF(AND('Budgets & Finances'!O44=1,'Budgets & Finances'!AG44=0),"3","Complete"))) -> N/A | X37: → | Y37: Cliquez pour voir les ressources de Niveau 1 | AE37: =Activities!H19 -> Des évaluations économiques ont été utilisées pour déterminer les besoins financiers nationaux du système de surveillance coordonné
X39: → | Y39: Cliquez pour voir les ressources de Niveau 3 | AE39: =Activities!H20 -> Des évaluations économiques ont été utilisées pour déterminer les besoins financiers à tous les niveaux du pays du système de surveillance coordonné
G41: =""&Activities!G21 -> E-6 Évaluation de la capacité des laboratoires | K41: =IF(Laboratory!O44=0,AE41,IF(AND(Laboratory!O44=1,Laboratory!X44=0),AE42,IF(AND(Laboratory!X44=1,Laboratory!AG44=0),AE43,"Complete"))) -> Des évaluations de laboratoires ont été utilisées pour identifier des laboratoires de référence nationaux ou internationaux qualifiés capables d'effectuer des tests pour soutenir les activités de surveillance coordonnées | T41: =IF(Laboratory!O44="","N/A",IF(AND(Laboratory!O44=0),"1",IF(AND(Laboratory!O44=1,Laboratory!X44=0),"2",IF(AND(Laboratory!X44=1,Laboratory!AG44=0),"3","Complete")))) -> N/A | X41: → | Y41: Cliquez pour voir les ressources de Niveau 1 | AE41: =Activities!H21 -> Des évaluations de laboratoires ont été utilisées pour identifier des laboratoires de référence nationaux ou internationaux qualifiés capables d'effectuer des tests pour soutenir les activités de surveillance coordonnées
X42: → | Y42: Cliquez pour voir les ressources de Niveau 2 | AE42: =Activities!H22 -> Des évaluations de laboratoires ont été utilisées pour identifier à tous les niveaux (y compris international) des laboratoires qualifiés capables d'effectuer des tests pour soutenir les activités de surveillance coordonnées
X43: → | Y43: Aucune ressource de Niveau 3 (voir Niveau 2) | AE43: =Activities!H23 -> Des évaluations de laboratoires ont été utilisées pour identifier un réseau de laboratoires qualifiés capables d'effectuer des tests pour soutenir les activités de surveillance coordonnées
G45: =""&Activities!G24 -> E-7 Évaluation du transport et de l'interprétation des laboratoires | K45: =IF(Laboratory!O62=0,AE45,IF(AND(Laboratory!O62=1,Laboratory!X62=0),AE46,IF(AND(Laboratory!X62=1,Laboratory!AG62=0),AE47,"Complete"))) -> L'harmonisation des fournitures, des chaînes de transport et de l'interprétation des résultats des laboratoires a été évaluée entre les secteurs participants au niveau national | T45: =IF(Laboratory!O62="","N/A",IF(AND(Laboratory!O62=0),"1",IF(AND(Laboratory!O62=1,Laboratory!X62=0),"2",IF(AND(Laboratory!X62=1,Laboratory!AG62=0),"3","Complete")))) -> N/A | X45: → | Y45: Cliquez pour voir les ressources de Niveau 1 | AE45: =Activities!H24 -> L'harmonisation des fournitures, des chaînes de transport et de l'interprétation des résultats des laboratoires a été évaluée entre les secteurs participants au niveau national
X46: → | Y46: Cliquez pour voir les ressources de Niveau 2 | AE46: =Activities!H25 -> L'harmonisation des fournitures, des chaînes de transport et de l'interprétation des résultats des laboratoires entre les secteurs participants a été évaluée à tous les niveaux du pays
X47: → | Y47: Aucune ressource de Niveau 3 (voir Niveau 2) | AE47: =Activities!H26 -> Le degré d'harmonisation dans les fournitures, les chaînes de transport et l'interprétation des résultats entre les secteurs participants a été évalué et considéré comme étant conforme aux objectifs du système de surveillance coordonné
G49: =""&Activities!G27 -> E-8 Évaluation des ressources humaines | K49: =IF(Workforce!O44=0,AE49,IF(AND(Workforce!O44=1,Workforce!AG44=0),AE51,"Complete")) -> Des évaluations ont été réalisées pour identifier les exigences, les compétences, les besoins et les lacunes au niveau national en matière de ressources humaines | T49: =IF(Workforce!O44="","N/A",IF(AND(Workforce!O44=0),"1",IF(AND(Workforce!O44=1,Workforce!AG44=0),"3","Complete"))) -> N/A | X49: → | Y49: Cliquez pour voir les ressources de Niveau 1 | AE49: =Activities!H27 -> Des évaluations ont été réalisées pour identifier les exigences, les compétences, les besoins et les lacunes au niveau national en matière de ressources humaines
X51: → | Y51: Cliquez pour voir les ressources de Niveau 3 | AE51: =Activities!H28 -> Des évaluations ont été réalisées pour identifier les exigences, les compétences, les besoins et les lacunes à tous les niveaux du pays en matière de ressources humaines
B53: Planification | G53: =""&Activities!L2 -> PL-1 Volonté politique | K53: =IF(Stakeholders!O66=0,AE53,IF(AND(Stakeholders!O66=1,Stakeholders!X66=0),AE54,IF(AND(Stakeholders!X66=1,Stakeholders!AG66=0),AE55,"Complete"))) -> Les décideurs pour le système de surveillance coordonné ont été identifiés | T53: =IF(Stakeholders!O66="","N/A",IF(AND(Stakeholders!O66=0),"1",IF(AND(Stakeholders!O66=1,Stakeholders!X66=0),"2",IF(AND(Stakeholders!X66=1,Stakeholders!AG66=0),"3","Complete")))) -> N/A | X53: → | Y53: Cliquez pour voir les ressources de Niveau 1 | AE53: =Activities!M2 -> Les décideurs pour le système de surveillance coordonné ont été identifiés
X54: → | Y54: Cliquez pour voir les ressources de Niveau 2 | AE54: =Activities!M3 -> Il existe une volonté politique de mettre en place un système de surveillance coordonné, ainsi que des défenseurs à tous les niveaux du pays
X55: → | Y55: Cliquez pour voir les ressources de Niveau 3 | AE55: =Activities!M4 -> Il existe une stratégie de promotion qui communique aux décideurs des informations sur le système de surveillance coordonné
G57: =""&Activities!L5 -> PL-2 Éléments de données communs | K57: =IF('Data Storage & Sharing'!O44=0,AE57,IF(AND('Data Storage & Sharing'!O44=1,'Data Storage & Sharing'!X44=0),AE58,IF(AND('Data Storage & Sharing'!X44=1,'Data Storage & Sharing'!AG44=0),AE59,"Complete"))) -> Les éléments de données communs sont identifiés et accordés au sein de chaque secteur participant dans le but de remplir les objectifs analytiques communs du système de surveillance coordonné au niveau national | T57: =IF('Data Storage & Sharing'!O44="","N/A",IF(AND('Data Storage & Sharing'!O44=0),"1",IF(AND('Data Storage & Sharing'!O44=1,'Data Storage & Sharing'!X44=0),"2",IF(AND('Data Storage & Sharing'!X44=1,'Data Storage & Sharing'!AG44=0),"3","Complete")))) -> N/A | X57: → | Y57: Cliquez pour voir les ressources de Niveau 1 | AE57: =Activities!M5 -> Les éléments de données communs sont identifiés et accordés au sein de chaque secteur participant dans le but de remplir les objectifs analytiques communs du système de surveillance coordonné au niveau national
X58: → | Y58: Cliquez pour voir les ressources de Niveau 2 | AE58: =Activities!M6 -> Les éléments de données communs sont identifiés et accordés au sein de chaque secteur participant dans le but de remplir les objectifs analytiques communs du système de surveillance coordonné à tous les niveaux du pays
X59: → | Y59: Cliquez pour voir les ressources de Niveau 3 | AE59: =Activities!M7 -> Les éléments de données communs sont normalisés entre les secteurs participants sur la base des objectifs analytiques communs du système de surveillance coordonné et sont conformes aux normes internationales en matière de données
G61: =""&Activities!L8 -> PL-3 Cadres et plans stratégiques pour une surveillance coordonnée | K61: =IF('Plans & Organization'!O82=0,AE61,IF(AND('Plans & Organization'!O82=1,'Plans & Organization'!X82=0),AE62,IF(AND('Plans & Organization'!X82=1,'Plans & Organization'!AG82=0),AE63,"Complete"))) -> Une collecte et un examen multisectoriels des documents stratégiques nationaux (stratégies, cadres et plans stratégiques) liés au système de surveillance coordonné ont été effectués à des fins de planification | T61: =IF('Plans & Organization'!O82="","N/A",IF(AND('Plans & Organization'!O82=0),"1",IF(AND('Plans & Organization'!O82=1,'Plans & Organization'!X82=0),"2",IF(AND('Plans & Organization'!X82=1,'Plans & Organization'!AG82=0),"3","Complete")))) -> N/A | X61: → | Y61: Cliquez pour voir les ressources de Niveau 1 | AE61: =Activities!M8 -> Une collecte et un examen multisectoriels des documents stratégiques nationaux (stratégies, cadres et plans stratégiques) liés au système de surveillance coordonné ont été effectués à des fins de planification
X62: → | Y62: Cliquez pour voir les ressources de Niveau 2 | AE62: =Activities!M9 -> Les documents stratégiques nationaux (stratégies, cadres et plans stratégiques) du système de surveillance coordonné ont été consolidés et interconnectés sur la base d'une évaluation à tous les niveaux du pays
X63: → | Y63: Cliquez pour voir les ressources de Niveau 3 | AE63: =Activities!M10 -> Les documents stratégiques (stratégies, cadres et plans stratégiques) révisés du système de surveillance coordonné ont été alignés sur les recommandations et les normes internationales.
G65: =""&Activities!L11 -> PL-4 Plans opérationnels au niveau national | K65: =IF('Plans & Organization'!O98=0,AE65,IF(AND('Plans & Organization'!O98=1,'Plans & Organization'!X98=0),AE66,IF(AND('Plans & Organization'!X98=1,'Plans & Organization'!AG98=0),AE67,"Complete"))) -> Une collecte et un examen multisectoriels des plans opérationnels et autres documents importants (y compris des plans de surveillance, des définitions de cas, des protocoles et des procédures opérationnelles standard) liés au système de surveillance coordonné ont été effectués à des fins de planification | T65: =IF('Plans & Organization'!O98="","N/A",IF(AND('Plans & Organization'!O98=0),"1",IF(AND('Plans & Organization'!O98=1,'Plans & Organization'!X98=0),"2",IF(AND('Plans & Organization'!X98=1,'Plans & Organization'!AG98=0),"3","Complete")))) -> N/A | X65: → | Y65: Cliquez pour voir les ressources de Niveau 1 | AE65: =Activities!M11 -> Une collecte et un examen multisectoriels des plans opérationnels et autres documents importants (y compris des plans de surveillance, des définitions de cas, des protocoles et des procédures opérationnelles standard) liés au système de surveillance coordonné ont été effectués à des fins de planification
X66: → | Y66: Cliquez pour voir les ressources de Niveau 2 | AE66: =Activities!M12 -> Les plans opérationnels et autres documents importants (y compris des plans de surveillance, des définitions de cas, des protocoles et des procédures opérationnelles standard) révisés liés au système de surveillance coordonné et de partage d'informations ont été approuvés par les organisations chargées de la surveillance à tous les niveaux du pays
X67: → | Y67: Cliquez pour voir les ressources de Niveau 3 | AE67: =Activities!M13 -> Les plans opérationnels (y compris les plans de surveillance, les définitions de cas, les protocoles et les procédures opérationnelles standard) révisés pour le système de surveillance coordonné sont alignés sur les directives et recommandations internationales.
G69: =""&Activities!L14 -> PL-5 Planification financière | K69: =IF('Budgets & Finances'!O66=0,AE69,IF(AND('Budgets & Finances'!O66=1,'Budgets & Finances'!X66=0),AE70,IF(AND('Budgets & Finances'!X66=1,'Budgets & Finances'!AG66=0),AE71,"Complete"))) -> Il existe un plan budgétaire et un mécanisme de distribution des fonds destinés à la surveillance coordonnée au niveau national | T69: =IF('Budgets & Finances'!O66="","N/A",IF(AND('Budgets & Finances'!O66=0),"1",IF(AND('Budgets & Finances'!O66=1,'Budgets & Finances'!X66=0),"2",IF(AND('Budgets & Finances'!X66=1,'Budgets & Finances'!AG66=0),"3","Complete")))) -> N/A | X69: → | Y69: Cliquez pour voir les ressources de Niveau 1 | AE69: =Activities!M14 -> Il existe un plan budgétaire et un mécanisme de distribution des fonds destinés à la surveillance coordonnée au niveau national
X70: → | Y70: Aucune ressource de Niveau 2 (voir Niveau 1) | AE70: =Activities!M15 -> Il existe un plan budgétaire et un mécanisme de distribution des fonds destinés à la surveillance coordonnée à tous les niveaux du pays
X71: → | Y71: Aucune ressource de Niveau 3 (voir Niveau 1) | AE71: =Activities!M16 -> Le plan budgétaire et un mécanisme de distribution des fonds ont été évalués et considérés comme étant conformes aux objectifs du système de surveillance coordonné.
G73: =""&Activities!L17 -> PL-6 Planification des ressources humaines | K73: =IF(Workforce!O66=0,AE73,IF(AND(Workforce!O66=1,Workforce!X66=0),AE74,IF(AND(Workforce!X66=1,Workforce!AG66=0),AE75,"Complete"))) -> Il existe un plan d'éducation et de formation pour le système de surveillance coordonné, basé sur l'évaluation des ressources humaines au niveau national | T73: =IF(Workforce!O66="","N/A",IF(AND(Workforce!O66=0),"1",IF(AND(Workforce!O66=1,Workforce!X66=0),"2",IF(AND(Workforce!X66=1,Workforce!AG66=0),"3","Complete")))) -> N/A | X73: → | Y73: Cliquez pour voir les ressources de Niveau 1 | AE73: =Activities!M17 -> Il existe un plan d'éducation et de formation pour le système de surveillance coordonné, basé sur l'évaluation des ressources humaines au niveau national
X74: → | Y74: Aucune ressource de Niveau 2 (voir Niveau 1) | AE74: =Activities!M18 -> Il existe un plan d'éducation et de formation pour le système de surveillance coordonné, basé sur l'évaluation des ressources humaines à tous les niveaux du pays
X75: → | Y75: Aucune ressource de Niveau 3 (voir Niveau 1) | AE75: =Activities!M19 -> L'éducation et la formation de la main-d'œuvre sont liées à la planification multisectorielle nationale des ressources humaines et s'appuient sur les compétences et les évaluations internationales.
G77: =""&Activities!L20 -> PL-7 Planification des cadres juridiques | K77: =IF('Policy & Legal'!O66=0,AE77,IF(AND('Policy & Legal'!O66=1,'Policy & Legal'!X66=0),AE78,IF(AND('Policy & Legal'!X66=1,'Policy & Legal'!AG66=0),AE79,"Complete"))) -> Les cadres juridiques nécessaires (règles, politiques, directives et réglementations, y compris les normes internationales) ont été normalisés entre les différents secteurs sur la base d'une évaluation au niveau national | T77: =IF('Policy & Legal'!O66="","N/A",IF(AND('Policy & Legal'!O66=0),"1",IF(AND('Policy & Legal'!O66=1,'Policy & Legal'!X66=0),"2",IF(AND('Policy & Legal'!X66=1,'Policy & Legal'!AG66=0),"3","Complete")))) -> N/A | X77: → | Y77: Cliquez pour voir les ressources de Niveau 1 | AE77: =Activities!M20 -> Les cadres juridiques nécessaires (règles, politiques, directives et réglementations, y compris les normes internationales) ont été normalisés entre les différents secteurs sur la base d'une évaluation au niveau national
X78: → | Y78: Aucune ressource de Niveau 2 (voir Niveau 1) | AE78: =Activities!M21 -> Les cadres juridiques nécessaires (règles, politiques, directives et réglementations, y compris les normes internationales) ont été normalisés entre les différents secteurs sur la base d'une évaluation à tous les niveaux du pays
X79: → | Y79: Cliquez pour voir les ressources de Niveau 3 | AE79: =Activities!M22 -> Les cadres juridiques révisés du système de surveillance coordonné ont été alignés sur les recommandations et les normes internationales.
G81: =""&Activities!L23 -> PL-8 Planification coordonnée de la communication | K81: =IF('Communication & Reporting'!O44=0,AE81,IF(AND('Communication & Reporting'!O44=1,'Communication & Reporting'!X44=0),AE82,IF(AND('Communication & Reporting'!X44=1,'Communication & Reporting'!AG44=0),AE83,"Complete"))) -> La terminologie et les messages de communication sont alignés sur l'ensemble des secteurs participant au système de surveillance coordonné au niveau national. | T81: =IF('Communication & Reporting'!O44="","N/A",IF(AND('Communication & Reporting'!O44=0),"1",IF(AND('Communication & Reporting'!O44=1,'Communication & Reporting'!X44=0),"2",IF(AND('Communication & Reporting'!X44=1,'Communication & Reporting'!AG44=0),"3","Complete")))) -> N/A | X81: → | Y81: Cliquez pour voir les ressources de Niveau 1 | AE81: =Activities!M23 -> La terminologie et les messages de communication sont alignés sur l'ensemble des secteurs participant au système de surveillance coordonné au niveau national.
X82: → | Y82: Cliquez pour voir les ressources de Niveau 2 | AE82: =Activities!M24 -> La terminologie et les messages de communication sont alignés sur l'ensemble des secteurs participant au système de surveillance coordonné et diffusés à tous les niveaux du pays
X83: → | Y83: Cliquez pour voir les ressources de Niveau 3 | AE83: =Activities!M25 -> Il existe une stratégie et/ou un plan de communication (comprenant une terminologie et une messagerie) qui régissent la communication avec les parties prenantes et le public pour le système de surveillance coordonné
B85: Mise en œuvre | G85: =""&Activities!Q2 -> ME-1 Mobilisation des ressources financières | K85: =IF('Budgets & Finances'!O88=0,AE85,IF(AND('Budgets & Finances'!O88=1,'Budgets & Finances'!X88=0),AE86,IF(AND('Budgets & Finances'!X88=1,'Budgets & Finances'!AG88=0),AE87,"Complete"))) -> Il existe un financement destiné à la surveillance coordonnée au niveau national | T85: =IF('Budgets & Finances'!O88="","N/A",IF(AND('Budgets & Finances'!O88=0),"1",IF(AND('Budgets & Finances'!O88=1,'Budgets & Finances'!X88=0),"2",IF(AND('Budgets & Finances'!X88=1,'Budgets & Finances'!AG88=0),"3","Complete")))) -> N/A | X85: → | Y85: Cliquez pour voir les ressources de Niveau 1 | AE85: =Activities!R2 -> Il existe un financement destiné à la surveillance coordonnée au niveau national
X86: → | Y86: Cliquez pour voir les ressources de Niveau 2 | AE86: =Activities!R3 -> Il existe un financement destiné à la surveillance coordonnée à tous les niveaux du pays
X87: → | Y87: Cliquez pour voir les ressources de Niveau 3 | AE87: =Activities!R4 -> Un financement durable (c'est-à-dire intégré au budget national) est alloué aux activités de surveillance coordonnées, et a été évalué et considéré comme étant conforme aux objectifs du système de surveillance coordonné
G89: =""&Activities!Q5 -> ME-2 Mobilisation des ressources humaines et des parties prenantes | K89: =IF(Stakeholders!O88=0,AE89,IF(AND(Stakeholders!O88=1,Stakeholders!X88=0),AE90,IF(AND(Stakeholders!X88=1,Stakeholders!AG88=0),AE91,"Complete"))) -> Des coordonnateurs ou des groupes de travail techniques se réunissent de façon ad hoc | T89: =IF(Stakeholders!O88="","N/A",IF(AND(Stakeholders!O88=0),"1",IF(AND(Stakeholders!O88=1,Stakeholders!X88=0),"2",IF(AND(Stakeholders!X88=1,Stakeholders!AG88=0),"3","Complete")))) -> N/A | X89: → | Y89: Cliquez pour voir les ressources de Niveau 1 | AE89: =Activities!R5 -> Des coordonnateurs ou des groupes de travail techniques se réunissent de façon ad hoc
X90: → | Y90: Cliquez pour voir les ressources de Niveau 2 | AE90: =Activities!R6 -> Des coordonnateurs ou des groupes de travail techniques se réunissent régulièrement et abordent les questions prioritaires au fur et à mesure qu'elles se présentent
X91: → | Y91: Cliquez pour voir les ressources de Niveau 3 | AE91: =Activities!R7 -> Des groupes de travail techniques effectuent un examen régulier et optimisent les activités de surveillance coordonnées
G93: =""&Activities!Q8 -> ME-3 Échange de données et partage d'informations | K93: =IF('Data Storage & Sharing'!O65=0,AE93,IF(AND('Data Storage & Sharing'!O65=1,'Data Storage & Sharing'!X65=0),AE94,IF(AND('Data Storage & Sharing'!X65=1,'Data Storage & Sharing'!AG65=0),AE95,"Complete"))) -> Il existe un mécanisme de partage de données entre les secteurs au niveau national | T93: =IF('Data Storage & Sharing'!O65="","N/A",IF(AND('Data Storage & Sharing'!O65=0),"1",IF(AND('Data Storage & Sharing'!O65=1,'Data Storage & Sharing'!X65=0),"2",IF(AND('Data Storage & Sharing'!X65=1,'Data Storage & Sharing'!AG65=0),"3","Complete")))) -> N/A | X93: → | Y93: Cliquez pour voir les ressources de Niveau 1 | AE93: =Activities!R8 -> Il existe un mécanisme de partage de données entre les secteurs au niveau national
X94: → | Y94: Cliquez pour voir les ressources de Niveau 2 | AE94: =Activities!R9 -> Il existe un mécanisme de partage des données entre les secteurs à tous les niveaux du pays
X95: → | Y95: Cliquez pour voir les ressources de Niveau 3 | AE95: =Activities!R10 -> Il existe un mécanisme de partage de données qui est accessible, fonctionnel et utilisable par tous les secteurs participants
G97: =""&Activities!Q11 -> ME-4 Stockage des données | K97: =IF('Data Storage & Sharing'!O81=0,AE97,IF(AND('Data Storage & Sharing'!O81=1,'Data Storage & Sharing'!X81=0),AE98,IF(AND('Data Storage & Sharing'!X81=1,'Data Storage & Sharing'!AG81=0),AE99,"Complete"))) -> Une structure et un lieu sont prévus pour stocker et conserver les données de plusieurs secteurs au niveau national. | T97: =IF('Data Storage & Sharing'!O81="","N/A",IF(AND('Data Storage & Sharing'!O81=0),"1",IF(AND('Data Storage & Sharing'!O81=1,'Data Storage & Sharing'!X81=0),"2",IF(AND('Data Storage & Sharing'!X81=1,'Data Storage & Sharing'!AG81=0),"3","Complete")))) -> N/A | X97: → | Y97: Cliquez pour voir les ressources de Niveau 1 | AE97: =Activities!R11 -> Une structure et un lieu sont prévus pour stocker et conserver les données de plusieurs secteurs au niveau national.
X98: → | Y98: Cliquez pour voir les ressources de Niveau 2 | AE98: =Activities!R12 -> Une structure et un lieu sont prévus pour stocker et conserver les données de plusieurs secteurs à tous les niveaux du pays
X99: → | Y99: Cliquez pour voir les ressources de Niveau 3 | AE99: =Activities!R13 -> Il existe une structure et un endroit pour stocker et conserver les données de tous les secteurs concernés par la surveillance qui sont accessibles, fonctionnels et utilisables par tous les secteurs participants
G101: =""&Activities!Q14 -> ME-5 Mesures relatives à la confidentialité et à la sécurité des données | K101: =IF('Data Storage & Sharing'!O97=0,AE101,IF(AND('Data Storage & Sharing'!O97=1,'Data Storage & Sharing'!X97=0),AE102,IF(AND('Data Storage & Sharing'!X97=1,'Data Storage & Sharing'!AG97=0),AE103,"Complete"))) -> Il existe des mesures de confidentialité et de sécurité des données visant à protéger les données de surveillance coordonnée au niveau national | T101: =IF('Data Storage & Sharing'!O97="","N/A",IF(AND('Data Storage & Sharing'!O97=0),"1",IF(AND('Data Storage & Sharing'!O97=1,'Data Storage & Sharing'!X97=0),"2",IF(AND('Data Storage & Sharing'!X97=1,'Data Storage & Sharing'!AG97=0),"3","Complete")))) -> N/A | X101: → | Y101: Cliquez pour voir les ressources de Niveau 1 | AE101: =Activities!R14 -> Il existe des mesures de confidentialité et de sécurité des données visant à protéger les données de surveillance coordonnée au niveau national
X102: → | Y102: Cliquez pour voir les ressources de Niveau 2 | AE102: =Activities!R15 -> Il existe des mesures de confidentialité et de sécurité des données visant à protéger les données de surveillance coordonnée à tous les niveaux du pays
X103: → | Y103: Cliquez pour voir les ressources de Niveau 3 | AE103: =Activities!R16 -> Il existe des mesures de confidentialité et de sécurité des données visant à protéger les données de surveillance coordonnée, qui ont été évaluées et sont considérées comme étant conformes aux objectifs du système de surveillance coordonné
G105: =""&Activities!Q17 -> I-6 Mise en œuvre de systèmes de surveillance coordonnés | K105: =IF('Plans & Organization'!O120=0,AE105,IF(AND('Plans & Organization'!O120=1,'Plans & Organization'!X120=0),AE106,IF(AND('Plans & Organization'!X120=1,'Plans & Organization'!AG120=0),AE107,"Complete"))) -> Le système de surveillance coordonné fait l'objet d'un projet pilote dans des zones ciblées | T105: =IF('Plans & Organization'!O120="","N/A",IF(AND('Plans & Organization'!O120=0),"1",IF(AND('Plans & Organization'!O120=1,'Plans & Organization'!X120=0),"2",IF(AND('Plans & Organization'!X120=1,'Plans & Organization'!AG120=0),"3","Complete")))) -> N/A | X105: → | Y105: Cliquez pour voir les ressources de Niveau 1 | AE105: =Activities!R17 -> Le système de surveillance coordonné fait l'objet d'un projet pilote dans des zones ciblées
X106: → | Y106: Cliquez pour voir les ressources de Niveau 2 | AE106: =Activities!R18 -> Le système de surveillance coordonné a été étendu à d'autres domaines sur la base de mises en œuvre pilotes
X107: → | Y107: Cliquez pour voir les ressources de Niveau 3 | AE107: =Activities!R19 -> Le système de surveillance coordonné est un programme à l'échelon national
G109: =""&Activities!Q20 -> ME-7 Partage des données de surveillance | K109: =IF('Data Storage & Sharing'!O113=0,AE109,IF(AND('Data Storage & Sharing'!O113=1,'Data Storage & Sharing'!X113=0),AE110,IF(AND('Data Storage & Sharing'!X113=1,'Data Storage & Sharing'!AG113=0),AE111,"Complete"))) -> Les données de surveillance sont partagées de manière informelle ou formelle de façon ad hoc au niveau national | T109: =IF('Data Storage & Sharing'!O113="","N/A",IF(AND('Data Storage & Sharing'!O113=0),"1",IF(AND('Data Storage & Sharing'!O113=1,'Data Storage & Sharing'!X113=0),"2",IF(AND('Data Storage & Sharing'!X113=1,'Data Storage & Sharing'!AG113=0),"3","Complete")))) -> N/A | X109: → | Y109: Cliquez pour voir les ressources de Niveau 1 | AE109: =Activities!R20 -> Les données de surveillance sont partagées de manière informelle ou formelle de façon ad hoc au niveau national
X110: → | Y110: Cliquez pour voir les ressources de Niveau 2 | AE110: =Activities!R21 -> Les données de surveillance sont partagées de manière informelle ou formelle, de façon régulière et en temps utile, à tous les niveaux du pays
X111: → | Y111: Cliquez pour voir les ressources de Niveau 3 | AE111: =Activities!R22 -> Les données de surveillance sont partagées de façon systématique et régulière et en temps utile entre tous les secteurs participants par le biais d'une ou plusieurs plateforme(s) interopérable(s) ou conjointe(s)
G113: =""&Activities!Q23 -> ME-8 Communication et partage d'informations | K113: =IF('Communication & Reporting'!O65=0,AE113,IF(AND('Communication & Reporting'!O65=1,'Communication & Reporting'!X65=0),AE114,IF(AND('Communication & Reporting'!X65=1,'Communication & Reporting'!AG65=0),AE115,"Complete"))) -> Les informations sont partagées et communiquées de manière ad hoc avec les parties prenantes concernées | T113: =IF('Communication & Reporting'!O65="","N/A",IF(AND('Communication & Reporting'!O65=0),"1",IF(AND('Communication & Reporting'!O65=1,'Communication & Reporting'!X65=0),"2",IF(AND('Communication & Reporting'!X65=1,'Communication & Reporting'!AG65=0),"3","Complete")))) -> N/A | X113: → | Y113: Cliquez pour voir les ressources de Niveau 1 | AE113: =Activities!R23 -> Les informations sont partagées et communiquées de manière ad hoc avec les parties prenantes concernées
X114: → | Y114: Cliquez pour voir les ressources de Niveau 2 | AE114: =Activities!R24 -> Les informations sont partagées et communiquées de façon régulière avec les parties prenantes concernées
X115: → | Y115: Cliquez pour voir les ressources de Niveau 3 | AE115: =Activities!R25 -> Il existe un partage régulier et en temps utile des informations avec les parties prenantes concernées, y compris les entités transfrontalières, régionales et internationales
G117: =""&Activities!Q26 -> ME-9 Exigences internationales en matière de notification | K117: =IF('Communication & Reporting'!O81=0,AE117,"Complete") -> Les exigences de notification internationale pour toutes les zoonoses sont respectées | T117: =IF('Communication & Reporting'!O81="","N/A",IF(AND('Communication & Reporting'!O65=0),"1","Complete")) -> N/A | X117: → | Y117: Cliquez pour voir les ressources de Niveau 1 | AE117: =Activities!R26 -> Les exigences de notification internationale pour toutes les zoonoses sont respectées
X119: →
G121: =""&Activities!Q27 -> ME-10 Visualisation et analyse coordonnées des données | K121: =IF('Communication & Reporting'!O97=0,AE121,IF(AND('Communication & Reporting'!O97=1,'Communication & Reporting'!X97=0),AE122,IF(AND('Communication & Reporting'!X97=1,'Communication & Reporting'!AG97=0),AE123,"Complete"))) -> Des données de surveillance coordonnée sont utilisées pour générer des résultats (par exemple, des chiffres, des graphiques, des rapports ou des bulletins) qui sont diffusés au niveau national | T121: =IF('Communication & Reporting'!O97="","N/A",IF(AND('Communication & Reporting'!O97=0),"1",IF(AND('Communication & Reporting'!O97=1,'Communication & Reporting'!X97=0),"2",IF(AND('Communication & Reporting'!X97=1,'Communication & Reporting'!AG97=0),"3","Complete")))) -> N/A | X121: → | Y121: Cliquez pour voir les ressources de Niveau 1 | AE121: =Activities!R27 -> Des données de surveillance coordonnée sont utilisées pour générer des résultats (par exemple, des chiffres, des graphiques, des rapports ou des bulletins) qui sont diffusés au niveau national
X122: → | Y122: Cliquez pour voir les ressources de Niveau 2 | AE122: =Activities!R28 -> Des données de surveillance coordonnée sont utilisées pour générer des résultats (par exemple, des chiffres, des graphiques, des rapports ou des bulletins) qui sont diffusés aux parties prenantes à tous les niveaux du pays
X123: → | Y123: Cliquez pour voir les ressources de Niveau 3 | AE123: =Activities!R29 -> Les données de surveillance coordonnée, y compris les rapports de suivi et d'évaluation (S&E), sont utilisées pour générer des résultats qui orientent la réponse, les politiques et la programmation
B125: Suivi et évaluation | G125: SE-1 Exercices de simulation | K125: =IF('Simulation Exercises'!O44=0,AE125,IF(AND('Simulation Exercises'!O44=1,'Simulation Exercises'!X44=0),AE126,IF(AND('Simulation Exercises'!X44=1,'Simulation Exercises'!AG44=0),AE127,"Complete"))) -> Des exercices de simulation sont réalisés pour évaluer l'efficacité et la fonctionnalité du système de surveillance coordonné au niveau national | T125: =IF('Simulation Exercises'!O44="","N/A",IF(AND('Simulation Exercises'!O44=0),"1",IF(AND('Simulation Exercises'!O44=1,'Simulation Exercises'!X44=0),"2",IF(AND('Simulation Exercises'!X44=1,'Simulation Exercises'!AG44=0),"3","Complete")))) -> N/A | X125: → | Y125: Cliquez pour voir les ressources de Niveau 1 | AE125: =Activities!W2 -> Des exercices de simulation sont réalisés pour évaluer l'efficacité et la fonctionnalité du système de surveillance coordonné au niveau national
X126: → | Y126: Cliquez pour voir les ressources de Niveau 2 | AE126: =Activities!W3 -> Des exercices de simulation sont réalisés pour évaluer l'efficacité et la fonctionnalité du système de surveillance coordonné à tous les niveaux du pays
X127: → | Y127: Cliquez pour voir les ressources de Niveau 3 | AE127: =Activities!W4 -> Les résultats des exercices de simulation sont utilisés pour orienter et réviser les plans de surveillance coordonnée
G129: =""&Activities!V5 -> SE-2 Planification du suivi et de l'évaluation | K129: =IF('M & E Planning'!O44=0,AE129,IF(AND('M & E Planning'!O44=1,'M & E Planning'!X44=0),AE130,IF(AND('M & E Planning'!X44=1,'M & E Planning'!AG44=0),AE131,"Complete"))) -> Il existe un plan de suivi et d'évaluation qui est conforme aux objectifs du système de surveillance coordonné | T129: =IF('M & E Planning'!O44="","N/A",IF(AND('M & E Planning'!O44=0),"1",IF(AND('M & E Planning'!O44=1,'M & E Planning'!X44=0),"2",IF(AND('M & E Planning'!X44=1,'M & E Planning'!AG44=0),"3","Complete")))) -> N/A | X129: → | Y129: Cliquez pour voir les ressources de Niveau 1 | AE129: =Activities!W5 -> Il existe un plan de suivi et d'évaluation qui est conforme aux objectifs du système de surveillance coordonné
X130: → | Y130: Aucune ressource de Niveau 2 (voir Niveau 1) | AE130: =Activities!W6 -> Le plan de suivi et d'évaluation est implanté pour surveiller les performances et les avancées du système de surveillance coordonné
X131: → | Y131: Aucune ressource de Niveau 3 (voir Niveau 1) | AE131: =Activities!W7 -> Les résultats du suivi et de l'évaluation améliorent ou étendent de manière itérative le système de surveillance coordonné et s'alignent sur les recommandations et les normes internationales.
G133: SE-3 Normes de qualité des données | K133: =IF('Data Quality Standards'!O44=0,AE133,IF(AND('Data Quality Standards'!O44=1,'Data Quality Standards'!X44=0),AE134,IF(AND('Data Quality Standards'!X44=1,'Data Quality Standards'!AG44=0),AE135,"Complete"))) -> Il existe une méthodologie de gestion de la qualité des données | T133: =IF('Data Quality Standards'!O44="","N/A",IF(AND('Data Quality Standards'!O44=0),"1",IF(AND('Data Quality Standards'!O44=1,'Data Quality Standards'!X44=0),"2",IF(AND('Data Quality Standards'!X44=1,'Data Quality Standards'!AG44=0),"3","Complete")))) -> N/A | X133: → | Y133: Cliquez pour voir les ressources de Niveau 1 | AE133: =Activities!W8 -> Il existe une méthodologie de gestion de la qualité des données
X134: → | Y134: Cliquez pour voir les ressources de Niveau 2 | AE134: =Activities!W9 -> La qualité des données a été testée et considérée comme étant conforme aux objectifs du système de surveillance coordonné
X135: → | Y135: Cliquez pour voir les ressources de Niveau 3 | AE135: =Activities!W10 -> La qualité des données est conforme aux normes et recommandations internationales

Sheet Resource selection
B2: SÉLECTION DES OUTILS ET RESSOURCES
B9: CATÉGORIE | D9: ACTIVITÉ | F9: Niveau de capacité cible | H9: Description | J9: Ressource 1 | L9: Ressource 2
B11: Coordonnateurs | D11: PP-1 Identification préliminaire des parties prenantes | F11: =Results!T9 -> N/A | H11: =Results!K9 -> Des coordonnateurs, des «champions» ou des groupes de travail techniques ont été identifiés dans tous les secteurs participants au niveau national pour planifier la mise en œuvre de la surveillance coordonnée.
B13: Priorisation | D13: PP-2 Priorisation | F13: =Results!T13 -> N/A | H13: =Results!K13 -> Il existe une liste de zoonoses priorisées à intégrer dans un système de surveillance coordonné
B15: Établissement des objectifs | D15: PP-3 Établissement des objectifs | F15: =Results!T17 -> N/A | H15: =Results!K17 -> Les objectifs, les rôles et les responsabilités de tous les secteurs participant au système de surveillance coordonné sont accordés au niveau national
B17: Parties prenantes | D17: E-1 Cartographie des parties prenantes | F17: =Results!T21 -> N/A | H17: =Results!K21 -> Des parties prenantes travaillant dans les domaines de la surveillance, de l'épidémiologie, des laboratoires et du partage d'informations ont été identifiées
D19: PL-1 Volonté politique | F19: =Results!T9 -> N/A | H19: =Results!K53 -> Les décideurs pour le système de surveillance coordonné ont été identifiés
D21: ME-2 Mobilisation des ressources humaines et des parties prenantes | F21: =Results!T89 -> N/A | H21: =Results!K89 -> Des coordonnateurs ou des groupes de travail techniques se réunissent de façon ad hoc
B23: Plans et organisation | D23: E-2 Évaluation des connexions entre les systèmes de surveillance | F23: =Results!T25 -> N/A | H23: =Results!K25 -> Les interconnexions entre les systèmes de surveillance des zoonoses actuellement priorisées ont été évaluées entre les secteurs
D26: E-4 Cartographie des infrastructures | F26: =Results!T33 -> N/A | H26: =Results!K33 -> Des exercices basiques de cartographie des infrastructures (telle que définie au point 4.1 du GTZ) ont été utilisés pour décrire la structure et les connexions sectorielles et intersectorielles
D28: PL-3 Cadres et plans stratégiques pour une surveillance coordonnée | F28: =Results!T61 -> N/A | H28: =Results!K61 -> Une collecte et un examen multisectoriels des documents stratégiques nationaux (stratégies, cadres et plans stratégiques) liés au système de surveillance coordonné ont été effectués à des fins de planification
D30: PL-4 Plans opérationnels au niveau national | F30: =Results!T65 -> N/A | H30: =Results!K65 -> Une collecte et un examen multisectoriels des plans opérationnels et autres documents importants (y compris des plans de surveillance, des définitions de cas, des protocoles et des procédures opérationnelles standard) liés au système de surveillance coordonné ont été effectués à des fins de planification
D32: ME-6 Mise en œuvre de systèmes de surveillance coordonnés | F32: =Results!T105 -> N/A | H32: =Results!K105 -> Le système de surveillance coordonné fait l'objet d'un projet pilote dans des zones ciblées
B34: Aspects réglementaires et juridiques | D34: E-3 Évaluation des cadres juridiques | F34: =Results!T29 -> N/A | H34: =Results!K29 -> Les cadres juridiques (règles, politiques, directives et réglementations, y compris les normes internationales) qui régissent les normes d'éthique et de confidentialité en matière de surveillance et de partage des données ont été évalués
D36: PL-7 Planification des cadres juridiques | F36: =Results!T77 -> N/A | H36: =Results!K77 -> Les cadres juridiques nécessaires (règles, politiques, directives et réglementations, y compris les normes internationales) ont été normalisés entre les différents secteurs sur la base d'une évaluation au niveau national
B38: Budgets et finances | D38: E-5 Évaluation des besoins économiques | F38: =Results!T37 -> N/A | H38: =Results!K37 -> Des évaluations économiques ont été utilisées pour déterminer les besoins financiers nationaux du système de surveillance coordonné
D40: PL-5 Planification financière | F40: =Results!T69 -> N/A | H40: =Results!K69 -> Il existe un plan budgétaire et un mécanisme de distribution des fonds destinés à la surveillance coordonnée au niveau national
D42: ME-1 Mobilisation des ressources financières | F42: =Results!T85 -> N/A | H42: =Results!K85 -> Il existe un financement destiné à la surveillance coordonnée au niveau national
B44: Ressources humaines | D44: E-8 Évaluation des ressources humaines | F44: =Results!T49 -> N/A | H44: =Results!K49 -> Des évaluations ont été réalisées pour identifier les exigences, les compétences, les besoins et les lacunes au niveau national en matière de ressources humaines
D46: PL-6 Planification des ressources humaines | F46: =Results!T73 -> N/A | H46: =Results!K73 -> Il existe un plan d'éducation et de formation pour le système de surveillance coordonné, basé sur l'évaluation des ressources humaines au niveau national
B48: Laboratoire | D48: E-6 Évaluation de la capacité des laboratoires | F48: =Results!T41 -> N/A | H48: =Results!K41 -> Des évaluations de laboratoires ont été utilisées pour identifier des laboratoires de référence nationaux ou internationaux qualifiés capables d'effectuer des tests pour soutenir les activités de surveillance coordonnées
D50: E-7 Évaluation du transport et interprétation des laboratoires | F50: =Results!T45 -> N/A | H50: =Results!K45 -> L'harmonisation des fournitures, des chaînes de transport et de l'interprétation des résultats des laboratoires a été évaluée entre les secteurs participants au niveau national
B52: Stockage et partage des données | D52: PL-2 Éléments de données communs | F52: =Results!T57 -> N/A | H52: =Results!K57 -> Les éléments de données communs sont identifiés et accordés au sein de chaque secteur participant dans le but de remplir les objectifs analytiques communs du système de surveillance coordonné au niveau national
D54: ME-3 Échange de données et partage d'informations | F54: =Results!T93 -> N/A | H54: =Results!K93 -> Il existe un mécanisme de partage de données entre les secteurs au niveau national
D56: ME-4 Stockage des données | F56: =Results!T97 -> N/A | H56: =Results!K97 -> Une structure et un lieu sont prévus pour stocker et conserver les données de plusieurs secteurs au niveau national.
D58: ME-5 Mesures relatives à la confidentialité et à la sécurité des données | F58: =Results!T101 -> N/A | H58: =Results!K101 -> Il existe des mesures de confidentialité et de sécurité des données visant à protéger les données de surveillance coordonnée au niveau national
D60: ME-7 Partage des données de surveillance | F60: =Results!T109 -> N/A | H60: =Results!K109 -> Les données de surveillance sont partagées de manière informelle ou formelle de façon ad hoc au niveau national
B62: Communication et établissement de rapports | D62: PL-8 Planification coordonnée de la communication | F62: =Results!T81 -> N/A | H62: =Results!K81 -> La terminologie et les messages de communication sont alignés sur l'ensemble des secteurs participant au système de surveillance coordonné au niveau national.
D64: ME-8 Communication et partage d'informations | F64: =Results!T113 -> N/A | H64: =Results!K113 -> Les informations sont partagées et communiquées de manière ad hoc avec les parties prenantes concernées
D66: ME-9 Conformité aux exigences internationales en matière de notification | F66: =Results!T117 -> N/A | H66: =Results!K117 -> Les exigences de notification internationale pour toutes les zoonoses sont respectées
D68: ME-10 Visualisation et analyse coordonnées des données | F68: =Results!T121 -> N/A | H68: =Results!K121 -> Des données de surveillance coordonnée sont utilisées pour générer des résultats (par exemple, des chiffres, des graphiques, des rapports ou des bulletins) qui sont diffusés au niveau national
B70: Exercices de simulation | D70: SE-1 Exercices de simulation | F70: =Results!T125 -> N/A | H70: =Results!K125 -> Des exercices de simulation sont réalisés pour évaluer l'efficacité et la fonctionnalité du système de surveillance coordonné au niveau national
B72: Planification du suivi et de l'évaluation | D72: SE-2 Planification du suivi et de l'évaluation | F72: =Results!T129 -> N/A | H72: =Results!K129 -> Il existe un plan de suivi et d'évaluation qui est conforme aux objectifs du système de surveillance coordonné
B74: Normes de qualité des données | D74: SE-3 Normes de qualité des données | F74: =Results!T133 -> N/A | H74: =Results!K133 -> Il existe une méthodologie de gestion de la qualité des données

Sheet Prioritization and roadmap
B2: PRIORISATION ET FEUILLE DE ROUTE
B8: CATÉGORIE | D8: ACTIVITÉ | F8: Niveau de capacité cible | H8: Description | J8: Moment de démarrage de la mise en œuvre et priorité | L8: Démarrage de l'activité | N8: Durée de l'activité | P8: Année 1 (par ex., 2022) | T8: Année 2 | X8: Année 3 | AB8: Année 4 | AF8: Année 5
P9: 1T | Q9: 2T | R9: 3T | S9: 4T | T9: 1T | U9: 2T | V9: 3T | W9: 4T | X9: 1T | Y9: 2T | Z9: 3T | AA9: 4T | AB9: 1T | AC9: 2T | AD9: 3T | AE9: 4T | AF9: 1T | AG9: 2T | AH9: 3T | AI9: 4T
B10: Coordonnateurs | D10: PP-1 Identification préliminaire des parties prenantes | F10: =Results!T9 -> N/A | H10: =Results!K9 -> Des coordonnateurs, des «champions» ou des groupes de travail techniques ont été identifiés dans tous les secteurs participants au niveau national pour planifier la mise en œuvre de la surveillance coordonnée.
B12: Priorisation | D12: PP-2 Priorisation | F12: =Results!T13 -> N/A | H12: =Results!K13 -> Il existe une liste de zoonoses priorisées à intégrer dans un système de surveillance coordonné
B14: Établissement des objectifs | D14: PP-3 Établissement des objectifs | F14: =Results!T17 -> N/A | H14: =Results!K17 -> Les objectifs, les rôles et les responsabilités de tous les secteurs participant au système de surveillance coordonné sont accordés au niveau national
B16: Parties prenantes | D16: E-1 Cartographie des parties prenantes | F16: =Results!T21 -> N/A | H16: =Results!K21 -> Des parties prenantes travaillant dans les domaines de la surveillance, de l'épidémiologie, des laboratoires et du partage d'informations ont été identifiées
D18: PL-1 Volonté politique | F18: =Results!T9 -> N/A | H18: =Results!K53 -> Les décideurs pour le système de surveillance coordonné ont été identifiés
D20: ME-2 Mobilisation des ressources humaines et des parties prenantes | F20: =Results!T89 -> N/A | H20: =Results!K89 -> Des coordonnateurs ou des groupes de travail techniques se réunissent de façon ad hoc
B22: Plans et organisation | D22: E-2 Évaluation des connexions entre les systèmes de surveillance | F22: =Results!T25 -> N/A | H22: =Results!K25 -> Les interconnexions entre les systèmes de surveillance des zoonoses actuellement priorisées ont été évaluées entre les secteurs
D25: E-4 Cartographie des infrastructures | F25: =Results!T33 -> N/A | H25: =Results!K33 -> Des exercices basiques de cartographie des infrastructures (telle que définie au point 4.1 du GTZ) ont été utilisés pour décrire la structure et les connexions sectorielles et intersectorielles
D27: PL-3 Cadre et plans stratégiques pour une surveillance coordonnée | F27: =Results!T61 -> N/A | H27: =Results!K61 -> Une collecte et un examen multisectoriels des documents stratégiques nationaux (stratégies, cadres et plans stratégiques) liés au système de surveillance coordonné ont été effectués à des fins de planification
D29: PL-4 Plans et protocoles de surveillance au niveau national (Plans opérationnels au niveau national) | F29: =Results!T65 -> N/A | H29: =Results!K65 -> Une collecte et un examen multisectoriels des plans opérationnels et autres documents importants (y compris des plans de surveillance, des définitions de cas, des protocoles et des procédures opérationnelles standard) liés au système de surveillance coordonné ont été effectués à des fins de planification
D31: ME-6 Mise en œuvre de systèmes de surveillance coordonnés | F31: =Results!T105 -> N/A | H31: =Results!K105 -> Le système de surveillance coordonné fait l'objet d'un projet pilote dans des zones ciblées
B33: Aspects réglementaires et juridiques | D33: E-3 Évaluation des cadres juridiques | F33: =Results!T29 -> N/A | H33: =Results!K29 -> Les cadres juridiques (règles, politiques, directives et réglementations, y compris les normes internationales) qui régissent les normes d'éthique et de confidentialité en matière de surveillance et de partage des données ont été évalués
D35: PL-7 Planification des cadres juridiques | F35: =Results!T77 -> N/A | H35: =Results!K77 -> Les cadres juridiques nécessaires (règles, politiques, directives et réglementations, y compris les normes internationales) ont été normalisés entre les différents secteurs sur la base d'une évaluation au niveau national
B37: Budgets et finances | D37: E-5 Évaluation des besoins économiques | F37: =Results!T37 -> N/A | H37: =Results!K37 -> Des évaluations économiques ont été utilisées pour déterminer les besoins financiers nationaux du système de surveillance coordonné
D39: PL-5 Planification financière | F39: =Results!T69 -> N/A | H39: =Results!K69 -> Il existe un plan budgétaire et un mécanisme de distribution des fonds destinés à la surveillance coordonnée au niveau national
D41: ME-1 Mobilisation des ressources financières | F41: =Results!T85 -> N/A | H41: =Results!K85 -> Il existe un financement destiné à la surveillance coordonnée au niveau national
B43: Ressources humaines | D43: E-8 Évaluation des ressources humaines | F43: =Results!T49 -> N/A | H43: =Results!K49 -> Des évaluations ont été réalisées pour identifier les exigences, les compétences, les besoins et les lacunes au niveau national en matière de ressources humaines
D45: PL-6 Planification des ressources humaines | F45: =Results!T73 -> N/A | H45: =Results!K73 -> Il existe un plan d'éducation et de formation pour le système de surveillance coordonné, basé sur l'évaluation des ressources humaines au niveau national
B47: Laboratoire | D47: E-6 Évaluation de la capacité des laboratoires | F47: =Results!T41 -> N/A | H47: =Results!K41 -> Des évaluations de laboratoires ont été utilisées pour identifier des laboratoires de référence nationaux ou internationaux qualifiés capables d'effectuer des tests pour soutenir les activités de surveillance coordonnées
D49: E-7 Évaluation du transport et interprétation des laboratoires | F49: =Results!T45 -> N/A | H49: =Results!K45 -> L'harmonisation des fournitures, des chaînes de transport et de l'interprétation des résultats des laboratoires a été évaluée entre les secteurs participants au niveau national
B51: Stockage et partage des données | D51: PL-2 Éléments de données communs | F51: =Results!T57 -> N/A | H51: =Results!K57 -> Les éléments de données communs sont identifiés et accordés au sein de chaque secteur participant dans le but de remplir les objectifs analytiques communs du système de surveillance coordonné au niveau national
D53: ME-3 Échange de données et partage d'informations | F53: =Results!T93 -> N/A | H53: =Results!K93 -> Il existe un mécanisme de partage de données entre les secteurs au niveau national
D55: ME-4 Stockage des données | F55: =Results!T97 -> N/A | H55: =Results!K97 -> Une structure et un lieu sont prévus pour stocker et conserver les données de plusieurs secteurs au niveau national.
D57: ME-5 Mesures relatives à la confidentialité et à la sécurité des données | F57: =Results!T101 -> N/A | H57: =Results!K101 -> Il existe des mesures de confidentialité et de sécurité des données visant à protéger les données de surveillance coordonnée au niveau national
D59: ME-7 Partage des données | F59: =Results!T109 -> N/A | H59: =Results!K109 -> Les données de surveillance sont partagées de manière informelle ou formelle de façon ad hoc au niveau national
B61: Communication et établissement de rapports | D61: PL-8 Planification coordonnée de la communication | F61: =Results!T81 -> N/A | H61: =Results!K81 -> La terminologie et les messages de communication sont alignés sur l'ensemble des secteurs participant au système de surveillance coordonné au niveau national.
D63: ME-8 Communication et utilisation des données | F63: =Results!T113 -> N/A | H63: =Results!K113 -> Les informations sont partagées et communiquées de manière ad hoc avec les parties prenantes concernées
D65: ME-9 Conformité aux exigences internationales en matière de notification | F65: =Results!T117 -> N/A | H65: =Results!K117 -> Les exigences de notification internationale pour toutes les zoonoses sont respectées
D67: ME-10 Visualisation et analyse coordonnées des données | F67: =Results!T121 -> N/A | H67: =Results!K121 -> Des données de surveillance coordonnée sont utilisées pour générer des résultats (par exemple, des chiffres, des graphiques, des rapports ou des bulletins) qui sont diffusés au niveau national
B69: Exercices de simulation | D69: SE-1 Exercices de simulation | F69: =Results!T125 -> N/A | H69: =Results!K125 -> Des exercices de simulation sont réalisés pour évaluer l'efficacité et la fonctionnalité du système de surveillance coordonné au niveau national
B71: Planification du suivi et de l'évaluation | D71: SE-2 Planification du suivi et de l'évaluation | F71: =Results!T129 -> N/A | H71: =Results!K129 -> Il existe un plan de suivi et d'évaluation qui est conforme aux objectifs du système de surveillance coordonné
B73: Normes de qualité des données | D73: SE-3 Normes de qualité des données | F73: =Results!T133 -> N/A | H73: =Results!K133 -> Il existe une méthodologie de gestion de la qualité des données

Sheet Development plan
B2: PLAN DE DÉVELOPPEMENT
B6: CATÉGORIE | C6: ACTIVITÉ | D6: Description | E6: Ressources et outils sélectionnés | F6: Actions | G6: Responsable, et rôle/responsabilités de chaque partenaire | H6: Défis à relever | I6: Démarrage de l'activité | J6: Durée de l'activité | K6: Point de contact (nom, fonction, organisation, secteur) de chaque partenaire | L6: Indicateur de cette exigence | M6: Autres notes
B8: EXEMPLE
B9: Priorisation | C9: PP-2 Priorisation | D9: Il existe une liste de zoonoses priorisées à intégrer dans un système de surveillance coordonné | E9: OHZDP | F9: Réaliser l'exercice de priorisation (par exemple, atelier OHZDP, Priorisation des maladies zoonotiques dans le cadre de l'approche «Une seule santé» des CDC) Mettre à jour les listes des maladies prioritaires par secteurs sur la base des résultats de l'exercice de priorisation | G9: Responsable: Santé animale (SA) Le représentant de la Santé humaine (SH) contacte les CDC et identifie les participants du secteur SH. Le représentant SA coordonne les aspects logistiques et le lieu | H9: Des fonds supplémentaires peuvent être nécessaires pour la réalisation d'un exercice multisectoriel; Contacter les CDC pour envisager la possibilité d'organiser un atelier OHZDP. | I9: Année 1-2T | J9: 1 trimestre | K9: Linda Bianca, dir. des services de santé animale, Ministère de l'agriculture Dan Fisher, dir. des services de santé, Ministère de la santé | L9: Exercice de priorisation réalisé, avec la participation de tous les secteurs concernés. Les listes des priorités sont mises à jour en fonction des résultats de l'exercice de priorisation pour tous les secteurs concernés
B11: PLAN
B12: Coordonnateurs | C12: PP-1 Identification préliminaire des parties prenantes | D12: =Results!K9 -> Des coordonnateurs, des «champions» ou des groupes de travail techniques ont été identifiés dans tous les secteurs participants au niveau national pour planifier la mise en œuvre de la surveillance coordonnée. | E12: ='Resource selection'!J11 -> 0 | I12: ='Prioritization and roadmap'!L10 -> 0 | J12: ='Prioritization and roadmap'!N10 -> 0
B14: Priorisation | C14: PP-2 Priorisation | D14: =Results!K13 -> Il existe une liste de zoonoses priorisées à intégrer dans un système de surveillance coordonné | E14: ='Resource selection'!J13 -> 0 | I14: ='Prioritization and roadmap'!L12 -> 0 | J14: ='Prioritization and roadmap'!N12 -> 0
B16: Établissement des objectifs | C16: PP-3 Établissement des objectifs | D16: =Results!K17 -> Les objectifs, les rôles et les responsabilités de tous les secteurs participant au système de surveillance coordonné sont accordés au niveau national | E16: ='Resource selection'!J15 -> 0 | I16: ='Prioritization and roadmap'!L14 -> 0 | J16: ='Prioritization and roadmap'!N14 -> 0
B18: Parties prenantes | C18: E-1 Cartographie des parties prenantes | D18: =Results!K21 -> Des parties prenantes travaillant dans les domaines de la surveillance, de l'épidémiologie, des laboratoires et du partage d'informations ont été identifiées | E18: ='Resource selection'!J17 -> 0 | I18: ='Prioritization and roadmap'!L16 -> 0 | J18: ='Prioritization and roadmap'!N16 -> 0
C19: PL-1 Volonté politique | D19: =Results!K53 -> Les décideurs pour le système de surveillance coordonné ont été identifiés | E19: ='Resource selection'!J19 -> 0 | I19: ='Prioritization and roadmap'!L18 -> 0 | J19: ='Prioritization and roadmap'!N18 -> 0
C20: ME-2 Mobilisation des ressources humaines et des parties prenantes | D20: =Results!K89 -> Des coordonnateurs ou des groupes de travail techniques se réunissent de façon ad hoc | E20: ='Resource selection'!J21 -> 0 | I20: ='Prioritization and roadmap'!L20 -> 0 | J20: ='Prioritization and roadmap'!N20 -> 0
B22: Plans et organisation | C22: E-2 Évaluation des connexions entre les systèmes de surveillance | D22: =Results!K25 -> Les interconnexions entre les systèmes de surveillance des zoonoses actuellement priorisées ont été évaluées entre les secteurs | E22: ='Resource selection'!J23 -> 0 | I22: ='Prioritization and roadmap'!L22 -> 0 | J22: ='Prioritization and roadmap'!N22 -> 0
C23: E-4 Cartographie des infrastructures | D23: =Results!K33 -> Des exercices basiques de cartographie des infrastructures (telle que définie au point 4.1 du GTZ) ont été utilisés pour décrire la structure et les connexions sectorielles et intersectorielles | E23: ='Resource selection'!J26 -> 0 | I23: ='Prioritization and roadmap'!L25 -> 0 | J23: ='Prioritization and roadmap'!N25 -> 0
C24: PL-3 Cadre et plans stratégiques pour une surveillance coordonnée | D24: =Results!K61 -> Une collecte et un examen multisectoriels des documents stratégiques nationaux (stratégies, cadres et plans stratégiques) liés au système de surveillance coordonné ont été effectués à des fins de planification | E24: ='Resource selection'!J28 -> 0 | I24: ='Prioritization and roadmap'!L27 -> 0 | J24: ='Prioritization and roadmap'!N27 -> 0
C25: PL-4 Plans et protocoles de surveillance au niveau national (Plans opérationnels au niveau national) | D25: =Results!K65 -> Une collecte et un examen multisectoriels des plans opérationnels et autres documents importants (y compris des plans de surveillance, des définitions de cas, des protocoles et des procédures opérationnelles standard) liés au système de surveillance coordonné ont été effectués à des fins de planification | E25: ='Resource selection'!J30 -> 0 | I25: ='Prioritization and roadmap'!L29 -> 0 | J25: ='Prioritization and roadmap'!N29 -> 0
C26: ME-6 Mise en œuvre de systèmes de surveillance coordonnés | D26: =Results!K105 -> Le système de surveillance coordonné fait l'objet d'un projet pilote dans des zones ciblées | E26: ='Resource selection'!J32 -> 0 | I26: ='Prioritization and roadmap'!L31 -> 0 | J26: ='Prioritization and roadmap'!N31 -> 0
B28: Aspects réglementaires et juridiques | C28: E-3 Évaluation des cadres juridiques | D28: =Results!K29 -> Les cadres juridiques (règles, politiques, directives et réglementations, y compris les normes internationales) qui régissent les normes d'éthique et de confidentialité en matière de surveillance et de partage des données ont été évalués | E28: ='Resource selection'!J34 -> 0 | I28: ='Prioritization and roadmap'!L33 -> 0 | J28: ='Prioritization and roadmap'!N33 -> 0
C29: PL-7 Planification des cadres juridiques | D29: =Results!K77 -> Les cadres juridiques nécessaires (règles, politiques, directives et réglementations, y compris les normes internationales) ont été normalisés entre les différents secteurs sur la base d'une évaluation au niveau national | E29: ='Resource selection'!J36 -> 0 | I29: ='Prioritization and roadmap'!L35 -> 0 | J29: ='Prioritization and roadmap'!N35 -> 0
B31: Budgets et finances | C31: E-5 Évaluation des besoins économiques | D31: =Results!K37 -> Des évaluations économiques ont été utilisées pour déterminer les besoins financiers nationaux du système de surveillance coordonné | E31: ='Resource selection'!J38 -> 0 | I31: ='Prioritization and roadmap'!L37 -> 0 | J31: ='Prioritization and roadmap'!N37 -> 0
C32: PL-5 Planification financière | D32: =Results!K69 -> Il existe un plan budgétaire et un mécanisme de distribution des fonds destinés à la surveillance coordonnée au niveau national | E32: ='Resource selection'!J40 -> 0 | I32: ='Prioritization and roadmap'!L39 -> 0 | J32: ='Prioritization and roadmap'!N39 -> 0
C33: ME-1 Mobilisation des ressources financières | D33: =Results!K85 -> Il existe un financement destiné à la surveillance coordonnée au niveau national | E33: ='Resource selection'!J42 -> 0 | I33: ='Prioritization and roadmap'!L41 -> 0 | J33: ='Prioritization and roadmap'!N41 -> 0
B35: Ressources humaines | C35: E-8 Évaluation des ressources humaines | D35: =Results!K49 -> Des évaluations ont été réalisées pour identifier les exigences, les compétences, les besoins et les lacunes au niveau national en matière de ressources humaines | E35: ='Resource selection'!J44 -> 0 | I35: ='Prioritization and roadmap'!L43 -> 0 | J35: ='Prioritization and roadmap'!N43 -> 0
C36: PL-6 Planification des ressources humaines | D36: =Results!K73 -> Il existe un plan d'éducation et de formation pour le système de surveillance coordonné, basé sur l'évaluation des ressources humaines au niveau national | E36: ='Resource selection'!J46 -> 0 | I36: ='Prioritization and roadmap'!L45 -> 0 | J36: ='Prioritization and roadmap'!N45 -> 0
B38: Laboratoire | C38: E-6 Évaluation de la capacité des laboratoires | D38: =Results!K41 -> Des évaluations de laboratoires ont été utilisées pour identifier des laboratoires de référence nationaux ou internationaux qualifiés capables d'effectuer des tests pour soutenir les activités de surveillance coordonnées | E38: ='Resource selection'!J48 -> 0 | I38: ='Prioritization and roadmap'!L47 -> 0 | J38: ='Prioritization and roadmap'!N47 -> 0
C39: E-7 Évaluation du transport et interprétation des laboratoires | D39: =Results!K45 -> L'harmonisation des fournitures, des chaînes de transport et de l'interprétation des résultats des laboratoires a été évaluée entre les secteurs participants au niveau national | E39: ='Resource selection'!J50 -> 0 | I39: ='Prioritization and roadmap'!L49 -> 0 | J39: ='Prioritization and roadmap'!N49 -> 0
B41: Stockage et partage des données | C41: PL-2 Éléments de données communs | D41: =Results!K57 -> Les éléments de données communs sont identifiés et accordés au sein de chaque secteur participant dans le but de remplir les objectifs analytiques communs du système de surveillance coordonné au niveau national | E41: ='Resource selection'!J52 -> 0 | I41: ='Prioritization and roadmap'!L51 -> 0 | J41: ='Prioritization and roadmap'!N51 -> 0
C42: ME-3 Échange de données et partage d'informations | D42: =Results!K93 -> Il existe un mécanisme de partage de données entre les secteurs au niveau national | E42: ='Resource selection'!J54 -> 0 | I42: ='Prioritization and roadmap'!L53 -> 0 | J42: ='Prioritization and roadmap'!N53 -> 0
C43: ME-4 Stockage des données | D43: =Results!K97 -> Une structure et un lieu sont prévus pour stocker et conserver les données de plusieurs secteurs au niveau national. | E43: ='Resource selection'!J56 -> 0 | I43: ='Prioritization and roadmap'!L55 -> 0 | J43: ='Prioritization and roadmap'!N55 -> 0
C44: ME-5 Mesures relatives à la confidentialité et à la sécurité des données | D44: =Results!K101 -> Il existe des mesures de confidentialité et de sécurité des données visant à protéger les données de surveillance coordonnée au niveau national | E44: ='Resource selection'!J58 -> 0 | I44: ='Prioritization and roadmap'!L57 -> 0 | J44: ='Prioritization and roadmap'!N57 -> 0
C45: ME-7 Partage des données de surveillance | D45: =Results!K109 -> Les données de surveillance sont partagées de manière informelle ou formelle de façon ad hoc au niveau national | E45: ='Resource selection'!J60 -> 0 | I45: ='Prioritization and roadmap'!L59 -> 0 | J45: ='Prioritization and roadmap'!N59 -> 0
B47: Communication et établissement de rapports | C47: PL-8 Planification coordonnée de la communication | D47: =Results!K81 -> La terminologie et les messages de communication sont alignés sur l'ensemble des secteurs participant au système de surveillance coordonné au niveau national. | E47: ='Resource selection'!J62 -> 0 | I47: ='Prioritization and roadmap'!L61 -> 0 | J47: ='Prioritization and roadmap'!N61 -> 0
C48: ME-8 Communication et partage d'informations | D48: =Results!K113 -> Les informations sont partagées et communiquées de manière ad hoc avec les parties prenantes concernées | E48: ='Resource selection'!J64 -> 0 | I48: ='Prioritization and roadmap'!L63 -> 0 | J48: ='Prioritization and roadmap'!N63 -> 0
C49: ME-9 Conformité aux exigences internationales en matière de notification | D49: =Results!K117 -> Les exigences de notification internationale pour toutes les zoonoses sont respectées | E49: ='Resource selection'!J66 -> 0 | I49: ='Prioritization and roadmap'!L65 -> 0 | J49: ='Prioritization and roadmap'!N65 -> 0
C50: ME-10 Visualisation et analyse coordonnées des données | D50: =Results!K121 -> Des données de surveillance coordonnée sont utilisées pour générer des résultats (par exemple, des chiffres, des graphiques, des rapports ou des bulletins) qui sont diffusés au niveau national | E50: ='Resource selection'!J68 -> 0 | I50: ='Prioritization and roadmap'!L67 -> 0 | J50: ='Prioritization and roadmap'!N67 -> 0
B52: Exercices de simulation | C52: SE-1 Exercices de simulation | D52: =Results!K125 -> Des exercices de simulation sont réalisés pour évaluer l'efficacité et la fonctionnalité du système de surveillance coordonné au niveau national | E52: ='Resource selection'!J70 -> 0 | I52: ='Prioritization and roadmap'!L69 -> 0 | J52: ='Prioritization and roadmap'!N69 -> 0
B54: Planification du suivi et de l'évaluation | C54: SE-2 Planification du suivi et de l'évaluation | D54: =Results!K129 -> Il existe un plan de suivi et d'évaluation qui est conforme aux objectifs du système de surveillance coordonné | E54: ='Resource selection'!J72 -> 0 | I54: ='Prioritization and roadmap'!L71 -> 0 | J54: ='Prioritization and roadmap'!N71 -> 0
B56: Normes de qualité des données | C56: SE-3 Normes de qualité des données | D56: =Results!K133 -> Il existe une méthodologie de gestion de la qualité des données | E56: ='Resource selection'!J74 -> 0 | I56: ='Prioritization and roadmap'!L73 -> 0 | J56: ='Prioritization and roadmap'!N73 -> 0

Sheet Tools by activity
A2: PP-1 Coordonnateurs | C2: E-1 Cartographie des parties prenantes | E2: PL-1 Volonté politique | G2: ME-1 Mobilisation des ressources financières | I2: SE-1 Exercices de simulation
A4: Cadre de surveillance basé sur les événements des CDC en Afrique | C4: Guide de discussion sur les capacités sanitaires aux frontières (BHCDG) | E4: Évaluation des collaborations au sein d'un système de surveillance multisectoriel (EcoSur) | G4: SurvCost: Outil permettant d'estimer le coût de la surveillance intégrée de la maladie et la riposte | I4: Analyse du réseau des infrastructures de laboratoire (LINA)
A5: Évaluation des collaborations au sein d'un système de surveillance multisectoriel (EcoSur) | C5: Évaluation des collaborations au sein d'un système de surveillance multisectoriel (EcoSur) | E5: Surveillance intégrée de la maladie et la riposte (IDSR) | G5: Outil d'analyse coût-efficacité de la surveillance de la rage animale | I5: Boîte à outils de cartographie et de ressources des systèmes «Une seule santé» (OH-SMART)
A6: Surveillance intégrée de la maladie et la riposte (IDSR) | C6: Atelier national de rapprochement et d'échange RSI-PVS | E6: Méthodologie d'analyse de la législation relative à la RAM dans le secteur de l'alimentation et de l'agriculture | G6: Outil d'évaluation des coûts du Règlement sanitaire international (RSI) de l'Université de Georgetown | I6: Boîte à outils de simulation
A7: Plan d'action national pour la sécurité sanitaire (PANSS) | C7: Surveillance intégrée de la maladie et la riposte (IDSR) | E7: Plan d'action national pour la sécurité sanitaire (PANSS) | G7: Stratégie de financement durable pour la boîte à outils «Une seule santé» | I7: Suite pour une biosurveillance électronique automatisée mondiale (SAGES)
A8: Outil d'évaluation de l'état de préparation et des besoins pour une surveillance «Une seule santé» (OHSRRT) | C8: Plan d'action national pour la sécurité sanitaire (PANSS) | E8: Réseau pour l'évaluation de l'approche «Une seule santé» (NEOH) | G8: Stratégie de financement durable pour la boîte à outils «Une seule santé»
A9: Analyse de la politique sur le terrain (PFA) | C9: Analyse des écarts PVS de l'OMSA | E9: Boîte à outils pour la promotion d'une politique «Une seule santé» | I9: SE-2 Planification du suivi et de l'évaluation
A10: Évaluation des systèmes «Une seule santé» pour les zoonoses prioritaires (OH-SAPZ) | C10: Outil d'évaluation de l'état de préparation et des besoins pour une surveillance «Une seule santé» (OHSRRT) | E10: Boîte à outils pour le modèle de politique «Une seule santé» | G10: ME-2 Mobilisation des ressources humaines
C11: Boîte à outils de cartographie et de ressources des systèmes «Une seule santé» (OH-SMART) | E11: Analyse de la politique sur le terrain (PFA) | I11: Résistance aux antimicrobiens: un manuel pour la mise en œuvre de plans d'action nationaux
A12: PP-2 Priorisation | C12: Analyse de la politique sur le terrain (PFA) | E12: Approche par étapes pour l'élimination de la rage (SARE) | G12: Cadre de surveillance basé sur les événements des CDC en Afrique | I12: Évaluation ECDC des systèmes de suivi et de surveillance de la qualité des données - Manuel des méthodes et des applications
A13: Outil ECDC pour l'établissement des priorités en matière de menaces de maladies infectieuses | C13: Approche par étapes pour l'élimination de la rage (SARE) | G13: Boîte à outils pour l'analyse a posteriori après l'apparition d'un foyer épidémique | I13: Règlement sanitaire international (2005): outil d’autoévaluation pour l'établissement de rapports annuels par les États Parties (SPAR)
A14: Liste et catégorisation des maladies animales prioritaires, y compris celles transmissibles à l'homme (Phylum) | C14: Cadre d'évaluation de la surveillance (SERVAL) | E14: PL-2 Éléments de données communs | G14: Boîte à outils pour l'élaboration d'un manuel de gouvernance | I14: Réseau pour l'évaluation de l'approche «Une seule santé» (NEOH)
A15: Priorisation des maladies zoonotiques dans le cadre de l'approche «Une seule santé» (OHZDP) | C15: Évaluation des systèmes «Une seule santé» pour les zoonoses prioritaires (OH-SAPZ) | G15: Boîte à outils pour la planification de la préparation et la réponse | I15: Cadre d'évaluation de la surveillance (SERVAL)
A16: Évaluation des systèmes «Une seule santé» pour les zoonoses prioritaires (OH-SAPZ) | E16: Évaluation des collaborations au sein d'un système de surveillance multisectoriel (EcoSur) | I16: Cadre d'évaluation de la surveillance (SurF)
C17: E-2 Connexions entre les systèmes de surveillance | E17: Cadre pour le renforcement de la prévention et du contrôle de l'anthrax | G17: ME-3 Échange de données et partage d'informations | I17: Outils de surveillance en ligne (SURVTOOLS)
E18: Atelier national de rapprochement et d'échange RSI-PVS | I18: Directives actualisées pour l'évaluation des systèmes de surveillance de la santé publique
C19: Cadre de surveillance basé sur les événements des CDC en Afrique | E19: Surveillance intégrée de la maladie et la riposte (IDSR) | G19: Afyadata
A20: PP-3 Établissement des objectifs | C20: Évaluation ECDC des systèmes de suivi et de surveillance de la qualité des données - Manuel des méthodes et des applications | E20: Cadre de collecte de données EFSA | G20: Logiciel d'information de santé au niveau des districts 2 (DHIS2) | I20: SE-3 Normes de qualité des données
A21: Cadre de surveillance basé sur les événements des CDC en Afrique | C21: Outil de la FAO d’évaluation de la surveillance nationale de l'antibiorésistance et des compétences des laboratoires (ATLASS) | G21: Système électronique intégré de surveillance des maladies (EIDSS)
A22: Évaluation des collaborations au sein d'un système de surveillance multisectoriel (EcoSur) | C22: Outil d'évaluation de la surveillance (SET) de la FAO | E22: PL-3 Cadres et plans stratégiques pour une surveillance coordonnée | G22: EMPRES Système mondial d'information sur les maladies animales (EMPRES-i) | I22: Boîte à outils pour le contrôle de la qualité des données (DQR)
A23: Surveillance intégrée de la maladie et la riposte (IDSR) | C23: Règlement sanitaire international (2005): outil d’autoévaluation pour l'établissement de rapports annuels par les États Parties (SPAR) | G23: Event Mobile Application (EMAi) | I23: Évaluation ECDC des systèmes de suivi et de surveillance de la qualité des données - Manuel des méthodes et des applications
A24: Plan d'action national pour la sécurité sanitaire (PANSS) | E24: Cadre de surveillance basé sur les événements des CDC en Afrique | G24: FoodChain-Lab (FCL) | I24: Cadre pour le renforcement de la prévention et du contrôle de l'anthrax
A25: Réseau pour l'évaluation de l'approche «Une seule santé» (NEOH) | C25: E-3 Cadres juridiques | E25: Résistance aux antimicrobiens: un manuel pour la mise en œuvre de plans d'action nationaux | G25: Système de gestion des données de laboratoire «SILAB for Africa» (SILABFA) | I25: Surveillance intégrée de la maladie et la riposte (IDSR)
A26: Outil d'évaluation de l'état de préparation et des besoins pour une surveillance «Une seule santé» (OHSRRT) | E26: Guide de discussion sur les capacités sanitaires aux frontières (BHCDG) | G26: Système de gestion des données de laboratoire Mini (MiniLIMS) | I26: Cadre d'évaluation de la surveillance (SERVAL)
C27: Résistance aux antimicrobiens: un manuel pour la mise en œuvre de plans d'action nationaux | E27: Évaluation des collaborations au sein d'un système de surveillance multisectoriel (EcoSur) | G27: Boîte à outils pour la planification de la préparation et la réponse | I27: Cadre d'évaluation de la surveillance (SurF)
C28: Évaluation des collaborations au sein d'un système de surveillance multisectoriel (EcoSur) | E28: Cadre d'évaluation des systèmes de surveillance de santé publique pour la détection précoce des foyers épidémiques | G28: Application de suivi des expositions et des cas de rage (REACT) | I28: Suite pour une biosurveillance électronique automatisée mondiale (SAGES)
C29: Boîte à outils pour l'élaboration d'un manuel de gouvernance | E29: Cadre pour le renforcement de la prévention et du contrôle de l'anthrax | G29: Système de gestion et d'analyse de la surveillance et la réponse aux foyers épidémiques (SORMAS) | I29: Directives actualisées pour l'évaluation des systèmes de surveillance de la santé publique
C30: Règlement sanitaire international (2005): outil d’autoévaluation pour l'établissement de rapports annuels par les États Parties (SPAR) | E30: Atelier national de rapprochement et d'échange RSI-PVS | G30: Initiative de veille épidémique à sources ouvertes (EIOS)
C31: Méthodologie d'analyse de la législation relative à la RAM dans le secteur de l'alimentation et de l'agriculture | E31: Surveillance intégrée de la maladie et la riposte (IDSR) | G31: Suite pour une biosurveillance électronique automatisée mondiale (SAGES)
C32: Outil d'évaluation de l'état de préparation et des besoins pour une surveillance «Une seule santé» (OHSRRT) | E32: Évaluation externe conjointe (EEC)
C33: Analyse de la politique sur le terrain (PFA) | E33: Méthodologie d'analyse de la législation relative à la RAM dans le secteur de l'alimentation et de l'agriculture | G33: ME-4 Stockage des données
C34: Outil par étapes pour l'éradication de la brucellose (STEB) | E34: Plan d'action national pour la sécurité sanitaire (PANSS)
C35: Approche par étapes pour l'élimination de la rage (SARE) | E35: Réseau pour l'évaluation de l'approche «Une seule santé» (NEOH) | G35: Afyadata
C36: Programme national de normes de performance en santé publique (NPHPSP): Instrument d'évaluation des performances des systèmes de santé publique locaux (version 2) | E36: Analyse des écarts PVS de l'OMSA | G36: Logiciel d'information de santé au niveau des districts 2 (DHIS2)
E37: Élaboration du plan stratégique «Une seule santé» | G37: Système électronique intégré de surveillance des maladies (EIDSS)
C38: E-4 Cartographie des infrastructures | E38: Boîte à outils de cartographie et de ressources des systèmes «Une seule santé» (OH-SMART) | G38: Système de gestion des données de laboratoire «SILAB for Africa» (SILABFA)
E39: Outil par étapes pour l'éradication de la brucellose (STEB) | G39: Système de gestion des données de laboratoire Mini (MiniLIMS)
C40: Outil d'autoévaluation APHL pour l'informatique | E40: Approche par étapes pour l'élimination de la rage (SARE) | G40: Application de suivi des expositions et des cas de rage (REACT)
C41: Outil d'évaluation informatique pour les laboratoires APHL | E41: Évaluation des systèmes «Une seule santé» pour les zoonoses prioritaires (OH-SAPZ) | G41: Système de gestion et d'analyse de la surveillance et la réponse aux foyers épidémiques (SORMAS)
C42: Évaluation des collaborations au sein d'un système de surveillance multisectoriel (EcoSur) | E42: WHO CHOICE | G42: Suite pour une biosurveillance électronique automatisée mondiale (SAGES)
C43: Atelier national de rapprochement et d'échange RSI-PVS
C44: Analyse du réseau des infrastructures de laboratoire (LINA) | E44: PL-4 Plans opérationnels au niveau national | G44: ME-5 Mesures relatives à la confidentialité et à la sécurité des données
C45: Plan d'action national pour la sécurité sanitaire (PANSS)
C46: Réseau pour l'évaluation de l'approche «Une seule santé» (NEOH) | E46: Cadre de surveillance basé sur les événements des CDC en Afrique | G46: Outil d'autoévaluation APHL pour l'informatique
C47: Analyse des écarts PVS de l'OMSA | E47: Guide de discussion sur les capacités sanitaires aux frontières (BHCDG) | G47: Logiciel d'information de santé au niveau des districts 2 (DHIS2)
C48: Boîte à outils de cartographie et de ressources des systèmes «Une seule santé» (OH-SMART) | E48: Évaluation ECDC des systèmes de suivi et de surveillance de la qualité des données - Manuel des méthodes et des applications | G48: Système électronique intégré de surveillance des maladies (EIDSS)
C49: Analyse de la politique sur le terrain (PFA) | E49: Outil de cartographie épidémiologique (EMT) | G49: EMPRES Système mondial d'information sur les maladies animales (EMPRES-i)
C50: Boîte à outils pour la planification de la préparation et la réponse | E50: Évaluation des collaborations au sein d'un système de surveillance multisectoriel (EcoSur) | G50: Système de gestion des données de laboratoire «SILAB for Africa» (SILABFA)
C51: Évaluation des systèmes «Une seule santé» pour les zoonoses prioritaires (OH-SAPZ) | E51: Outil d'évaluation de la surveillance (SET) de la FAO | G51: Système de gestion des données de laboratoire Mini (MiniLIMS)
C52: Outil d'évaluation des laboratoires de l'OMS | E52: Cadre pour le renforcement de la prévention et du contrôle de l'anthrax | G52: Application de suivi des expositions et des cas de rage (REACT)
E53: Directives pour la conception de plans de surveillance des maladies animales | G53: Système de gestion et d'analyse de la surveillance et la réponse aux foyers épidémiques (SORMAS)
C54: E-5 Évaluation des besoins économiques | E54: Atelier national de rapprochement et d'échange RSI-PVS | G54: Suite pour une biosurveillance électronique automatisée mondiale (SAGES)
E55: Surveillance intégrée de la maladie et la riposte (IDSR)
C56: SurvCost: Outil permettant d'estimer le coût de la surveillance intégrée de la maladie et la riposte | E56: Méthodologie d'analyse de la législation relative à la RAM dans le secteur de l'alimentation et de l'agriculture | G56: I-6 Mise en œuvre de systèmes de surveillance coordonnés
C57: Outil d'analyse coût-efficacité de la surveillance de la rage animale | E57: Plan d'action national pour la sécurité sanitaire (PANSS)
C58: Évaluation des collaborations au sein d'un système de surveillance multisectoriel (EcoSur) | E58: Outil d'évaluation de l'état de préparation et des besoins pour une surveillance «Une seule santé» (OHSRRT) | G58: Cadre de surveillance basé sur les événements des CDC en Afrique
C59: Outil d'évaluation des coûts du Règlement sanitaire international (RSI) de l'Université de Georgetown | E59: Boîte à outils pour la planification de la préparation et la réponse | G59: Afyadata
C60: Processus d'élimination globale de la rage chez le chien (GDREP) | E60: Approche par étapes pour l'élimination de la rage (SARE) | G60: Système électronique intégré de surveillance des maladies (EIDSS)
C61: Plan d'action national pour la sécurité sanitaire (PANSS) | E61: Cadre d'évaluation de la surveillance (SERVAL) | G61: Système de gestion des données de laboratoire «SILAB for Africa» (SILABFA)
C62: Réseau pour l'évaluation de l'approche «Une seule santé» (NEOH) | E62: Outils de surveillance en ligne (SURVTOOLS) | G62: Système de gestion des données de laboratoire Mini (MiniLIMS)
C63: Analyse des écarts PVS de l'OMSA | G63: Analyse du réseau des infrastructures de laboratoire (LINA)
C64: Outil d'évaluation des coûts d'un foyer épidémique | G64: Application de suivi des expositions et des cas de rage (REACT)
C65: Rabies ECON | E65: PL-5 Planification financière | G65: Suite pour une biosurveillance électronique automatisée mondiale (SAGES)
C66: Cadre d'évaluation de la surveillance (SERVAL) | G66: Outil d'évaluation des progrès vers l'éradication de la rage (TAPER)
C67: Outils de surveillance en ligne (SURVTOOLS) | E67: Cadre de surveillance basé sur les événements des CDC en Afrique
C68: Stratégie de financement durable pour la boîte à outils «Une seule santé» | E68: Évaluation ECDC des systèmes de suivi et de surveillance de la qualité des données - Manuel des méthodes et des applications | G68: ME-7 Partage des données de surveillance
C69: WHO CHOICE | E69: Cadre pour le renforcement de la prévention et du contrôle de l'anthrax
E70: Outil d'évaluation des coûts du Règlement sanitaire international (RSI) de l'Université de Georgetown | G70: Afyadata
C71: E-6 Évaluation de la capacité des laboratoires | E71: Directives pour la conception de plans de surveillance des maladies animales | G71: Logiciel d'information de santé au niveau des districts 2 (DHIS2)
E72: Surveillance intégrée de la maladie et la riposte (IDSR) | G72: Système électronique intégré de surveillance des maladies (EIDSS)
C73: Évaluation des collaborations au sein d'un système de surveillance multisectoriel (EcoSur) | G73: Surveillance intégrée de la maladie et la riposte (IDSR)
C74: Outil de cartographie des laboratoires de la FAO (LMT) | E74: PL-6 Planification des ressources humaines | G74: Boîte à outils pour la planification de la préparation et la réponse
C75: Analyse du réseau des infrastructures de laboratoire (LINA) | G75: Application de suivi des expositions et des cas de rage (REACT)
C76: Outil d'évaluation des réseaux de surveillance (OASIS) | E76: Surveillance intégrée de la maladie et la riposte (IDSR) | G76: Initiative de veille épidémique à sources ouvertes (EIOS)
C77: Outil d'évaluation des laboratoires de l'OMS | E77: Processus d'élimination globale de la rage chez le chien (GDREP) | G77: Suite pour une biosurveillance électronique automatisée mondiale (SAGES)
C78: Cadre pour le renforcement de la prévention et du contrôle de l'anthrax | E78: Cadre de compétences de leadership pour les laboratoires (GLLP)
C79: Surveillance intégrée de la maladie et la riposte (IDSR) | G79: ME-8 Communication et partage d'informations
C80: Évaluation externe conjointe (EEC) | E80: PL-7 Planification des cadres juridiques
C81: Évaluation des systèmes «Une seule santé» pour les zoonoses prioritaires (OH-SAPZ) | G81: Afyadata
C82: Mission PVS pour les laboratoires de l'OMSA | E82: Stratégies de communication et de coordination multisectorielles aux frontières | G82: Logiciel d'information de santé au niveau des districts 2 (DHIS2)
C83: Boîte à outils pour la planification de la préparation et la réponse | E83: Processus d'élimination globale de la rage chez le chien (GDREP) | G83: EMPRES Système mondial d'information sur les maladies animales (EMPRES-i)
C84: Outil par étapes pour l'éradication de la brucellose (STEB) | E84: Méthodologie d'analyse de la législation relative à la RAM dans le secteur de l'alimentation et de l'agriculture | G84: Surveillance intégrée de la maladie et la riposte (IDSR)
C85: Approche par étapes pour l'élimination de la rage (SARE) | E85: Analyse des écarts PVS de l'OMSA | G85: Application de suivi des expositions et des cas de rage (REACT)
E86: Recueil d'informations sur les postes-frontière uniques | G86: Initiative de veille épidémique à sources ouvertes (EIOS)
C87: E-7 Transport et interprétation des laboratoires | E87: Approche par étapes pour l'élimination de la rage (SARE)
G88: ME-9 Exigences internationales en matière de notification
C89: Outil d'évaluation informatique pour les laboratoires APHL | E89: PL-8 Planification coordonnée de la communication
C90: Évaluation des collaborations au sein d'un système de surveillance multisectoriel (EcoSur) | G90: Event Mobile Application (EMAi)
C91: Analyse du réseau des infrastructures de laboratoire (LINA) | E91: Stratégies de communication et de coordination multisectorielles aux frontières | G91: Surveillance intégrée de la maladie et la riposte (IDSR)
C92: Analyse des écarts PVS de l'OMSA | E92: Glossaire du Programme conjoint européen «Une seule santé» (OHEJP) | G92: Évaluation externe conjointe (EEC)
C93: Boîte à outils pour la planification de la préparation et la réponse | E93: Codex sur la surveillance «Une seule santé» | G93: Application Alerts du WAHIS de l'OMSA
C94: Outil d'évaluation des réseaux de surveillance (OASIS) | E94: Boîte à outils pour la planification de la préparation et la réponse
G95: ME-10 Visualisation et analyse coordonnées des données
C96: E-8 Évaluation des ressources humaines
G97: Afyadata
C98: Cadre de surveillance basé sur les événements des CDC en Afrique | G98: Logiciel d'information de santé au niveau des districts 2 (DHIS2)
C99: Guide de discussion sur les capacités sanitaires aux frontières (BHCDG) | G99: Système électronique intégré de surveillance des maladies (EIDSS)
C100: Directives relatives aux compétences des professionnels de laboratoire de santé publique: CDC et Association des laboratoires de santé publique | G100: FoodChain-Lab (FCL)
C101: Outil de cartographie épidémiologique (EMT) | G101: Surveillance intégrée de la maladie et la riposte (IDSR)
C102: Évaluation des collaborations au sein d'un système de surveillance multisectoriel (EcoSur) | G102: Analyse du réseau des infrastructures de laboratoire (LINA)
C103: Processus d'élimination globale de la rage chez le chien (GDREP) | G103: Application Alerts du WAHIS de l'OMSA
C104: Surveillance intégrée de la maladie et la riposte (IDSR) | G104: Application de suivi des expositions et des cas de rage (REACT)
C105: Cadre de compétences de leadership pour les laboratoires (GLLP) | G105: Système de gestion et d'analyse de la surveillance et la réponse aux foyers épidémiques (SORMAS)
C106: Plan d'action national pour la sécurité sanitaire (PANSS) | G106: Suite pour une biosurveillance électronique automatisée mondiale (SAGES)
C107: Boîte à outils de cartographie et de ressources des systèmes «Une seule santé» (OH-SMART)
C108: Outil d'évaluation des réseaux de surveillance (OASIS)

Sheet Backbone
A1: NOM DE LA RESSOURCE | B1: Catégorie | C1: Emplacement dans l'outil | D1: Description | E1: Niveau N1-Niveau 1 N2-Niveau 2 N3-Niveau 3 | F1: Ressources les mieux adaptées ou Autres ressources intéressantes | G1: État | H1: Accessibilité | I1: Langue | J1: Facilité d'utilisation | K1: Flexibilité | L1: Besoins de données | M1: Analyse des données | N1: Acceptabilité | O1: «Une seule santé» | P1: Impact | Q1: SCORE | R1: Type de ressource | S1: Caractère général de la ressource
A2: Cadre de surveillance basé sur les événements des CDC en Afrique | B2: Planification préalable | C2: PP-1.1 | D2: Des coordonnateurs, des «champions» ou des groupes de travail techniques ont été identifiés dans tous les secteurs participants au niveau national pour planifier la mise en œuvre de la surveillance coordonnée. | E2: N1 | F2: AUTRE | G2: PASS | H2: 8 | I2: 6 | J2: 8.2 | K2: 8.3 | L2: 6.1 | M2: 3.5 | N2: 4 | O2: 7 | P2: 6 | Q2: 0.6322222222 | R2: Document d'orientation | S2: «Une seule santé»; Généralisée
C3: PP-3.1 | D3: Les objectifs, les rôles et les responsabilités de tous les secteurs participant au système de surveillance coordonné sont accordés au niveau national | E3: N1 | F3: AUTRE
D4: Les objectifs, les rôles et les responsabilités de tous les secteurs participant au système de surveillance coordonné sont accordés et étendus à tous les niveaux du pays | E4: N2 | F4: AUTRE
D5: Les objectifs, les rôles et les responsabilités du système de surveillance coordonné ont été réévalués pour refléter les besoins réels du système de surveillance coordonné | E5: N3 | F5: AUTRE
B6: Évaluation | C6: E-2.1 | D6: Les interconnexions entre les systèmes de surveillance des zoonoses actuellement priorisées ont été évaluées entre les secteurs | E6: N1 | F6: AUTRE
C7: E-3.2 | D7: Les plans de surveillance existants (y compris les définitions de cas, les protocoles et les procédures opérationnelles standard) relatifs au système de surveillance coordonné ont été évalués en vue d'une consolidation et d'une interconnexion potentielles au niveau national | E7: N1 | F7: AUTRE
D8: Les plans de surveillance existants (y compris les définitions de cas, les protocoles et les procédures opérationnelles standard) relatifs au système de surveillance coordonné ont été évalués en vue d'une consolidation et d'une interconnexion potentielles à tous les niveaux du pays | E8: N3 | F8: AUTRE
C9: E-6.1 | D9: Des évaluations ont été réalisées pour identifier les exigences, les compétences, les besoins et les lacunes à tous les niveaux du pays en matière de ressources humaines. | E9: N3 | F9: AUTRE
B10: Planification | C10: PLG | D10: N/A | E10: N/A | F10: N/A
C11: PL-3.1 | D11: Un examen multisectoriel des cadres nationaux et des plans stratégiques liés au système de surveillance coordonné a été réalisé à des fins de planification. | E11: N1 | F11: AUTRE
D12: Les cadres et les plans stratégiques du système de surveillance coordonné ont été consolidés et interconnectés sur la base d'une évaluation à tous les niveaux du pays | E12: N2 | F12: AUTRE
C13: PL-3.2 | D13: Un examen multisectoriel des plans de surveillance nationaux (y compris des plans d'action/opérationnels, des définitions de cas, des protocoles et des procédures opérationnelles standard) liés au système de surveillance coordonné a été effectué à des fins de planification. | E13: N1 | F13: AUTRE
D14: Des plans de surveillance (y compris des plans d'action/opérationnels, des définitions de cas, des protocoles et des procédures opérationnelles standard) pour le système de surveillance coordonné ont été renforcés et interconnectés en vue d'un partage des données à tous les niveaux du pays | E14: N2 | F14: AUTRE
B15: Mise en œuvre | C15: ME-2.1 | D15: Des coordonnateurs ou des groupes de travail techniques se réunissent de façon ad hoc | E15: N1 | F15: AUTRE
C16: ME-2.1 | D16: Des coordonnateurs ou des groupes de travail techniques se réunissent régulièrement et abordent les questions prioritaires au fur et à mesure qu'elles se présentent | E16: N2 | F16: AUTRE
C17: ME-2.1 | D17: Des groupes de travail techniques effectuent un examen régulier et optimisent les activités de surveillance coordonnées | E17: N3 | F17: AUTRE
C18: ME-4.1 | D18: Le système de surveillance coordonné fait l'objet d'un projet pilote dans des zones ciblées | E18: N1 | F18: AUTRE
C19: ME-4.1 | D19: Le système de surveillance coordonné a été étendu à d'autres domaines sur la base de mises en œuvre pilotes | E19: N2 | F19: AUTRE
C20: ME-4.1 | D20: Le système de surveillance coordonné est un programme à l'échelon national | E20: N3 | F20: AUTRE
A21: AfyaData | B21: Mise en œuvre | C21: ME-3.1 | D21: Il existe un mécanisme de partage de données entre les secteurs au niveau national | E21: N1 | F21: LES MIEUX ADAPTÉES | G21: PASS | H21: 7.3 | I21: 10 | J21: 8.2 | K21: 7.3 | L21: 7.6 | M21: 8.8 | N21: 5.5 | O21: 7.6 | P21: 7 | Q21: =SUM(H21:P21)/90 -> 0.77 | R21: Matériel ou logiciel | S21: «Une seule santé»; Généralisée
C22: ME-3.1 | D22: Il existe un mécanisme de partage des données entre les secteurs à tous les niveaux du pays | E22: N2 | F22: LES MIEUX ADAPTÉES | H22: 7.3 | I22: 10 | J22: 8.2 | K22: 7.3 | L22: 7.6 | M22: 8.8 | N22: 5.5 | O22: 7.6 | P22: 7 | Q22: 0.77
C23: ME-3.2 | D23: Une structure et un lieu sont prévus pour stocker et conserver les données de plusieurs secteurs au niveau national. | E23: N1 | F23: LES MIEUX ADAPTÉES | H23: 7.3 | I23: 10 | J23: 8.2 | K23: 7.3 | L23: 7.6 | M23: 8.8 | N23: 5.5 | O23: 7.6 | P23: 7 | Q23: 0.77
C24: ME-3.2 | D24: Une structure et un lieu sont prévus pour stocker et conserver les données de plusieurs secteurs à tous les niveaux du pays | E24: N2 | F24: LES MIEUX ADAPTÉES | H24: 7.3 | I24: 10 | J24: 8.2 | K24: 7.3 | L24: 7.6 | M24: 8.8 | N24: 5.5 | O24: 7.6 | P24: 7 | Q24: 0.77
C25: ME-4.1 | D25: Le système de surveillance coordonné fait l'objet d'un projet pilote dans des zones ciblées | E25: N1 | F25: AUTRE | H25: 7.3 | I25: 10 | J25: 8.2 | K25: 7.3 | L25: 7.6 | M25: 8.8 | N25: 5.5 | O25: 7.6 | P25: 7 | Q25: 0.77
C26: ME-4.1 | D26: Le système de surveillance coordonné a été étendu à d'autres domaines sur la base de mises en œuvre pilotes | E26: N2 | F26: AUTRE | H26: 7.3 | I26: 10 | J26: 8.2 | K26: 7.3 | L26: 7.6 | M26: 8.8 | N26: 5.5 | O26: 7.6 | P26: 7 | Q26: 0.77
C27: ME-4.2 | D27: Les données sont partagées de manière informelle ou formelle de façon ad hoc au niveau national | E27: N1 | F27: LES MIEUX ADAPTÉES | H27: 7.3 | I27: 10 | J27: 8.2 | K27: 7.3 | L27: 7.6 | M27: 8.8 | N27: 5.5 | O27: 7.6 | P27: 7 | Q27: 0.77
C28: ME-4.2 | D28: Les données sont partagées de manière informelle ou formelle, de façon régulière et en temps utile, à tous les niveaux du pays | E28: N2 | F28: LES MIEUX ADAPTÉES | H28: 7.3 | I28: 10 | J28: 8.2 | K28: 7.3 | L28: 7.6 | M28: 8.8 | N28: 5.5 | O28: 7.6 | P28: 7 | Q28: 0.77
C29: ME-5.1 | D29: Les informations sont partagées de manière ad hoc avec les parties prenantes concernées | E29: N1 | F29: LES MIEUX ADAPTÉES | H29: 7.3 | I29: 10 | J29: 8.2 | K29: 7.3 | L29: 7.6 | M29: 8.8 | N29: 5.5 | O29: 7.6 | P29: 7 | Q29: 0.77
C30: ME-5.3 | D30: Des données de surveillance coordonnée sont utilisées pour générer des résultats (par exemple, des chiffres, des graphiques, des rapports ou des bulletins) qui sont diffusés au niveau national | E30: N1 | F30: LES MIEUX ADAPTÉES | H30: 7.3 | I30: 10 | J30: 8.2 | K30: 7.3 | L30: 7.6 | M30: 8.8 | N30: 5.5 | O30: 7.6 | P30: 7 | Q30: 0.77
A31: Surveillance intégrée de la résistance aux antimicrobiens (AGISAR) | B31: Planification | C31: PLG | D31: N/A | E31: N/A | F31: N/A | G31: PASS | H31: 8.5 | I31: 6 | J31: 5.3 | K31: 3 | L31: 6.8 | M31: 2 | N31: 5.5 | O31: 10 | P31: 5 | Q31: 0.5788888889 | R31: Document d'orientation | S31: «Une seule santé»; spécifique d'une maladie/menace
B32: Mise en œuvre | C32: IG | D32: N/A | E32: N/A | F32: N/A
A33: Cadre pour le renforcement de la prévention et du contrôle de l'anthrax | B33: Évaluation | C33: E-5.1 | D33: Des évaluations de laboratoires ont été utilisées pour identifier des laboratoires de référence nationaux ou internationaux qualifiés capables d'effectuer des tests pour soutenir les activités de surveillance coordonnées | E33: N1 | F33: AUTRE | G33: PASS | H33: 9.1 | I33: 10 | J33: 8.6 | K33: 4.7 | L33: 9.2 | M33: 2 | N33: 6.3 | O33: 4.3 | P33: 6 | Q33: =SUM(H33:P33)/90 -> 0.6688888889 | R33: Document d'orientation | S33: «Une seule santé»; spécifique d'une maladie/menace
B34: Planification | C34: PL-2.1 | D34: Les éléments de données communs sont identifiés et accordés au sein de chaque secteur participant dans le but de remplir les objectifs analytiques communs du système de surveillance coordonné au niveau national | E34: N1 | F34: AUTRE
C35: PL-3.1 | D35: Un examen multisectoriel des cadres nationaux et des plans stratégiques liés au système de surveillance coordonné a été réalisé à des fins de planification. | E35: N1 | F35: AUTRE
C36: PL-3.2 | D36: Un examen multisectoriel des plans de surveillance nationaux (y compris des plans d'action/opérationnels, des définitions de cas, des protocoles et des procédures opérationnelles standard) liés au système de surveillance coordonné a été effectué à des fins de planification. | E36: N1 | F36: AUTRE
B37: Suivi et évaluation | C37: SE-3.1 | D37: Il existe une méthodologie de gestion de la qualité des données | E37: N1 | F37: AUTRE
A38: Outil d'évaluation informatique pour les laboratoires APHL | B38: Évaluation | C38: E-3.4 | D38: Des exercices basiques de cartographie des infrastructures (telles que définies dans le GTZ CH 4.1) ont été utilisés pour décrire la structure et les connexions sectorielles et intersectorielles | E38: N1 | F38: AUTRE | G38: 1 EVAL | H38: 8.4 | I38: 6 | J38: 8 | K38: 10 | L38: 6 | M38: 4.5 | N38: 2 | O38: 2.8 | P38: 6 | Q38: =SUM(H38:P38)/90 -> 0.5966666667 | R38: Outil ou processus dirigé/facilité | S38: Spécifique du secteur; Généralisée
D39: La cartographie des infrastructures (telle que décrite au point 4.1 du GTZ) a été utilisée pour décrire la plupart des domaines à cartographier | E39: N2 | F39: AUTRE | J39: 8 | K39: 10 | L39: 6 | M39: 4.5 | N39: 2 | O39: 2.8 | P39: 6 | Q39: 0.4366666667
C40: E-5.2 | D40: Les fournitures, les chaînes de transport et l'interprétation des résultats des laboratoires ont été évaluées pour être harmonisées entre les secteurs participants au niveau national | E40: N1 | F40: AUTRE | J40: 8 | K40: 10 | L40: 6 | M40: 4.5 | N40: 2 | O40: 2.8 | P40: 6 | Q40: 0.4366666667
D41: L'harmonisation des fournitures, des chaînes de transport et de l'interprétation des résultats des laboratoires entre les secteurs participants a été évaluée à tous les niveaux du pays | E41: N2 | F41: AUTRE | J41: 8 | K41: 10 | L41: 6 | M41: 4.5 | N41: 2 | O41: 2.8 | P41: 6 | Q41: 0.4366666667
A42: Outil d'autoévaluation APHL pour l'informatique | B42: Évaluation | C42: E-3.4 | D42: Des exercices basiques de cartographie des infrastructures (telles que définies dans le GTZ CH 4.1) ont été utilisés pour décrire la structure et les connexions sectorielles et intersectorielles | E42: N1 | F42: AUTRE | G42: PASS | H42: 9.1 | I42: 6.7 | J42: 8.3 | K42: 8.4 | L42: 8.1 | M42: 8.5 | N42: 5 | O42: 6.1 | P42: 4.3 | Q42: 0.7166666667 | R42: Document d'orientation | S42: Spécifique du secteur; Généralisée
D43: La cartographie des infrastructures (telle que décrite au point 4.1 du GTZ) a été utilisée pour décrire la plupart des domaines à cartographier | E43: N2 | F43: AUTRE | I43: 6.7 | J43: 8.3 | K43: 8.4 | L43: 8.1 | M43: 8.5 | N43: 5 | O43: 6.1 | P43: 4.3 | Q43: 0.6155555556
B44: Mise en œuvre | C44: ME-3.3 | D44: Il existe des mesures de confidentialité et de sécurité des données visant à protéger les données de surveillance coordonnée au niveau national | E44: N1 | F44: AUTRE | I44: 6.7 | J44: 8.3 | K44: 8.4 | L44: 8.1 | M44: 8.5 | N44: 5 | O44: 6.1 | P44: 4.3 | Q44: 0.6155555556
C45: ME-3.3 | D45: Il existe des mesures de confidentialité et de sécurité des données visant à protéger les données de surveillance coordonnée à tous les niveaux du pays | E45: N2 | F45: AUTRE | I45: 6.7 | J45: 8.3 | K45: 8.4 | L45: 8.1 | M45: 8.5 | N45: 5 | O45: 6.1 | P45: 4.3 | Q45: 0.6155555556
C46: ME-3.3 | D46: Il existe des mesures de confidentialité et de sécurité des données visant à protéger les données de surveillance coordonnée, qui ont été évaluées et sont considérées comme étant conformes aux objectifs du système de surveillance coordonné | E46: N3 | F46: AUTRE | I46: 6.7 | J46: 8.3 | K46: 8.4 | L46: 8.1 | M46: 8.5 | N46: 5 | O46: 6.1 | P46: 4.3 | Q46: 0.6155555556
A47: Outil de la FAO d’évaluation de la surveillance nationale de l'antibiorésistance et des compétences des laboratoires (ATLASS) | B47: Évaluation | C47: AG | D47: N/A | E47: N/A | F47: N/A | G47: PASS | H47: 7.2 | I47: 10 | J47: 5.6 | K47: 7.3 | L47: 7.3 | M47: 5.2 | N47: 8.7 | O47: 5.6 | P47: 7 | Q47: =SUM(H47:P47)/90 -> 0.71 | R47: Outil ou processus dirigé/facilité | S47: «Une seule santé»; spécifique d'une maladie/menace
C48: E-2.1 | D48: Les interconnexions entre les systèmes de surveillance des zoonoses actuellement priorisées ont été évaluées entre les secteurs | E48: N1 | F48: AUTRE
D49: Les interconnexions entre les systèmes de surveillance actuels ont été évaluées parmi les secteurs et à tous les niveaux du pays | E49: N2 | F49: AUTRE
D50: Les interconnexions entre les systèmes de surveillance coordonnés ont été évaluées et sont considérées comme étant conformes aux objectifs du système de surveillance coordonné. | E50: N3 | F50: AUTRE
A51: Guide de discussion sur les capacités sanitaires aux frontières (BHCDG) | B51: Évaluation | C51: E-1.1 | D51: Des parties prenantes travaillant dans les domaines de la surveillance, de l'épidémiologie, des laboratoires et du partage d'informations ont été identifiées | E51: N1 | F51: LES MIEUX ADAPTÉES | G51: PASS | H51: 8.8 | I51: 6.7 | J51: 7.6 | K51: 9 | L51: 7 | M51: 3.8 | N51: 8 | O51: 8.4 | P51: 6 | Q51: =SUM(H51:P58)/90 -> 0.7255555556 | R51: Document d'orientation | S51: «Une seule santé»; spécifique d'une maladie/menace
D52: L'analyse des parties prenantes a été utilisée pour identifier les participants à tous les niveaux du pays | E52: N2 | F52: LES MIEUX ADAPTÉES
C53: E-2.1 | D53: Les interconnexions entre les systèmes de surveillance des zoonoses actuellement priorisées ont été évaluées entre les secteurs | E53: N1 | F53: AUTRE
D54: Les interconnexions entre les systèmes de surveillance actuels ont été évaluées parmi les secteurs et à tous les niveaux du pays | E54: N2 | F54: AUTRE
C55: E-3.1 | D55: Les cadres et plans stratégiques existants relatifs au système de surveillance coordonné ont été évalués en vue d'une consolidation et d'une interconnexion potentielles au niveau national | E55: N1 | F55: LES MIEUX ADAPTÉES
C56: E-3.2 | D56: Les plans de surveillance existants (y compris les définitions de cas, les protocoles et les procédures opérationnelles standard) relatifs au système de surveillance coordonné ont été évalués en vue d'une consolidation et d'une interconnexion potentielles au niveau national | E56: N1 | F56: LES MIEUX ADAPTÉES
C57: E-3.3 | D57: Les plans d'action/opérationnels existants relatifs au système de surveillance coordonné ont été évalués en vue d'une consolidation et d'une interconnexion potentielles au niveau national | E57: N1 | F57: AUTRE
C58: E-6.1 | D58: Des évaluations ont été réalisées pour identifier les exigences, les compétences, les besoins et les lacunes au niveau national en matière de ressources humaines | E58: N1 | F58: LES MIEUX ADAPTÉES
A59: Directives relatives aux compétences des professionnels de laboratoire de santé publique: CDC et Association des laboratoires de santé publique | B59: Évaluation | C59: E-6.1 | D59: Des évaluations ont été réalisées pour identifier les exigences, les compétences, les besoins et les lacunes au niveau national en matière de ressources humaines | E59: N1 | F59: AUTRE | G59: PASS | H59: 9 | I59: 7.8 | J59: 9.2 | K59: 9.1 | L59: 6.3 | M59: 3 | N59: 2 | O59: 7.8 | P59: 4 | Q59: =SUM(H59:P59)/90 -> 0.6466666667 | R59: Document d'orientation | S59: Spécifique du secteur; Généralisée
D60: Des évaluations ont été réalisées pour identifier les exigences, les compétences, les besoins et les lacunes à tous les niveaux du pays en matière de ressources humaines. | E60: N3 | F60: AUTRE
A61: Stratégies de communication et de coordination multisectorielles aux frontières | B61: Planification | C61: PL-2.1 | D61: Les éléments de données communs sont normalisés entre les secteurs participants sur la base des objectifs analytiques communs du système de surveillance coordonné et sont conformes aux normes internationales en matière de données | E61: N3 | F61: AUTRE | H61: 8.9 | I61: 6 | J61: 7.6 | K61: 9 | L61: 5.6 | M61: 3.5 | N61: 4 | O61: 8.3 | P61: 8 | Q61: =SUM(H61:P61)/90 -> 0.6766666667 | R61: Outil ou processus dirigé/facilité | S61: «Une seule santé»; Généralisée
C62: PL-3.1 | D62: Les cadres et les plans stratégiques révisés du système de surveillance coordonné ont été alignés sur les recommandations et les normes internationales. | E62: N3 | F62: AUTRE
C63: PL-6.1 | D63: Les cadres juridiques révisés du système de surveillance coordonné ont été alignés sur les recommandations et les normes internationales. | E63: N3 | F63: LES MIEUX ADAPTÉES
C64: PL-7.1 | D64: Il existe une stratégie et/ou un plan de communication (comprenant une terminologie et une messagerie) qui régissent la communication avec les parties prenantes et le public pour le système de surveillance coordonné | E64: N3 | F64: LES MIEUX ADAPTÉES
A65: Logiciel d'information de santé au niveau des districts 2 (DHIS2) | B65: Mise en œuvre | C65: ME-3.1 | D65: Il existe un mécanisme de partage de données entre les secteurs au niveau national | E65: N1 | F65: LES MIEUX ADAPTÉES | G65: PASS | H65: 8.8 | I65: 8.7 | J65: 8 | K65: 8.7 | L65: 9.3 | M65: 9 | N65: 10 | O65: 7.8 | P65: 7 | Q65: =SUM(H65:P65)/90 -> 0.8588888889 | R65: Matériel ou logiciel | S65: Spécifique du secteur; Généralisée
C66: ME-3.1 | D66: Il existe un mécanisme de partage des données entre les secteurs à tous les niveaux du pays | E66: N2 | F66: LES MIEUX ADAPTÉES
C67: ME-3.1 | D67: Il existe un mécanisme de partage de données qui est accessible, fonctionnel et utilisable par tous les secteurs participants | E67: N3 | F67: AUTRE
C68: ME-3.2 | D68: Une structure et un lieu sont prévus pour stocker et conserver les données de plusieurs secteurs au niveau national. | E68: N1 | F68: AUTRE
C69: ME-3.2 | D69: Une structure et un lieu sont prévus pour stocker et conserver les données de plusieurs secteurs à tous les niveaux du pays | E69: N2 | F69: AUTRE
C70: ME-3.2 | D70: Il existe une structure et un endroit pour stocker et conserver les données de tous les secteurs concernés par la surveillance qui sont accessibles, fonctionnels et utilisables par tous les secteurs participants | E70: N3 | F70: AUTRE
C71: ME-3.3 | D71: Les données de surveillance coordonnée sont protégées par les mesures de confidentialité et de sécurité des données implantées au niveau national | E71: N1 | F71: LES MIEUX ADAPTÉES
C72: ME-3.3 | D72: Les données de surveillance coordonnée sont protégées par les mesures de confidentialité et de sécurité des données implantées à tous les niveaux du pays | E72: N2 | F72: LES MIEUX ADAPTÉES
C73: ME-3.3 | D73: Les données de surveillance coordonnée qui ont été évaluées et sont considérées comme étant conformes aux objectifs du système de surveillance coordonné sont protégées par les mesures de confidentialité et de sécurité des données implantées | E73: N3 | F73: LES MIEUX ADAPTÉES
C74: ME-4.2 | D74: Les données sont partagées de manière informelle ou formelle de façon ad hoc au niveau national | E74: N1 | F74: LES MIEUX ADAPTÉES
C75: ME-4.2 | D75: Les données sont partagées de manière informelle ou formelle, de façon régulière et en temps utile, à tous les niveaux du pays | E75: N2 | F75: LES MIEUX ADAPTÉES
C76: ME-4.2 | D76: Les données sont partagées de façon systématique et régulière et en temps utile entre tous les secteurs participants par le biais d'une ou plusieurs plateforme(s) interopérable(s) ou conjointe(s) | E76: N3 | F76: LES MIEUX ADAPTÉES
C77: ME-5.1 | D77: Les informations sont partagées de manière ad hoc avec les parties prenantes concernées | E77: N1 | F77: LES MIEUX ADAPTÉES
C78: ME-5.1 | D78: Il existe un partage régulier des informations avec les parties prenantes concernées | E78: N2 | F78: LES MIEUX ADAPTÉES
C79: ME-5.1 | D79: Il existe un partage régulier et en temps utile des informations avec les parties prenantes concernées, y compris les entités transfrontalières, régionales et internationales | E79: N3 | F79: AUTRE
C80: ME-5.3 | D80: Des données de surveillance coordonnée sont utilisées pour générer des résultats (par exemple, des chiffres, des graphiques, des rapports ou des bulletins) qui sont diffusés au niveau national | E80: N1 | F80: LES MIEUX ADAPTÉES
D81: Des données de surveillance coordonnée sont utilisées pour générer des résultats (par exemple, des chiffres, des graphiques, des rapports ou des bulletins) qui sont diffusés aux parties prenantes à tous les niveaux du pays | E81: N2 | F81: LES MIEUX ADAPTÉES
D82: Les données de surveillance coordonnée, y compris les rapports de suivi et d'évaluation (S&E), sont utilisées pour générer des résultats qui orientent la réponse, les politiques et la programmation | E82: N3 | F82: LES MIEUX ADAPTÉES
A83: Évaluation ECDC des systèmes de suivi et de surveillance de la qualité des données - Manuel des méthodes et des applications | B83: Évaluation | C83: E-2.1 | D83: Les interconnexions entre les systèmes de surveillance des zoonoses actuellement priorisées ont été évaluées entre les secteurs | E83: N1 | F83: AUTRE | G83: PASS | H83: 8.2 | I83: 6 | J83: 6.4 | K83: 7.3 | L83: 7.7 | M83: 4.5 | N83: 5.3 | O83: 6.2 | P83: 8 | Q83: =SUM(H83:P83)/90 -> 0.6622222222 | R83: Document d'orientation | S83: Spécifique du secteur; Généralisée
D84: Les interconnexions entre les systèmes de surveillance actuels ont été évaluées parmi les secteurs et à tous les niveaux du pays | E84: N2 | F84: AUTRE
D85: Les interconnexions entre les systèmes de surveillance coordonnés ont été évaluées et sont considérées comme étant conformes aux objectifs du système de surveillance coordonné. | E85: N3 | F85: AUTRE
C86: E-3.2 | D86: Les plans de surveillance existants (y compris les définitions de cas, les protocoles et les procédures opérationnelles standard) relatifs au système de surveillance coordonné ont été évalués en vue d'une consolidation et d'une interconnexion potentielles au niveau national | E86: N1 | F86: AUTRE
D87: Les plans de surveillance existants (y compris les définitions de cas, les protocoles et les procédures opérationnelles standard) relatifs au système de surveillance coordonné ont été évalués en vue d'une consolidation et d'une interconnexion potentielles à tous les niveaux du pays | E87: N3 | F87: AUTRE
B88: Planification | C88: PL-3.2 | D88: Un examen multisectoriel des plans de surveillance nationaux (y compris des plans d'action/opérationnels, des définitions de cas, des protocoles et des procédures opérationnelles standard) liés au système de surveillance coordonné a été effectué à des fins de planification. | E88: N1 | F88: AUTRE
D89: Des plans de surveillance (y compris des plans d'action/opérationnels, des définitions de cas, des protocoles et des procédures opérationnelles standard) pour le système de surveillance coordonné ont été renforcés et interconnectés en vue d'un partage des données à tous les niveaux du pays | E89: N2 | F89: AUTRE
D90: Les plans de surveillance (y compris les plans d'action/opérationnels, les définitions de cas, les protocoles et les procédures opérationnelles standard) révisés pour le système de surveillance coordonné ont été alignés sur les directives et recommandations internationales. | E90: N3 | F90: AUTRE
B91: Suivi et évaluation | C91: SE-2.1 | D91: Il existe un plan de suivi et d'évaluation qui est conforme aux objectifs du système de surveillance coordonné | E91: N1 | F91: AUTRE
C92: SE-2.1 | D92: Le plan de suivi et d'évaluation est implanté pour surveiller les performances et les avancées du système de surveillance coordonné | E92: N2 | F92: AUTRE
C93: SE-2.1 | D93: Les résultats du suivi et de l'évaluation améliorent ou étendent de manière itérative le système de surveillance coordonné et s'alignent sur les recommandations et les normes internationales. | E93: N3 | F93: AUTRE
C94: SE-3.1 | D94: Il existe une méthodologie de gestion de la qualité des données | E94: N1 | F94: LES MIEUX ADAPTÉES
C95: SE-3.1 | D95: La qualité des données a été testée et considérée comme étant conforme aux objectifs du système de surveillance coordonné | E95: N2 | F95: AUTRE
C96: SE-3.1 | D96: La qualité des données est conforme aux normes et recommandations internationales | E96: N3 | F96: AUTRE
A97: Outil ECDC pour l'établissement des priorités en matière de menaces de maladies infectieuses | B97: Planification préalable | C97: PP-2.1 | D97: Il existe une liste de zoonoses priorisées à intégrer dans un système de surveillance coordonné | E97: N1 | F97: LES MIEUX ADAPTÉES | G97: PASS | H97: 9.8 | I97: 10 | J97: 8 | K97: 8.7 | L97: 7.1 | M97: 4.5 | N97: 8 | O97: 8.5 | P97: 9 | Q97: =SUM(H97:P97)/90 -> 0.8177777778 | R97: Outil d'autoévaluation | S97: Spécifique du secteur; Généralisée
D98: Une liste des zoonoses est largement diffusée aux niveaux infra-national et communautaire | E98: N2 | F98: LES MIEUX ADAPTÉES
D99: Une liste des zoonoses est établie en utilisant une approche multisectorielle «Une seule santé». Une telle approche impliquerait tous les secteurs concernés dans un processus de priorisation fondé sur des preuves, transparent et reproductible. | E99: N3 | F99: LES MIEUX ADAPTÉES
A100: Évaluation des collaborations au sein d'un système de surveillance multisectoriel (EcoSur) | B100: Planification préalable | C100: PPG | D100: N/A | E100: N/A | F100: N/A | G100: PASS | H100: 8.3 | I100: 6 | J100: 8.5 | K100: 7.8 | L100: 8.3 | M100: 6.7 | N100: 3.3 | O100: 9.1 | P100: 4.7 | Q100: =SUM(H100:P100)/90 -> 0.6966666667 | R100: Outil ou processus dirigé/facilité | S100: «Une seule santé»; Généralisée
C101: PP-1.1 | D101: Des coordonnateurs, des «champions» ou des groupes de travail techniques ont été identifiés dans tous les secteurs participants au niveau national pour planifier la mise en œuvre de la surveillance coordonnée | E101: N1 | F101: AUTRE
D102: Des coordonnateurs, des «champions» ou des groupes de travail techniques ont été identifiés dans tous les secteurs participants et à tous les niveaux du pays pour planifier la mise en œuvre de la surveillance coordonnée. | E102: N2 | F102: AUTRE
D103: Des coordonnateurs, des «champions» ou des groupes de travail techniques (y compris des coordonnateurs ou des «champions» identifiés) chargés de la surveillance coordonnée ont été institutionnalisés (par exemple, par le biais d'un organe directeur tel qu'un MCM) | E103: N3 | F103: AUTRE
C104: PP-3.1 | D104: Les objectifs, les rôles et les responsabilités de tous les secteurs participant au système de surveillance coordonné sont accordés et étendus à tous les niveaux du pays | E104: N2 | F104: LES MIEUX ADAPTÉES
C105: PP-3.1 | D105: Les objectifs, les rôles et les responsabilités du système de surveillance coordonné ont été réévalués pour refléter les besoins réels du système de surveillance coordonné | E105: N3 | F105: LES MIEUX ADAPTÉES
B106: Évaluation | C106: AG | D106: N/A | E106: N/A | F106: N/A
C107: E-1.1 | D107: Des parties prenantes travaillant dans les domaines de la surveillance, de l'épidémiologie, des laboratoires et du partage d'informations ont été identifiées | E107: N1 | F107: AUTRE
D108: L'analyse des parties prenantes a été utilisée pour identifier les participants à tous les niveaux du pays | E108: N2 | F108: AUTRE
D109: Les rôles et responsabilités des parties prenantes ont été institutionnalisés et adoptés dans les politiques | E109: N3 | F109: AUTRE
C110: E-2.1 | D110: Les interconnexions entre les systèmes de surveillance des zoonoses actuellement priorisées ont été évaluées entre les secteurs | E110: N1 | F110: AUTRE
D111: Les interconnexions entre les systèmes de surveillance actuels ont été évaluées parmi les secteurs et à tous les niveaux du pays | E111: N2 | F111: AUTRE
D112: Les interconnexions entre les systèmes de surveillance coordonnés ont été évaluées et sont considérées comme étant conformes aux objectifs du système de surveillance coordonné. | E112: N3 | F112: AUTRE
C113: E-2.2 | D113: Les cadres juridiques (règles, politiques, directives et réglementations, y compris les normes internationales) qui régissent les normes d'éthique et de confidentialité en matière de surveillance et de partage des données ont été évalués. | E113: N1 | F113: LES MIEUX ADAPTÉES
D114: Les cadres juridiques (règles, politiques, directives et réglementations, y compris les normes internationales) qui régissent les normes d'éthique et de confidentialité en matière de surveillance et de partage des données sont évalués à tous les niveaux du pays | E114: N3 | F114: LES MIEUX ADAPTÉES
C115: E-3.1 | D115: Les cadres et plans stratégiques existants relatifs au système de surveillance coordonné ont été évalués en vue d'une consolidation et d'une interconnexion potentielles au niveau national | E115: N1 | F115: AUTRE
D116: Les cadres et plans stratégiques relatifs au système de surveillance coordonné ont été évalués en vue d'une consolidation et d'une interconnexion potentielles à tous les niveaux du pays | E116: N3 | F116: AUTRE
C117: E-3.2 | D117: Les plans de surveillance existants (y compris les définitions de cas, les protocoles et les procédures opérationnelles standard) relatifs au système de surveillance coordonné ont été évalués en vue d'une consolidation et d'une interconnexion potentielles au niveau national | E117: N1 | F117: AUTRE
D118: Les plans de surveillance existants (y compris les définitions de cas, les protocoles et les procédures opérationnelles standard) relatifs au système de surveillance coordonné ont été évalués en vue d'une consolidation et d'une interconnexion potentielles à tous les niveaux du pays | E118: N3 | F118: AUTRE
C119: E-3.3 | D119: Les plans d'action/opérationnels existants relatifs au système de surveillance coordonné ont été évalués en vue d'une consolidation et d'une interconnexion potentielles au niveau national | E119: N1 | F119: AUTRE
D120: Les plans d'action/opérationnels relatifs au système de surveillance coordonné ont été évalués en vue d'une consolidation et d'une interconnexion potentielles à tous les niveaux du pays | E120: N3 | F120: AUTRE
C121: E-3.4 | D121: Des exercices basiques de cartographie des infrastructures (telles que définies dans le GTZ CH 4.1) ont été utilisés pour décrire la structure et les connexions sectorielles et intersectorielles | E121: N1 | F121: AUTRE
D122: La cartographie des infrastructures (telle que décrite au point 4.1 du GTZ) a été utilisée pour décrire la plupart des domaines à cartographier | E122: N2 | F122: AUTRE
D123: La cartographie complète des infrastructures (telle que décrite au point 4.1 du GTZ) a été utilisée pour décrire la totalité des domaines à cartographier. | E123: N3 | F123: AUTRE
C124: E-4.1 | D124: Des évaluations économiques ont été utilisées pour déterminer les besoins financiers nationaux du système de surveillance coordonné | E124: N1 | F124: LES MIEUX ADAPTÉES
D125: Des évaluations économiques ont été utilisées pour déterminer les besoins financiers à tous les niveaux du pays du système de surveillance coordonné | E125: N3 | F125: LES MIEUX ADAPTÉES
C126: E-5.1 | D126: Des évaluations de laboratoires ont été utilisées pour identifier des laboratoires de référence nationaux ou internationaux qualifiés capables d'effectuer des tests pour soutenir les activités de surveillance coordonnées | E126: N1 | F126: LES MIEUX ADAPTÉES
D127: Des évaluations de laboratoires ont été utilisées pour identifier à tous les niveaux (y compris international) des laboratoires qualifiés capables d'effectuer des tests pour soutenir les activités de surveillance coordonnées | E127: N2 | F127: LES MIEUX ADAPTÉES
D128: Des évaluations de laboratoires ont été utilisées pour identifier un réseau de laboratoires qualifiés capables d'effectuer des tests pour soutenir les activités de surveillance coordonnées | E128: N3 | F128: LES MIEUX ADAPTÉES
C129: E-5.2 | D129: Les fournitures, les chaînes de transport et l'interprétation des résultats des laboratoires ont été évaluées pour être harmonisées entre les secteurs participants au niveau national | E129: N1 | F129: LES MIEUX ADAPTÉES
D130: L'harmonisation des fournitures, des chaînes de transport et de l'interprétation des résultats des laboratoires entre les secteurs participants a été évaluée à tous les niveaux du pays | E130: N2 | F130: LES MIEUX ADAPTÉES
D131: Le degré d'harmonisation dans les fournitures, les chaînes de transport et l'interprétation des résultats entre les secteurs participants a été évalué et considéré comme étant conforme aux objectifs du système de surveillance coordonné | E131: N3 | F131: LES MIEUX ADAPTÉES
C132: E-6.1 | D132: Des évaluations ont été réalisées pour identifier les exigences, les compétences, les besoins et les lacunes au niveau national en matière de ressources humaines | E132: N1 | F132: LES MIEUX ADAPTÉES
C133: E-6.1 | D133: Des évaluations ont été réalisées pour identifier les exigences, les compétences, les besoins et les lacunes à tous les niveaux du pays en matière de ressources humaines | E133: N3 | F133: LES MIEUX ADAPTÉES
B134: Planification | C134: PL-1.1 | D134: Les décideurs dans le domaine du système de surveillance coordonné ont été identifiés | E134: N1 | F134: AUTRE
C135: PL-2.1 | D135: Les éléments de données communs sont identifiés et accordés au sein de chaque secteur participant dans le but de remplir les objectifs analytiques communs du système de surveillance coordonné au niveau national | E135: N1 | F135: AUTRE
C136: PL-2.1 | D136: Les éléments de données communs sont identifiés et accordés au sein de chaque secteur participant dans le but de remplir les objectifs analytiques communs du système de surveillance coordonné à tous les niveaux du pays | E136: N2 | F136: AUTRE
A137: Cadre de collecte de données EFSA | B137: Planification | C137: PL-2.1 | D137: Les éléments de données communs sont identifiés et accordés au sein de chaque secteur participant dans le but de remplir les objectifs analytiques communs du système de surveillance coordonné à tous les niveaux du pays | E137: N2 | F137: AUTRE | G137: PASS | H137: 8.5 | I137: 4 | J137: 6.8 | K137: 9.3 | L137: 7.1 | M137: 5.5 | N137: 5 | O137: 8.3 | P137: 10 | Q137: =SUM(H137:P137)/90 -> 0.7166666667 | R137: Matériel ou logiciel | S137: «Une seule santé»; Généralisée
A138: Système électronique intégré de surveillance des maladies (EIDSS) | B138: Mise en œuvre | C138: ME-3.1 | D138: Il existe un mécanisme de partage de données entre les secteurs au niveau national | E138: N1 | F138: LES MIEUX ADAPTÉES | G138: PASS | H138: 6.8 | I138: 10 | J138: 8.4 | K138: 8.7 | L138: 9.1 | M138: 8 | N138: 7 | O138: 7.2 | P138: 10 | Q138: =SUM(H138:P138)/90 -> 0.8355555556 | R138: Matériel ou logiciel | S138: «Une seule santé»; Généralisée
C139: ME-3.1 | D139: Il existe un mécanisme de partage des données entre les secteurs à tous les niveaux du pays | E139: N2 | F139: LES MIEUX ADAPTÉES
C140: ME-3.1 | D140: Il existe un mécanisme de partage de données qui est accessible, fonctionnel et utilisable par tous les secteurs participants | E140: N3 | F140: LES MIEUX ADAPTÉES
C141: ME-3.2 | D141: Une structure et un lieu sont prévus pour stocker et conserver les données de plusieurs secteurs au niveau national. | E141: N1 | F141: LES MIEUX ADAPTÉES
C142: ME-3.2 | D142: Une structure et un lieu sont prévus pour stocker et conserver les données de plusieurs secteurs à tous les niveaux du pays | E142: N2 | F142: LES MIEUX ADAPTÉES
C143: ME-3.2 | D143: Il existe une structure et un endroit pour stocker et conserver les données de tous les secteurs concernés par la surveillance qui sont accessibles, fonctionnels et utilisables par tous les secteurs participants | E143: N3 | F143: LES MIEUX ADAPTÉES
C144: ME-3.3 | D144: Les données de surveillance coordonnée sont protégées par les mesures de confidentialité et de sécurité des données implantées au niveau national | E144: N1 | F144: LES MIEUX ADAPTÉES
C145: ME-3.3 | D145: Les données de surveillance coordonnée sont protégées par les mesures de confidentialité et de sécurité des données implantées à tous les niveaux du pays | E145: N2 | F145: LES MIEUX ADAPTÉES
C146: ME-3.3 | D146: Les données de surveillance coordonnée qui ont été évaluées et sont considérées comme étant conformes aux objectifs du système de surveillance coordonné sont protégées par les mesures de confidentialité et de sécurité des données implantées | E146: N3 | F146: LES MIEUX ADAPTÉES
C147: ME-4.1 | D147: Le système de surveillance coordonné fait l'objet d'un projet pilote dans des zones ciblées | E147: N1 | F147: AUTRE
C148: ME-4.1 | D148: Le système de surveillance coordonné a été étendu à d'autres domaines sur la base de mises en œuvre pilotes | E148: N2 | F148: AUTRE
C149: ME-4.1 | D149: Le système de surveillance coordonné est un programme à l'échelon national | E149: N3 | F149: AUTRE
C150: ME-4.2 | D150: Les données sont partagées de manière informelle ou formelle de façon ad hoc au niveau national | E150: N1 | F150: LES MIEUX ADAPTÉES
C151: ME-4.2 | D151: Les données sont partagées de manière informelle ou formelle, de façon régulière et en temps utile, à tous les niveaux du pays | E151: N2 | F151: LES MIEUX ADAPTÉES
C152: ME-4.2 | D152: Les données sont partagées de façon systématique et régulière et en temps utile entre tous les secteurs participants par le biais d'une ou plusieurs plateforme(s) interopérable(s) ou conjointe(s) | E152: N3 | F152: LES MIEUX ADAPTÉES
C153: ME-5.3 | D153: Des données de surveillance coordonnée sont utilisées pour générer des résultats (par exemple, des chiffres, des graphiques, des rapports ou des bulletins) qui sont diffusés au niveau national | E153: N1 | F153: LES MIEUX ADAPTÉES
D154: Les données de surveillance coordonnée, y compris les rapports de suivi et d'évaluation (S&E), sont utilisées pour générer des résultats qui orientent la réponse, les politiques et la programmation | E154: N3 | F154: AUTRE
A155: Initiative de veille épidémique à sources ouvertes (EIOS) | B155: Mise en œuvre | C155: ME-3.1 | D155: Il existe un mécanisme de partage de données entre les secteurs au niveau national | E155: N1 | F155: AUTRE | G155: PASS | H155: 8.4 | I155: 9 | J155: 7.4 | K155: 9 | L155: 8.8 | M155: 8 | N155: 5.5 | O155: 9.2 | P155: 6 | Q155: =SUM(H155:P155)/90 -> 0.7922222222 | R155: Matériel ou logiciel | S155: «Une seule santé»; Généralisée
C156: ME-3.1 | D156: Il existe un mécanisme de partage de données qui est accessible, fonctionnel et utilisable par tous les secteurs participants | E156: N3 | F156: AUTRE
C157: ME-4.2 | D157: Les données sont partagées de manière informelle ou formelle de façon ad hoc au niveau national | E157: N1 | F157: AUTRE
C158: ME-4.2 | D158: Les données sont partagées de manière informelle ou formelle, de façon régulière et en temps utile, à tous les niveaux du pays | E158: N2 | F158: AUTRE
C159: ME-4.2 | D159: Les données sont partagées de façon systématique et régulière et en temps utile entre tous les secteurs participants par le biais d'une ou plusieurs plateforme(s) interopérable(s) ou conjointe(s) | E159: N3 | F159: AUTRE
C160: ME-5.1 | D160: Les informations sont partagées de manière ad hoc avec les parties prenantes concernées | E160: N1 | F160: AUTRE
C161: ME-5.1 | D161: Il existe un partage régulier des informations avec les parties prenantes concernées | E161: N2 | F161: AUTRE
C162: ME-5.1 | D162: Il existe un partage régulier et en temps utile des informations avec les parties prenantes concernées, y compris les entités transfrontalières, régionales et internationales | E162: N3 | F162: AUTRE
A163: Event Mobile Application (EMAi) | B163: Mise en œuvre | C163: ME-3.1 | D163: Il existe un mécanisme de partage de données entre les secteurs au niveau national | E163: N1 | F163: AUTRE | G163: PASS | H163: 8.9 | I163: 7.7 | J163: 9.1 | K163: 6 | L163: 8.3 | M163: 9.3 | N163: 6.7 | O163: 4.5 | P163: 5.7 | Q163: =SUM(H163:P163)/90 -> 0.7355555556 | R163: Matériel ou logiciel | S163: Spécifique du secteur; Généralisée
D164: Il existe un mécanisme de partage des données entre les secteurs à tous les niveaux du pays | E164: N2 | F164: AUTRE
C165: ME-5.2 | D165: Les exigences de notification internationale pour toutes les zoonoses sont respectées | E165: N1 | F165: AUTRE
A166: EMPRES Système mondial d'information sur les maladies animales (EMPRES-i) | B166: Mise en œuvre | C166: ME-3.1 | D166: Il existe un mécanisme de partage de données entre les secteurs au niveau national | E166: N1 | F166: AUTRE | G166: PASS | H166: 9 | I166: 8.3 | J166: 8.9 | K166: 8.7 | L166: 8 | M166: 7.8 | N166: 7.4 | O166: 4.8 | P166: 4.7 | Q166: =SUM(H166:P166)/90 -> 0.7511111111 | R166: Matériel ou logiciel | S166: Spécifique du secteur; Généralisée
C167: ME-3.1 | D167: Il existe un mécanisme de partage des données entre les secteurs à tous les niveaux du pays | E167: N2 | F167: LES MIEUX ADAPTÉES
C168: ME-3.2 | D168: Une structure et un lieu sont prévus pour stocker et conserver les données de plusieurs secteurs au niveau national. | E168: N1 | F168: AUTRE
C169: ME-3.2 | D169: Une structure et un lieu sont prévus pour stocker et conserver les données de plusieurs secteurs à tous les niveaux du pays | E169: N2 | F169: AUTRE
C170: ME-3.2 | D170: Il existe une structure et un endroit pour stocker et conserver les données de tous les secteurs concernés par la surveillance qui sont accessibles, fonctionnels et utilisables par tous les secteurs participants | E170: N3 | F170: AUTRE
C171: ME-3.3 | D171: Les données de surveillance coordonnée sont protégées par les mesures de confidentialité et de sécurité des données implantées au niveau national | E171: N1 | F171: AUTRE
C172: ME-3.3 | D172: Les données de surveillance coordonnée sont protégées par les mesures de confidentialité et de sécurité des données implantées à tous les niveaux du pays | E172: N2 | F172: AUTRE
C173: ME-5.1 | D173: Les informations sont partagées de manière ad hoc avec les parties prenantes concernées | E173: N1 | F173: AUTRE
A174: Outil de cartographie épidémiologique (EMT) | B174: Évaluation | C174: E-3.2 | D174: Les plans de surveillance existants (y compris les définitions de cas, les protocoles et les procédures opérationnelles standard) relatifs au système de surveillance coordonné ont été évalués en vue d'une consolidation et d'une interconnexion potentielles au niveau national | E174: N1 | F174: AUTRE | G174: PASS | H174: 6.6 | I174: 8 | J174: 7.4 | K174: 7.3 | L174: 6.9 | M174: 5 | N174: 3.5 | O174: 6.8 | P174: 5.5 | Q174: =SUM(H174:P174)/90 -> 0.6333333333 | R174: Outil ou processus dirigé/facilité | S174: Spécifique du secteur; Généralisée
C175: E-6.1 | D175: Des évaluations ont été réalisées pour identifier les exigences, les compétences, les besoins et les lacunes au niveau national en matière de ressources humaines | E175: N1 | F175: LES MIEUX ADAPTÉES
A176: Directives pour la conception de plans de surveillance des maladies animales | C176: PL-3.2 | D176: Un examen multisectoriel des plans de surveillance nationaux (y compris des plans d'action/opérationnels, des définitions de cas, des protocoles et des procédures opérationnelles standard) liés au système de surveillance coordonné a été effectué à des fins de planification. | E176: N1 | F176: AUTRE | G176: PASS | H176: 9.2 | I176: 10 | J176: 7.5 | K176: 8.7 | L176: 5.7 | M176: 2.5 | N176: 3.3 | O176: 5.1 | P176: 4 | Q176: =SUM(H176:P176)/90 -> 0.6222222222 | R176: Modèle | S176: Spécifique du secteur; Généralisée
C177: PL-3.2 | D177: Des plans de surveillance (y compris des plans d'action/opérationnels, des définitions de cas, des protocoles et des procédures opérationnelles standard) pour le système de surveillance coordonné ont été renforcés et interconnectés en vue d'un partage des données à tous les niveaux du pays | E177: N2 | F177: AUTRE
C178: PL-3.2 | D178: Les plans de surveillance (y compris les plans d'action/opérationnels, les définitions de cas, les protocoles et les procédures opérationnelles standard) révisés pour le système de surveillance coordonné ont été alignés sur les directives et recommandations internationales. | E178: N3 | F178: AUTRE
A179: FoodChain-Lab (FCL) | B179: Mise en œuvre | C179: ME-3.1 | D179: Il existe un mécanisme de partage de données entre les secteurs au niveau national | E179: N1 | F179: AUTRE | G179: PASS | H179: 9.7 | I179: 6 | J179: 7.9 | K179: 7.8 | L179: 8.1 | M179: 8 | N179: 7.9 | O179: 8.4 | P179: 9.7 | Q179: =SUM(H179:P179)/90 -> 0.8166666667 | R179: Matériel ou logiciel | S179: «Une seule santé»; spécifique d'une maladie/menace
C180: ME-5.3 | D180: Des données de surveillance coordonnée sont utilisées pour générer des résultats (par exemple, des chiffres, des graphiques, des rapports ou des bulletins) qui sont diffusés au niveau national | E180: N1 | F180: AUTRE
D181: Des données de surveillance coordonnée sont utilisées pour générer des résultats (par exemple, des chiffres, des graphiques, des rapports ou des bulletins) qui sont diffusés aux parties prenantes à tous les niveaux du pays | E181: N2 | F181: AUTRE
D182: Les données de surveillance coordonnée, y compris les rapports de suivi et d'évaluation (S&E), sont utilisées pour générer des résultats qui orientent la réponse, les politiques et la programmation | E182: N3 | F182: AUTRE
A183: Cadre d'évaluation des systèmes de surveillance de santé publique pour la détection précoce des foyers épidémiques | B183: Évaluation | C183: E-3.1 | D183: Les cadres et plans stratégiques existants relatifs au système de surveillance coordonné ont été évalués en vue d'une consolidation et d'une interconnexion potentielles au niveau national | E183: N1 | F183: AUTRE | H183: 9.2 | I183: 6.7 | J183: 8.4 | K183: 8.7 | L183: 7.1 | M183: 2 | N183: 2.5 | O183: 8.2 | P183: 6 | Q183: =SUM(H183:P183)/90 -> 0.6533333333 | R183: Document d'orientation | S183: Spécifique du secteur; Généralisée
A184: Processus d'élimination globale de la rage chez le chien (GDREP) | B184: Évaluation | C184: E-4.1 | D184: Des évaluations économiques ont été utilisées pour déterminer les besoins financiers nationaux du système de surveillance coordonné | E184: N1 | F184: LES MIEUX ADAPTÉES | G184: PASS | H184: 9.1 | I184: 7.3 | J184: 8.7 | K184: 6 | L184: 7.9 | M184: 6 | N184: 7 | O184: 6.3 | P184: 7 | Q184: =SUM(H184:P184)/90 -> 0.7255555556 | R184: Outil d'autoévaluation | S184: «Une seule santé»; spécifique d'une maladie/menace
D185: Des évaluations économiques ont été utilisées pour déterminer les besoins financiers à tous les niveaux du pays du système de surveillance coordonné | E185: N3 | F185: LES MIEUX ADAPTÉES
C186: E-6.1 | D186: Des évaluations ont été réalisées pour identifier les exigences, les compétences, les besoins et les lacunes au niveau national en matière de ressources humaines | E186: N1 | F186: LES MIEUX ADAPTÉES
D187: Des évaluations ont été réalisées pour identifier les exigences, les compétences, les besoins et les lacunes à tous les niveaux du pays en matière de ressources humaines | E187: N3 | F187: AUTRE
C188: PL-5.1 | D188: Il existe un plan d'éducation et de formation pour le système de surveillance coordonné, basé sur l'évaluation des ressources humaines au niveau national | E188: N1 | F188: AUTRE
D189: Il existe un plan d'éducation et de formation pour le système de surveillance coordonné, basé sur l'évaluation des ressources humaines à tous les niveaux du pays | E189: N2 | F189: AUTRE
D190: L'éducation et la formation de la main-d'œuvre sont liées à la planification multisectorielle nationale des ressources humaines et s'appuient sur les compétences et les évaluations internationales. | E190: N3 | F190: AUTRE
B191: Planification | C191: PL-6.1 | D191: Les cadres juridiques nécessaires (règles, politiques, directives et réglementations, y compris les normes internationales) ont été normalisés entre les différents secteurs sur la base d'une évaluation au niveau national | E191: N1 | F191: AUTRE
D192: Les cadres juridiques nécessaires (règles, politiques, directives et réglementations, y compris les normes internationales) ont été normalisés entre les différents secteurs sur la base d'une évaluation à tous les niveaux du pays | E192: N2 | F192: AUTRE
D193: Les cadres juridiques révisés du système de surveillance coordonné ont été alignés sur les recommandations et les normes internationales. | E193: N3 | F193: AUTRE
A194: Approche d'évaluation des systèmes de santé (HSAA) | B194: Évaluation | C194: AG | D194: N/A | E194: N/A | F194: N/A | G194: 1 EVAL | H194: 10 | I194: 10 | J194: 6.4 | K194: 4.7 | L194: 8.3 | M194: 2 | N194: 3 | O194: 6 | P194: 4 | Q194: =SUM(H194:P194)/90 -> 0.6044444444 | R194: Document d'orientation | S194: Spécifique du secteur; Généralisée
A195: Surveillance intégrée de la maladie et la riposte (IDSR) | B195: Planification préalable | C195: PP-1.1 | D195: Des coordonnateurs, des «champions» ou des groupes de travail techniques ont été identifiés dans tous les secteurs participants au niveau national pour planifier la mise en œuvre de la surveillance coordonnée | E195: N1 | F195: AUTRE | G195: PASS | H195: 7.4 | I195: 10 | J195: 7.4 | K195: 8.7 | L195: 6.7 | M195: 4.5 | N195: 8 | O195: 7.2 | P195: 8.5 | Q195: =SUM(H195:P195)/90 -> 0.76 | R195: Document d'orientation | S195: Spécifique du secteur; Généralisée
D196: Des coordonnateurs, des «champions» ou des groupes de travail techniques ont été identifiés dans tous les secteurs participants et à tous les niveaux du pays pour planifier la mise en œuvre de la surveillance coordonnée. | E196: N2 | F196: AUTRE
D197: Des coordonnateurs, des «champions» ou des groupes de travail techniques (y compris des coordonnateurs ou des «champions» identifiés) chargés de la surveillance coordonnée ont été institutionnalisés (par exemple, par le biais d'un organe directeur tel qu'un MCM) | E197: N3 | F197: AUTRE
C198: PP-3.1 | D198: Les objectifs, les rôles et les responsabilités de tous les secteurs participant au système de surveillance coordonné sont accordés au niveau national | E198: N1 | F198: LES MIEUX ADAPTÉES
D199: Les objectifs, les rôles et les responsabilités de tous les secteurs participant au système de surveillance coordonné sont accordés et étendus à tous les niveaux du pays | E199: N2 | F199: LES MIEUX ADAPTÉES
B200: Évaluation | C200: E-1.1 | D200: Des parties prenantes travaillant dans les domaines de la surveillance, de l'épidémiologie, des laboratoires et du partage d'informations ont été identifiées | E200: N1 | F200: AUTRE
... 478 more rows

Sheet Section I
B3: SECTION I: PLANIFICATION PRÉALABLE
B8: L'objectif de cette section de l'outil est de vous présenter la première des cinq étapes du processus de mise en place d'une surveillance coordonnée: Planification préalable. Cette section comprend un total de trois catégories et trois activités à évaluer.
B17: Présentation de la planification préalable
B21: La phase de planification préalable comprend les étapes préparatoires effectuées avant toute tâche visant à établir ou à renforcer un système de surveillance coordonné des zoonoses. Ces étapes comprennent des activités telles que l'identification préliminaire des parties prenantes, l'identification des zoonoses priorisées à inclure dans le système, ainsi que l'identification des objectifs et la fixation des cibles du système. Ces étapes sont importantes pour établir une base solide destinée à créer ou à renforcer un système de surveillance coordonné fonctionnel. Les ressources présentées dans cette section doivent être prises en considération par les personnes qui utilisent le SIS OT pour les aider dans cette phase préparatoire à l'établissement ou au renforcement du système national de surveillance coordonné des zoonoses.

Sheet Focal Points
B3: Coordonnateurs
B8: Veuillez indiquer si chaque activité ci-dessous est terminée («1») ou en attente («0») sur la base du niveau de capacité actuel de votre pays.
B12: NOTES IMPORTANTES : ·Sélectionnez «1» si la capacité est atteinte et «0» si l'activité n'est pas terminée ou est en attente. ·Si le niveau de capacité est atteint et que la réponse sélectionnée est «1», le niveau de capacité suivant correspondant à l'activité s'ouvre. ·Si la capacité ne s'applique pas à votre situation, sélectionnez «0». ·Si vous ne connaissez pas la réponse, sélectionnez «0». ·Si le niveau de capacité comporte deux éléments (la phrase est reliée par «ET»), ils doivent TOUS DEUX être atteints si vous choisissez «1» comme réponse. HYPOTHÈSE CRITIQUE : ·Étant donné que le SIS OT se réfère au développement d'une surveillance et d'un partage des données coordonnés, le fait de sélectionner «1» implique que le niveau de capacité a été atteint dans les secteurs «Une seule santé» qui sont concernés par cette activité. Dans le cas contraire, veuillez sélectionner «0».
AK20: 1
AK21: 0
B28: ÉTAPE | F28: ACTIVITÉ | K28: NIVEAU 1 | T28: NIVEAU 2 | AC28: NIVEAU 3
B31: Planification préalable | F31: =Activities!B2 -> PP-1 Identification préliminaire des parties prenantes | K31: =Activities!C2 -> Des coordonnateurs, des «champions» ou des groupes de travail techniques ont été identifiés dans tous les secteurs participants au niveau national pour planifier la mise en œuvre de la surveillance coordonnée. | T31: =Activities!C3 -> Des coordonnateurs, des «champions» ou des groupes de travail techniques ont été identifiés dans tous les secteurs participants et à tous les niveaux du pays pour planifier la mise en œuvre de la surveillance coordonnée. | AC31: =Activities!C4 -> Des coordonnateurs, des «champions» ou des groupes de travail techniques (y compris des coordonnateurs ou des «champions» identifiés) chargés de la surveillance coordonnée ont été institutionnalisés (par exemple, par le biais d'un organe directeur tel qu'un MCM) | AJ31: COMMENTAIRES:
R37: (dans l'affirmative) | AA37: (dans l'affirmative)
K44: RÉPONSE: | R44: =IF(O44="Yes",1,0) -> 0 | T44: RÉPONSE: | AA44: =IF(X44="Yes",1,0) -> 0 | AC44: RÉPONSE:

Sheet Prioritization
B3: Priorisation
B8: Veuillez indiquer si chaque activité ci-dessous est terminée («1») ou non terminée/en attente («0») sur la base du niveau de capacité actuel de votre pays.
B12: NOTES IMPORTANTES: ·Sélectionnez «1» si la capacité est atteinte et «0» si l'activité n'est pas terminée ou est en attente. ·Si le niveau de capacité est atteint et que la réponse sélectionnée est «1», le niveau de capacité suivant correspondant à l'activité s'ouvre. ·Si la capacité ne s'applique pas à votre situation, sélectionnez «0». ·Si vous ne connaissez pas la réponse, sélectionnez «0». ·Si le niveau de capacité comporte deux éléments (la phrase est reliée par «ET»), ils doivent TOUS DEUX être atteints si vous choisissez «1» comme réponse. HYPOTHÈSE CRITIQUE: ·Étant donné que le SIS OT se réfère au développement d'une surveillance et d'un partage des données coordonnés, le fait de sélectionner «1» implique que le niveau de capacité a été atteint dans les secteurs «Une seule santé» qui sont concernés par cette activité. Dans le cas contraire, veuillez sélectionner «0».
AK20: 1
AK21: 0
B28: ÉTAPE | F28: ACTIVITÉ | K28: NIVEAU 1 | T28: NIVEAU 2 | AC28: NIVEAU 3
B31: Planification préalable | F31: =Activities!B5 -> PP-2 Priorisation | K31: =Activities!C5 -> Il existe une liste de zoonoses priorisées à intégrer dans un système de surveillance coordonné | T31: =Activities!C6 -> Une liste des zoonoses est largement diffusée aux niveaux infranational et communautaire | AC31: =Activities!C7 -> Une liste des zoonoses est établie en utilisant une approche multisectorielle «Une seule santé». Une telle approche impliquerait tous les secteurs concernés dans un processus de priorisation fondé sur des preuves, transparent et reproductible | AJ31: COMMENTAIRES:
AA35: (dans l'affirmative)
R36: (dans l'affirmative)
K44: RÉPONSE: | R44: =IF(O44="Yes",1,0) -> 0 | T44: RÉPONSE: | AA44: =IF(X44="Yes",1,0) -> 0 | AC44: RÉPONSE:

Sheet Goal Setting
B3: Établissement des objectifs
B8: Veuillez indiquer si chaque activité ci-dessous est terminée («1») ou non terminée/en attente («0») sur la base du niveau de capacité actuel de votre pays.
B12: NOTES IMPORTANTES: ·Sélectionnez «1» si la capacité est atteinte et «0» si l'activité n'est pas terminée ou est en attente. ·Si le niveau de capacité est atteint et que la réponse sélectionnée est «1», le niveau de capacité suivant correspondant à l'activité s'ouvre. ·Si la capacité ne s'applique pas à votre situation, sélectionnez «0». ·Si vous ne connaissez pas la réponse, sélectionnez «0». ·Si le niveau de capacité comporte deux éléments (la phrase est reliée par «ET»), ils doivent TOUS DEUX être atteints si vous choisissez «1» comme réponse. HYPOTHÈSE CRITIQUE: ·Étant donné que le SIS OT se réfère au développement d'une surveillance et d'un partage des données coordonnés, le fait de sélectionner «1» implique que le niveau de capacité a été atteint dans les secteurs «Une seule santé» qui sont concernés par cette activité. Dans le cas contraire, veuillez sélectionner «0».
AK20: 1
AK21: 0
B28: ÉTAPE | F28: ACTIVITÉ | K28: NIVEAU 1 | T28: NIVEAU 2 | AC28: NIVEAU 3
B31: Planification préalable | F31: =Activities!B8 -> PP-3 Établissement des objectifs | K31: =Activities!C8 -> Les objectifs, les rôles et les responsabilités de tous les secteurs participant au système de surveillance coordonné sont accordés au niveau national | T31: =Activities!C9 -> Les objectifs, les rôles et les responsabilités de tous les secteurs participant au système de surveillance coordonné sont accordés et étendus à tous les niveaux du pays | AC31: =Activities!C10 -> Les objectifs, les rôles et les responsabilités du système de surveillance coordonné ont été réévalués pour refléter les besoins réels du système de surveillance coordonné | AJ31: COMMENTAIRES:
R37: (dans l'affirmative) | AA37: (dans l'affirmative)
K44: RÉPONSE: | R44: =IF(O44="Yes",1,0) -> 0 | T44: RÉPONSE: | AA44: =IF(X44="Yes",1,0) -> 0 | AC44: RÉPONSE: | AI44: =IF(AG44="Yes",1,0) -> 0

Sheet Section II
B3: SECTION II: ÉVALUATION, PLANIFICATION ET MISE EN ŒUVRE
B8: Maintenant que vous avez terminé la section de planification préalable, l'objectif de cette section de l'outil est de vous présenter les trois étapes suivantes identifiées pour la mise en place d'une surveillance coordonnée: Évaluation, Planification et Mise en œuvre. Cette section comprend huit catégories et vingt-neuf activités à évaluer.
B17: Présentation de l'évaluation
B21: L'étape d'évaluation comprend les activités mises en œuvre pour déterminer les besoins ou les lacunes existant entre la situation actuelle et la situation souhaitée en ce qui concerne le système SIS coordonné et son infrastructure, ou le système de surveillance de la santé et l'infrastructure de chaque secteur participant. Parmi ces activités figurent notamment la cartographie des parties prenantes, l'évaluation des plans stratégiques et opérationnels, l'évaluation des besoins économiques et la cartographie des infrastructures. Les ressources présentées dans cette section doivent être prises en considération par les personnes qui utilisent le SIS OT pour les aider dans la réalisation des activités de cette phase d'évaluation en vue de l'établissement ou du renforcement du système national de surveillance coordonné des zoonoses.
B31: Présentation de la planification
B35: L'étape de planification comprend l'élaboration de descriptions opérationnelles ou concrètes des activités à mener séparément ou conjointement par les secteurs participants, ainsi que d'autres actions mises en œuvre pour préparer le développement ou le renforcement de la capacité de surveillance coordonnée. Parmi ces actions figurent la mise en place des cadres politiques et juridiques nécessaires, l'élaboration de plans de stratégie et de surveillance, l'élaboration de budgets et l'identification du financement nécessaire, ou encore la planification de communications coordonnées. Les ressources présentées dans cette section doivent être prises en considération par les personnes qui utilisent le SIS OT pour les aider dans la réalisation des activités de cette phase de planification en vue de l'établissement ou du renforcement du système national de surveillance coordonné des zoonoses.
B45: Présentation de la mise en œuvre
B49: L'étape de mise en œuvre comprend les activités qui doivent être exécutées séparément ou conjointement par les secteurs participants et les exigences qui doivent être satisfaites afin de mener à bien les plans et de développer le système SIS coordonné, notamment la définition de mesures de confidentialité et de sécurité des données, la mise en place de mécanismes d'échange et de stockage des données et la mobilisation des ressources financières. Les ressources présentées dans cette section doivent être prises en considération par les personnes qui utilisent le SIS OT pour les aider dans la réalisation des activités de cette phase de mise en œuvre en vue de l'établissement ou du renforcement du système national de surveillance coordonné des zoonoses.

Sheet Stakeholders
B3: Parties prenantes
B8: Veuillez indiquer si chaque activité ci-dessous est terminée («1») ou non terminée/en attente («0») sur la base du niveau de capacité actuel de votre pays.
B12: NOTES IMPORTANTES: ·Sélectionnez «1» si la capacité est atteinte et «0» si l'activité n'est pas terminée ou est en attente. ·Si le niveau de capacité est atteint et que la réponse sélectionnée est «1», le niveau de capacité suivant correspondant à l'activité s'ouvre. ·Si la capacité ne s'applique pas à votre situation, sélectionnez «0». ·Si vous ne connaissez pas la réponse, sélectionnez «0». ·Si le niveau de capacité comporte deux éléments (la phrase est reliée par «ET»), ils doivent TOUS DEUX être atteints si vous choisissez «1» comme réponse. HYPOTHÈSE CRITIQUE: ·Étant donné que le SIS OT se réfère au développement d'une surveillance et d'un partage des données coordonnés, le fait de sélectionner «1» implique que le niveau de capacité a été atteint dans les secteurs «Une seule santé» qui sont concernés par cette activité. Dans le cas contraire, veuillez sélectionner «0».
AK20: 1
AK21: 0
B28: ÉTAPE | F28: ACTIVITÉ | K28: NIVEAU 1 | T28: NIVEAU 2 | AC28: NIVEAU 3
B31: Évaluation | F31: =Activities!G2 -> E-1 Cartographie des parties prenantes | K31: =Activities!H2 -> Des parties prenantes travaillant dans les domaines de la surveillance, de l'épidémiologie, des laboratoires et du partage d'informations ont été identifiées | T31: =Activities!H3 -> L'analyse des parties prenantes a été utilisée pour identifier les participants à tous les niveaux du pays | AC31: =Activities!H4 -> Les rôles et responsabilités des parties prenantes ont été institutionnalisés et adoptés dans les politiques | AJ31: COMMENTAIRES:
R37: (dans l'affirmative) | AA37: (dans l'affirmative)
K44: RÉPONSE: | R44: =IF(O44="Yes",1,0) -> 0 | T44: RÉPONSE: | AA44: =IF(X44="Yes",1,0) -> 0 | AC44: RÉPONSE: | AI44: =IF(AG44="Yes",1,0) -> 0
B50: ÉTAPE | F50: ACTIVITÉ | K50: NIVEAU 1 | T50: NIVEAU 2 | AC50: NIVEAU 3
B53: Planification | F53: =Activities!L2 -> PL-1 Volonté politique | K53: =Activities!M2 -> Les décideurs pour le système de surveillance coordonné ont été identifiés | T53: =Activities!M3 -> Il existe une volonté politique de mettre en place un système de surveillance coordonné, ainsi que des défenseurs à tous les niveaux du pays | AC53: =Activities!M4 -> Il existe une stratégie de promotion qui communique aux décideurs des informations sur le système de surveillance coordonné | AJ53: COMMENTAIRES:
R59: (dans l'affirmative) | AA59: (dans l'affirmative)
K66: RÉPONSE: | R66: =IF(O66="Yes",1,0) -> 0 | T66: RÉPONSE: | AA66: =IF(X66="Yes",1,0) -> 0 | AC66: RÉPONSE:
B72: ÉTAPE | F72: ACTIVITÉ | K72: NIVEAU 1 | T72: NIVEAU 2 | AC72: NIVEAU 3
B75: Mise en œuvre | F75: =Activities!Q5 -> ME-2 Mobilisation des ressources humaines et des parties prenantes | K75: =Activities!R5 -> Des coordonnateurs ou des groupes de travail techniques se réunissent de façon ad hoc | T75: =Activities!R6 -> Des coordonnateurs ou des groupes de travail techniques se réunissent régulièrement et abordent les questions prioritaires au fur et à mesure qu'elles se présentent | AC75: =Activities!R7 -> Des groupes de travail techniques effectuent un examen régulier et optimisent les activités de surveillance coordonnées | AJ75: COMMENTAIRES:
R81: (dans l'affirmative) | AA81: (dans l'affirmative)
K88: RÉPONSE: | R88: =IF(O88="Yes",1,0) -> 0 | T88: RÉPONSE: | AA88: =IF(X88="Yes",1,0) -> 0 | AC88: RÉPONSE:

Sheet Plans & Organization
B3: Plans et organisation
B8: Veuillez indiquer si chaque activité ci-dessous est terminée («1») ou non terminée/en attente («0») sur la base du niveau de capacité actuel de votre pays.
B12: NOTES IMPORTANTES: ·Sélectionnez «1» si la capacité est atteinte et «0» si l'activité n'est pas terminée ou est en attente. ·Si le niveau de capacité est atteint et que la réponse sélectionnée est «1», le niveau de capacité suivant correspondant à l'activité s'ouvre. ·Si la capacité ne s'applique pas à votre situation, sélectionnez «0». ·Si vous ne connaissez pas la réponse, sélectionnez «0». ·Si le niveau de capacité comporte deux éléments (la phrase est reliée par «ET»), ils doivent TOUS DEUX être atteints si vous choisissez «1» comme réponse. HYPOTHÈSE CRITIQUE: ·Étant donné que le SIS OT se réfère au développement d'une surveillance et d'un partage des données coordonnés, le fait de sélectionner «1» implique que le niveau de capacité a été atteint dans les secteurs «Une seule santé» qui sont concernés par cette activité. Dans le cas contraire, veuillez sélectionner «0».
AK20: 1
AK21: 0
B28: ÉTAPE | F28: ACTIVITÉ | K28: NIVEAU 1 | T28: NIVEAU 2 | AC28: NIVEAU 3
B31: Évaluation | F31: =Activities!G5 -> E-2 Évaluation des connexions entre les systèmes de surveillance | K31: =Activities!H5 -> Les interconnexions entre les systèmes de surveillance des zoonoses actuellement priorisées ont été évaluées entre les secteurs | T31: =Activities!H6 -> Les interconnexions entre les systèmes de surveillance actuels ont été évaluées parmi les secteurs et à tous les niveaux du pays | AC31: =Activities!H7 -> Les interconnexions entre les systèmes de surveillance coordonnés ont été évaluées et sont considérées comme étant conformes aux objectifs du système de surveillance coordonné | AJ31: COMMENTAIRES:
R37: (dans l'affirmative) | AA37: (dans l'affirmative)
K44: RÉPONSE: | R44: =IF(O44="Yes",1,0) -> 0 | T44: RÉPONSE: | AA44: =IF(X44="Yes",1,0) -> 0 | AC44: RÉPONSE: | AI44: =IF(AG44="Yes",1,0) -> 0
F47: =Activities!G16 -> E-4 Cartographie des infrastructures | K47: =Activities!H16 -> Des exercices basiques de cartographie des infrastructures (telle que définie au point 4.1 du GTZ) ont été utilisés pour décrire la structure et les connexions sectorielles et intersectorielles | T47: =Activities!H17 -> La cartographie des infrastructures (telle que décrite au point 4.1 du GTZ) a été utilisée pour décrire la plupart des domaines à cartographier | AC47: =Activities!H18 -> La cartographie complète des infrastructures (telle que décrite au point 4.1 du GTZ) a été utilisée pour décrire la totalité des domaines à cartographier. | AJ47: COMMENTAIRES:
R53: (dans l'affirmative) | AA53: (dans l'affirmative)
K60: RÉPONSE: | R60: =IF(O60="Yes",1,0) -> 0 | T60: RÉPONSE: | AA60: =IF(X60="Yes",1,0) -> 0 | AC60: RÉPONSE:
B66: ÉTAPE | F66: ACTIVITÉ | K66: NIVEAU 1 | T66: NIVEAU 2 | AC66: NIVEAU 3
B69: Planification | F69: =Activities!L8 -> PL-3 Cadres et plans stratégiques pour une surveillance coordonnée | K69: =Activities!M8 -> Une collecte et un examen multisectoriels des documents stratégiques nationaux (stratégies, cadres et plans stratégiques) liés au système de surveillance coordonné ont été effectués à des fins de planification | T69: =Activities!M9 -> Les documents stratégiques nationaux (stratégies, cadres et plans stratégiques) du système de surveillance coordonné ont été consolidés et interconnectés sur la base d'une évaluation à tous les niveaux du pays | AC69: =Activities!M10 -> Les documents stratégiques (stratégies, cadres et plans stratégiques) révisés du système de surveillance coordonné ont été alignés sur les recommandations et les normes internationales. | AJ69: COMMENTAIRES:
R75: (dans l'affirmative) | AA75: (dans l'affirmative)
K82: RÉPONSE: | R82: =IF(O82="Yes",1,0) -> 0 | T82: RÉPONSE: | AA82: =IF(X82="Yes",1,0) -> 0 | AC82: RÉPONSE:
F85: =Activities!L11 -> PL-4 Plans opérationnels au niveau national | K85: =Activities!M11 -> Une collecte et un examen multisectoriels des plans opérationnels et autres documents importants (y compris des plans de surveillance, des définitions de cas, des protocoles et des procédures opérationnelles standard) liés au système de surveillance coordonné ont été effectués à des fins de planification | T85: =Activities!M12 -> Les plans opérationnels et autres documents importants (y compris des plans de surveillance, des définitions de cas, des protocoles et des procédures opérationnelles standard) révisés liés au système de surveillance coordonné et de partage d'informations ont été approuvés par les organisations chargées de la surveillance à tous les niveaux du pays | AC85: =Activities!M13 -> Les plans opérationnels (y compris les plans de surveillance, les définitions de cas, les protocoles et les procédures opérationnelles standard) révisés pour le système de surveillance coordonné sont alignés sur les directives et recommandations internationales. | AJ85: COMMENTAIRES:
R91: (dans l'affirmative) | AA91: (dans l'affirmative)
K98: RÉPONSE: | R98: =IF(O98="Yes",1,0) -> 0 | T98: RÉPONSE: | AA98: =IF(X98="Yes",1,0) -> 0 | AC98: RÉPONSE:
B104: ÉTAPE | F104: ACTIVITÉ | K104: NIVEAU 1 | T104: NIVEAU 2 | AC104: NIVEAU 3
B107: Mise en œuvre | F107: =Activities!Q17 -> I-6 Mise en œuvre de systèmes de surveillance coordonnés | K107: =Activities!R17 -> Le système de surveillance coordonné fait l'objet d'un projet pilote dans des zones ciblées | T107: =Activities!R18 -> Le système de surveillance coordonné a été étendu à d'autres domaines sur la base de mises en œuvre pilotes | AC107: =Activities!R19 -> Le système de surveillance coordonné est un programme à l'échelon national | AJ107: COMMENTAIRES:
R113: (dans l'affirmative) | AA113: (dans l'affirmative)
K120: RÉPONSE: | R120: =IF(O120="Yes",1,0) -> 0 | T120: RÉPONSE: | AA120: =IF(X120="Yes",1,0) -> 0 | AC120: RÉPONSE:

Sheet Policy & Legal
B3: Aspects réglementaires et juridiques
B8: Veuillez indiquer si chaque activité ci-dessous est terminée («1») ou non terminée/en attente («0») sur la base du niveau de capacité actuel de votre pays.
B12: NOTES IMPORTANTES: ·Sélectionnez «1» si la capacité est atteinte et «0» si l'activité n'est pas terminée ou est en attente. ·Si le niveau de capacité est atteint et que la réponse sélectionnée est «1», le niveau de capacité suivant correspondant à l'activité s'ouvre. ·Si la capacité ne s'applique pas à votre situation, sélectionnez «0». ·Si vous ne connaissez pas la réponse, sélectionnez «0». ·Si le niveau de capacité comporte deux éléments (la phrase est reliée par «ET»), ils doivent TOUS DEUX être atteints si vous choisissez «1» comme réponse. HYPOTHÈSE CRITIQUE: ·Étant donné que le SIS OT se réfère au développement d'une surveillance et d'un partage des données coordonnés, le fait de sélectionner «1» implique que le niveau de capacité a été atteint dans les secteurs «Une seule santé» qui sont concernés par cette activité. Dans le cas contraire, veuillez sélectionner «0».
AK20: 1
AK21: 0
B28: ÉTAPE | F28: ACTIVITÉ | K28: NIVEAU 1 | AC28: NIVEAU 3
B31: Évaluation | F31: =Activities!G8 -> E-3 Évaluation des cadres juridiques | K31: =Activities!H8 -> Les cadres juridiques (règles, politiques, directives et réglementations, y compris les normes internationales) qui régissent les normes d'éthique et de confidentialité en matière de surveillance et de partage des données ont été évalués | AC31: =Activities!H9 -> Les cadres juridiques (règles, politiques, directives et réglementations, y compris les normes internationales) qui régissent les normes d'éthique et de confidentialité en matière de surveillance et de partage des données sont évalués à tous les niveaux du pays | AJ31: COMMENTAIRES:
U35: (dans l'affirmative)
K44: RÉPONSE: | AA44: =IF(X44="Yes",1,0) -> 0 | AC44: RÉPONSE: | AI44: =IF(AG44="Yes",1,0) -> 0
B50: ÉTAPE | F50: ACTIVITÉ | K50: NIVEAU 1 | T50: NIVEAU 2 | AC50: NIVEAU 3
B53: Planification | F53: =Activities!L20 -> PL-7 Planification des cadres juridiques | K53: =Activities!M20 -> Les cadres juridiques nécessaires (règles, politiques, directives et réglementations, y compris les normes internationales) ont été normalisés entre les différents secteurs sur la base d'une évaluation au niveau national | T53: =Activities!M21 -> Les cadres juridiques nécessaires (règles, politiques, directives et réglementations, y compris les normes internationales) ont été normalisés entre les différents secteurs sur la base d'une évaluation à tous les niveaux du pays | AC53: =Activities!M22 -> Les cadres juridiques révisés du système de surveillance coordonné ont été alignés sur les recommandations et les normes internationales. | AJ53: COMMENTAIRES:
R59: (dans l'affirmative) | AA59: (dans l'affirmative)
K66: RÉPONSE: | R66: =IF(O66="Yes",1,0) -> 0 | T66: RÉPONSE: | AA66: =IF(X66="Yes",1,0) -> 0 | AC66: RÉPONSE:

Sheet Budgets & Finances
B3: Budgets et finances
B8: Veuillez indiquer si chaque activité ci-dessous est terminée («1») ou non terminée/en attente («0») sur la base du niveau de capacité actuel de votre pays.
B12: NOTES IMPORTANTES: ·Sélectionnez «1» si la capacité est atteinte et «0» si l'activité n'est pas terminée ou est en attente. ·Si le niveau de capacité est atteint et que la réponse sélectionnée est «1», le niveau de capacité suivant correspondant à l'activité s'ouvre. ·Si la capacité ne s'applique pas à votre situation, sélectionnez «0». ·Si vous ne connaissez pas la réponse, sélectionnez «0». ·Si le niveau de capacité comporte deux éléments (la phrase est reliée par «ET»), ils doivent TOUS DEUX être atteints si vous choisissez «1» comme réponse. HYPOTHÈSE CRITIQUE: ·Étant donné que le SIS OT se réfère au développement d'une surveillance et d'un partage des données coordonnés, le fait de sélectionner «1» implique que le niveau de capacité a été atteint dans les secteurs «Une seule santé» qui sont concernés par cette activité. Dans le cas contraire, veuillez sélectionner «0».
AK20: 1
AK21: 0
B28: ÉTAPE | F28: ACTIVITÉ | K28: NIVEAU 1 | AC28: NIVEAU 3
B31: Évaluation | F31: =Activities!G19 -> E-5 Évaluation des besoins économiques | K31: =Activities!H19 -> Des évaluations économiques ont été utilisées pour déterminer les besoins financiers nationaux du système de surveillance coordonné | AC31: =Activities!H20 -> Des évaluations économiques ont été utilisées pour déterminer les besoins financiers à tous les niveaux du pays du système de surveillance coordonné | AJ31: COMMENTAIRES:
U35: (dans l'affirmative)
K44: RÉPONSE: | AA44: =IF(X44="Yes",1,0) -> 0 | AC44: RÉPONSE: | AI44: =IF(AG44="Yes",1,0) -> 0
B50: ÉTAPE | F50: ACTIVITÉ | K50: NIVEAU 1 | T50: NIVEAU 2 | AC50: NIVEAU 3
B53: Planification | F53: =Activities!L14 -> PL-5 Planification financière | K53: =Activities!M14 -> Il existe un plan budgétaire et un mécanisme de distribution des fonds destinés à la surveillance coordonnée au niveau national | T53: =Activities!M15 -> Il existe un plan budgétaire et un mécanisme de distribution des fonds destinés à la surveillance coordonnée à tous les niveaux du pays | AC53: =Activities!M16 -> Le plan budgétaire et un mécanisme de distribution des fonds ont été évalués et considérés comme étant conformes aux objectifs du système de surveillance coordonné. | AJ53: COMMENTAIRES:
R59: (dans l'affirmative) | AA59: (dans l'affirmative)
K66: RÉPONSE: | R66: =IF(O66="Yes",1,0) -> 0 | T66: RÉPONSE: | AA66: =IF(X66="Yes",1,0) -> 0 | AC66: RÉPONSE:
B72: ÉTAPE | F72: ACTIVITÉ | K72: NIVEAU 1 | T72: NIVEAU 2 | AC72: NIVEAU 3
B75: Mise en œuvre | F75: =Activities!Q2 -> ME-1 Mobilisation des ressources financières | K75: =Activities!R2 -> Il existe un financement destiné à la surveillance coordonnée au niveau national | T75: =Activities!R3 -> Il existe un financement destiné à la surveillance coordonnée à tous les niveaux du pays | AC75: =Activities!R4 -> Un financement durable (c'est-à-dire intégré au budget national) est alloué aux activités de surveillance coordonnées, et a été évalué et considéré comme étant conforme aux objectifs du système de surveillance coordonné | AJ75: COMMENTAIRES:
R81: (dans l'affirmative) | AA81: (dans l'affirmative)
K88: RÉPONSE: | R88: =IF(O88="Yes",1,0) -> 0 | T88: RÉPONSE: | AA88: =IF(X88="Yes",1,0) -> 0 | AC88: RÉPONSE:

Sheet Workforce
B3: Ressources humaines
B8: Veuillez indiquer si chaque activité ci-dessous est terminée («1») ou non terminée/en attente («0») sur la base du niveau de capacité actuel de votre pays.
B12: NOTES IMPORTANTES: ·Sélectionnez «1» si la capacité est atteinte et «0» si l'activité n'est pas terminée ou est en attente. ·Si le niveau de capacité est atteint et que la réponse sélectionnée est «1», le niveau de capacité suivant correspondant à l'activité s'ouvre. ·Si la capacité ne s'applique pas à votre situation, sélectionnez «0». ·Si vous ne connaissez pas la réponse, sélectionnez «0». ·Si le niveau de capacité comporte deux éléments (la phrase est reliée par «ET»), ils doivent TOUS DEUX être atteints si vous choisissez «1» comme réponse. HYPOTHÈSE CRITIQUE: ·Étant donné que le SIS OT se réfère au développement d'une surveillance et d'un partage des données coordonnés, le fait de sélectionner «1» implique que le niveau de capacité a été atteint dans les secteurs «Une seule santé» qui sont concernés par cette activité. Dans le cas contraire, veuillez sélectionner «0».
AK20: 1
AK21: 0
B28: ÉTAPE | F28: ACTIVITÉ | K28: NIVEAU 1 | AC28: NIVEAU 3
B31: Évaluation | F31: =Activities!G27 -> E-8 Évaluation des ressources humaines | K31: =Activities!H27 -> Des évaluations ont été réalisées pour identifier les exigences, les compétences, les besoins et les lacunes au niveau national en matière de ressources humaines | AC31: =Activities!H28 -> Des évaluations ont été réalisées pour identifier les exigences, les compétences, les besoins et les lacunes à tous les niveaux du pays en matière de ressources humaines | AJ31: COMMENTAIRES:
U35: (dans l'affirmative)
K44: RÉPONSE: | AA44: =IF(X44="Yes",1,0) -> 0 | AC44: RÉPONSE: | AI44: =IF(AG44="Yes",1,0) -> 0
B50: ÉTAPE | F50: ACTIVITÉ | K50: NIVEAU 1 | T50: NIVEAU 2 | AC50: NIVEAU 3
B53: Planification | F53: =Activities!L17 -> PL-6 Planification des ressources humaines | K53: =Activities!M17 -> Il existe un plan d'éducation et de formation pour le système de surveillance coordonné, basé sur l'évaluation des ressources humaines au niveau national | T53: =Activities!M18 -> Il existe un plan d'éducation et de formation pour le système de surveillance coordonné, basé sur l'évaluation des ressources humaines à tous les niveaux du pays | AC53: =Activities!M19 -> L'éducation et la formation de la main-d'œuvre sont liées à la planification multisectorielle nationale des ressources humaines et s'appuient sur les compétences et les évaluations internationales. | AJ53: COMMENTAIRES:
R59: (dans l'affirmative) | AA59: (dans l'affirmative)
K66: RÉPONSE: | R66: =IF(O66="Yes",1,0) -> 0 | T66: RÉPONSE: | AA66: =IF(X66="Yes",1,0) -> 0 | AC66: RÉPONSE:

Sheet Laboratory
B3: Laboratoire
B8: Veuillez indiquer si chaque activité ci-dessous est terminée («1») ou non terminée/en attente («0») sur la base du niveau de capacité actuel de votre pays.
B12: NOTES IMPORTANTES: ·Sélectionnez «1» si la capacité est atteinte et «0» si l'activité n'est pas terminée ou est en attente. ·Si le niveau de capacité est atteint et que la réponse sélectionnée est «1», le niveau de capacité suivant correspondant à l'activité s'ouvre. ·Si la capacité ne s'applique pas à votre situation, sélectionnez «0». ·Si vous ne connaissez pas la réponse, sélectionnez «0». ·Si le niveau de capacité comporte deux éléments (la phrase est reliée par «ET»), ils doivent TOUS DEUX être atteints si vous choisissez «1» comme réponse. HYPOTHÈSE CRITIQUE: ·Étant donné que le SIS OT se réfère au développement d'une surveillance et d'un partage des données coordonnés, le fait de sélectionner «1» implique que le niveau de capacité a été atteint dans les secteurs «Une seule santé» qui sont concernés par cette activité. Dans le cas contraire, veuillez sélectionner «0».
AK20: 1
AK21: 0
B28: ÉTAPE | F28: ACTIVITÉ | K28: NIVEAU 1 | T28: NIVEAU 2 | AC28: NIVEAU 3
B31: Évaluation | F31: =Activities!G21 -> E-6 Évaluation de la capacité des laboratoires | K31: =Activities!H21 -> Des évaluations de laboratoires ont été utilisées pour identifier des laboratoires de référence nationaux ou internationaux qualifiés capables d'effectuer des tests pour soutenir les activités de surveillance coordonnées | T31: =Activities!H22 -> Des évaluations de laboratoires ont été utilisées pour identifier à tous les niveaux (y compris international) des laboratoires qualifiés capables d'effectuer des tests pour soutenir les activités de surveillance coordonnées | AC31: =Activities!H23 -> Des évaluations de laboratoires ont été utilisées pour identifier un réseau de laboratoires qualifiés capables d'effectuer des tests pour soutenir les activités de surveillance coordonnées | AJ31: COMMENTAIRES:
R37: (dans l'affirmative) | AA37: (dans l'affirmative)
K44: RÉPONSE: | R44: =IF(O44="Yes",1,0) -> 0 | T44: RÉPONSE: | AA44: =IF(X44="Yes",1,0) -> 0 | AC44: RÉPONSE: | AI44: =IF(AG44="Yes",1,0) -> 0
F49: =Activities!G24 -> E-7 Évaluation du transport et de l'interprétation des laboratoires | K49: =Activities!H24 -> L'harmonisation des fournitures, des chaînes de transport et de l'interprétation des résultats des laboratoires a été évaluée entre les secteurs participants au niveau national | T49: =Activities!H25 -> L'harmonisation des fournitures, des chaînes de transport et de l'interprétation des résultats des laboratoires entre les secteurs participants a été évaluée à tous les niveaux du pays | AC49: =Activities!H26 -> Le degré d'harmonisation dans les fournitures, les chaînes de transport et l'interprétation des résultats entre les secteurs participants a été évalué et considéré comme étant conforme aux objectifs du système de surveillance coordonné | AJ49: COMMENTAIRES:
R55: (dans l'affirmative) | AA55: (dans l'affirmative)
K62: RÉPONSE: | R62: =IF(O62="Yes",1,0) -> 0 | T62: RÉPONSE: | AA62: =IF(X62="Yes",1,0) -> 0 | AC62: RÉPONSE:

Sheet Data Storage & Sharing
B3: Stockage et partage des données
B8: Veuillez indiquer si chaque activité ci-dessous est terminée («1») ou non terminée/en attente («0») sur la base du niveau de capacité actuel de votre pays.
B12: NOTES IMPORTANTES: ·Sélectionnez «1» si la capacité est atteinte et «0» si l'activité n'est pas terminée ou est en attente. ·Si le niveau de capacité est atteint et que la réponse sélectionnée est «1», le niveau de capacité suivant correspondant à l'activité s'ouvre. ·Si la capacité ne s'applique pas à votre situation, sélectionnez «0». ·Si vous ne connaissez pas la réponse, sélectionnez «0». ·Si le niveau de capacité comporte deux éléments (la phrase est reliée par «ET»), ils doivent TOUS DEUX être atteints si vous choisissez «1» comme réponse. HYPOTHÈSE CRITIQUE: ·Étant donné que le SIS OT se réfère au développement d'une surveillance et d'un partage des données coordonnés, le fait de sélectionner «1» implique que le niveau de capacité a été atteint dans un MINIMUM DE DEUX SECTEURS CONCERNÉS PAR L'APPROCHE «UNE SEULE SANTÉ». Si le niveau de capacité a été atteint dans un seul secteur, veuillez sélectionner «0».
AK20: 1
AK21: 0
B28: ÉTAPE | F28: ACTIVITÉ | K28: NIVEAU 1 | T28: NIVEAU 2 | AC28: NIVEAU 3
B31: Planification | F31: =Activities!L5 -> PL-2 Éléments de données communs | K31: =Activities!M5 -> Les éléments de données communs sont identifiés et accordés au sein de chaque secteur participant dans le but de remplir les objectifs analytiques communs du système de surveillance coordonné au niveau national | T31: =Activities!M6 -> Les éléments de données communs sont identifiés et accordés au sein de chaque secteur participant dans le but de remplir les objectifs analytiques communs du système de surveillance coordonné à tous les niveaux du pays | AC31: =Activities!M7 -> Les éléments de données communs sont normalisés entre les secteurs participants sur la base des objectifs analytiques communs du système de surveillance coordonné et sont conformes aux normes internationales en matière de données | AJ31: COMMENTAIRES:
R37: (dans l'affirmative) | AA37: (dans l'affirmative)
K44: RÉPONSE: | R44: =IF(O44="Yes",1,0) -> 0 | T44: RÉPONSE: | AA44: =IF(X44="Yes",1,0) -> 0 | AC44: RÉPONSE:
B49: ÉTAPE | F49: ACTIVITÉ | K49: NIVEAU 1 | T49: NIVEAU 2 | AC49: NIVEAU 3
B52: Mise en œuvre | F52: =Activities!Q8 -> ME-3 Échange de données et partage d'informations | K52: =Activities!R8 -> Il existe un mécanisme de partage de données entre les secteurs au niveau national | T52: =Activities!R9 -> Il existe un mécanisme de partage des données entre les secteurs à tous les niveaux du pays | AC52: =Activities!R10 -> Il existe un mécanisme de partage de données qui est accessible, fonctionnel et utilisable par tous les secteurs participants | AJ52: COMMENTAIRES:
R58: (dans l'affirmative) | AA58: (dans l'affirmative)
K65: RÉPONSE: | R65: =IF(O65="Yes",1,0) -> 0 | T65: RÉPONSE: | AA65: =IF(X65="Yes",1,0) -> 0 | AC65: RÉPONSE:
F68: =Activities!Q11 -> ME-4 Stockage des données | K68: =Activities!R11 -> Une structure et un lieu sont prévus pour stocker et conserver les données de plusieurs secteurs au niveau national. | T68: =Activities!R12 -> Une structure et un lieu sont prévus pour stocker et conserver les données de plusieurs secteurs à tous les niveaux du pays | AC68: =Activities!R13 -> Il existe une structure et un endroit pour stocker et conserver les données de tous les secteurs concernés par la surveillance qui sont accessibles, fonctionnels et utilisables par tous les secteurs participants | AJ68: COMMENTAIRES:
R74: (dans l'affirmative) | AA74: (dans l'affirmative)
K81: RÉPONSE: | R81: =IF(O81="Yes",1,0) -> 0 | T81: RÉPONSE: | AA81: =IF(X81="Yes",1,0) -> 0 | AC81: RÉPONSE:
F84: =Activities!Q14 -> ME-5 Mesures relatives à la confidentialité et à la sécurité des données | K84: =Activities!R14 -> Il existe des mesures de confidentialité et de sécurité des données visant à protéger les données de surveillance coordonnée au niveau national | T84: =Activities!R15 -> Il existe des mesures de confidentialité et de sécurité des données visant à protéger les données de surveillance coordonnée à tous les niveaux du pays | AC84: =Activities!R16 -> Il existe des mesures de confidentialité et de sécurité des données visant à protéger les données de surveillance coordonnée, qui ont été évaluées et sont considérées comme étant conformes aux objectifs du système de surveillance coordonné | AJ84: COMMENTAIRES:
R90: (dans l'affirmative) | AA90: (dans l'affirmative)
K97: RÉPONSE: | R97: =IF(O97="Yes",1,0) -> 0 | T97: RÉPONSE: | AA97: =IF(X97="Yes",1,0) -> 0 | AC97: RÉPONSE:
F100: =Activities!Q20 -> ME-7 Partage des données de surveillance | K100: =Activities!R20 -> Les données de surveillance sont partagées de manière informelle ou formelle de façon ad hoc au niveau national | T100: =Activities!R21 -> Les données de surveillance sont partagées de manière informelle ou formelle, de façon régulière et en temps utile, à tous les niveaux du pays | AC100: =Activities!R22 -> Les données de surveillance sont partagées de façon systématique et régulière et en temps utile entre tous les secteurs participants par le biais d'une ou plusieurs plateforme(s) interopérable(s) ou conjointe(s) | AJ100: COMMENTAIRES:
R106: (dans l'affirmative) | AA106: (dans l'affirmative)
K113: RÉPONSE: | R113: =IF(O113="Yes",1,0) -> 0 | T113: RÉPONSE: | AA113: =IF(X113="Yes",1,0) -> 0 | AC113: RÉPONSE:

Sheet Communication & Reporting
B3: Communication et établissement de rapports
B8: Veuillez indiquer si chaque activité ci-dessous est terminée («1») ou non terminée/en attente («0») sur la base du niveau de capacité actuel de votre pays.
B12: NOTES IMPORTANTES: ·Sélectionnez «1» si la capacité est atteinte et «0» si l'activité n'est pas terminée ou est en attente. ·Si le niveau de capacité est atteint et que la réponse sélectionnée est «1», le niveau de capacité suivant correspondant à l'activité s'ouvre. ·Si la capacité ne s'applique pas à votre situation, sélectionnez «0». ·Si vous ne connaissez pas la réponse, sélectionnez «0». ·Si le niveau de capacité comporte deux éléments (la phrase est reliée par «ET»), ils doivent TOUS DEUX être atteints si vous choisissez «1» comme réponse. HYPOTHÈSE CRITIQUE: ·Étant donné que le SIS OT se réfère au développement d'une surveillance et d'un partage des données coordonnés, le fait de sélectionner «1» implique que le niveau de capacité a été atteint dans un MINIMUM DE DEUX SECTEURS CONCERNÉS PAR L'APPROCHE «UNE SEULE SANTÉ». Si le niveau de capacité a été atteint dans un seul secteur, veuillez sélectionner «0».
AK20: 1
AK21: 0
B28: ÉTAPE | F28: ACTIVITÉ | K28: NIVEAU 1 | T28: NIVEAU 2 | AC28: NIVEAU 3
B31: Planification | F31: =Activities!L23 -> PL-8 Planification coordonnée de la communication | K31: =Activities!M23 -> La terminologie et les messages de communication sont alignés sur l'ensemble des secteurs participant au système de surveillance coordonné au niveau national. | T31: =Activities!M24 -> La terminologie et les messages de communication sont alignés sur l'ensemble des secteurs participant au système de surveillance coordonné et diffusés à tous les niveaux du pays | AC31: =Activities!M25 -> Il existe une stratégie et/ou un plan de communication (comprenant une terminologie et une messagerie) qui régissent la communication avec les parties prenantes et le public pour le système de surveillance coordonné | AJ31: COMMENTAIRES:
R37: (dans l'affirmative) | AA37: (dans l'affirmative)
K44: RÉPONSE: | R44: =IF(O44="Yes",1,0) -> 0 | T44: RÉPONSE: | AA44: =IF(X44="Yes",1,0) -> 0 | AC44: RÉPONSE:
B49: ÉTAPE | F49: ACTIVITÉ | K49: NIVEAU 1 | T49: NIVEAU 2 | AC49: NIVEAU 3
B52: Mise en œuvre | F52: =Activities!Q23 -> ME-8 Communication et partage d'informations | K52: =Activities!R23 -> Les informations sont partagées et communiquées de manière ad hoc avec les parties prenantes concernées | T52: =Activities!R24 -> Les informations sont partagées et communiquées de façon régulière avec les parties prenantes concernées | AC52: =Activities!R25 -> Il existe un partage régulier et en temps utile des informations avec les parties prenantes concernées, y compris les entités transfrontalières, régionales et internationales | AJ52: COMMENTAIRES:
R58: (dans l'affirmative) | AA58: (dans l'affirmative)
K65: RÉPONSE: | R65: =IF(O65="Yes",1,0) -> 0 | T65: RÉPONSE: | AA65: =IF(X65="Yes",1,0) -> 0 | AC65: RÉPONSE:
F68: =Activities!Q26 -> ME-9 Exigences internationales en matière de notification | K68: =Activities!R26 -> Les exigences de notification internationale pour toutes les zoonoses sont respectées | AJ68: COMMENTAIRES:
K81: RÉPONSE:
F84: =Activities!Q27 -> ME-10 Visualisation et analyse coordonnées des données | K84: =Activities!R27 -> Des données de surveillance coordonnée sont utilisées pour générer des résultats (par exemple, des chiffres, des graphiques, des rapports ou des bulletins) qui sont diffusés au niveau national | T84: =Activities!R28 -> Des données de surveillance coordonnée sont utilisées pour générer des résultats (par exemple, des chiffres, des graphiques, des rapports ou des bulletins) qui sont diffusés aux parties prenantes à tous les niveaux du pays | AC84: =Activities!R29 -> Les données de surveillance coordonnée, y compris les rapports de suivi et d'évaluation (S&E), sont utilisées pour générer des résultats qui orientent la réponse, les politiques et la programmation | AJ84: COMMENTAIRES:
R90: (dans l'affirmative) | AA90: (dans l'affirmative)
K97: RÉPONSE: | R97: =IF(O97="Yes",1,0) -> 0 | T97: RÉPONSE: | AA97: =IF(X97="Yes",1,0) -> 0 | AC97: RÉPONSE:

Sheet Section III
B3: SECTION III: SUIVI ET ÉVALUATION
B8: L'objectif de cette section de l'outil est de vous présenter la dernière des cinq étapes du processus de mise en place d'une surveillance coordonnée: Suivi et évaluation. Cette section comprend un total de trois catégories et trois activités à évaluer.
B17: Présentation du suivi et de l'évaluation
B21: L'étape de suivi et d'évaluation comprend les activités mises en œuvre pour mesurer et évaluer les performances des activités de surveillance coordonnées et du système SIS coordonné, en vue d'orienter l'amélioration continue et itérative du système. Parmi ces activités figurent des exercices de simulation, la gestion de la qualité des données ou encore le plan de suivi et d'évaluation. Les ressources présentées dans cette section doivent être prises en considération par les personnes qui utilisent le SIS OT pour les aider dans la réalisation des activités de cette phase de suivi et d'évaluation en vue de l'établissement ou du renforcement du système national de surveillance coordonné des zoonoses.

Sheet Simulation Exercises
B3: Exercices de simulation
B8: Veuillez indiquer si chaque activité ci-dessous est terminée («1») ou non terminée/en attente («0») sur la base du niveau de capacité actuel de votre pays.
B12: NOTES IMPORTANTES: ·Sélectionnez «1» si la capacité est atteinte et «0» si l'activité n'est pas terminée ou est en attente. ·Si le niveau de capacité est atteint et que la réponse sélectionnée est «1», le niveau de capacité suivant correspondant à l'activité s'ouvre. ·Si la capacité ne s'applique pas à votre situation, sélectionnez «0». ·Si vous ne connaissez pas la réponse, sélectionnez «0». ·Si le niveau de capacité comporte deux éléments (la phrase est reliée par «ET»), ils doivent TOUS DEUX être atteints si vous choisissez «1» comme réponse. HYPOTHÈSE CRITIQUE: ·Étant donné que le SIS OT se réfère au développement d'une surveillance et d'un partage des données coordonnés, le fait de sélectionner «1» implique que le niveau de capacité a été atteint dans les secteurs «Une seule santé» qui sont concernés par cette activité. Dans le cas contraire, veuillez sélectionner «0».
AK20: 1
AK21: 0
B28: CATÉGORIE | F28: ACTIVITÉ | K28: NIVEAU 1 | T28: NIVEAU 2 | AC28: NIVEAU 3
B31: Suivi et évaluation | F31: =Activities!V2 -> SE-1 Exercices de simulation | K31: =Activities!W2 -> Des exercices de simulation sont réalisés pour évaluer l'efficacité et la fonctionnalité du système de surveillance coordonné au niveau national | T31: =Activities!W3 -> Des exercices de simulation sont réalisés pour évaluer l'efficacité et la fonctionnalité du système de surveillance coordonné à tous les niveaux du pays | AC31: =Activities!W4 -> Les résultats des exercices de simulation sont utilisés pour orienter et réviser les plans de surveillance coordonnée | AJ31: COMMENTAIRES:
R37: (dans l'affirmative) | AA37: (dans l'affirmative)
K44: RÉPONSE: | R44: =IF(O44="Yes",1,0) -> 0 | T44: RÉPONSE: | AA44: =IF(X44="Yes",1,0) -> 0 | AC44: RÉPONSE: | AI44: =IF(AG44="Yes",1,0) -> 0

Sheet M & E Planning
B3: Planification du suivi et de l'évaluation
B8: Veuillez indiquer si chaque activité ci-dessous est terminée («1») ou non terminée/en attente («0») sur la base du niveau de capacité actuel de votre pays.
B12: NOTES IMPORTANTES: ·Sélectionnez «1» si la capacité est atteinte et «0» si l'activité n'est pas terminée ou est en attente. ·Si le niveau de capacité est atteint et que la réponse sélectionnée est «1», le niveau de capacité suivant correspondant à l'activité s'ouvre. ·Si la capacité ne s'applique pas à votre situation, sélectionnez «0». ·Si vous ne connaissez pas la réponse, sélectionnez «0». ·Si le niveau de capacité comporte deux éléments (la phrase est reliée par «ET»), ils doivent TOUS DEUX être atteints si vous choisissez «1» comme réponse. HYPOTHÈSE CRITIQUE: ·Étant donné que le SIS OT se réfère au développement d'une surveillance et d'un partage des données coordonnés, le fait de sélectionner «1» implique que le niveau de capacité a été atteint dans les secteurs «Une seule santé» qui sont concernés par cette activité. Dans le cas contraire, veuillez sélectionner «0».
AK20: 1
AK21: 0
B28: ÉTAPE | F28: ACTIVITÉ | K28: NIVEAU 1 | T28: NIVEAU 2 | AC28: NIVEAU 3
B31: Suivi et évaluation | F31: =Activities!V5 -> SE-2 Planification du suivi et de l'évaluation | K31: =Activities!W5 -> Il existe un plan de suivi et d'évaluation qui est conforme aux objectifs du système de surveillance coordonné | T31: =Activities!W6 -> Le plan de suivi et d'évaluation est implanté pour surveiller les performances et les avancées du système de surveillance coordonné | AC31: =Activities!W7 -> Les résultats du suivi et de l'évaluation améliorent ou étendent de manière itérative le système de surveillance coordonné et s'alignent sur les recommandations et les normes internationales. | AJ31: COMMENTAIRES:
R37: (dans l'affirmative) | AA37: (dans l'affirmative)
K44: RÉPONSE: | R44: =IF(O44="Yes",1,0) -> 0 | T44: RÉPONSE: | AA44: =IF(X44="Yes",1,0) -> 0 | AC44: RÉPONSE: | AI44: =IF(AG44="Yes",1,0) -> 0

Sheet Data Quality Standards
B3: Normes de qualité des données
B8: Veuillez indiquer si chaque activité ci-dessous est terminée («1») ou non terminée/en attente («0») sur la base du niveau de capacité actuel de votre pays.
B12: NOTES IMPORTANTES: ·Sélectionnez «1» si la capacité est atteinte et «0» si l'activité n'est pas terminée ou est en attente. ·Si le niveau de capacité est atteint et que la réponse sélectionnée est «1», le niveau de capacité suivant correspondant à l'activité s'ouvre. ·Si la capacité ne s'applique pas à votre situation, sélectionnez «0». ·Si vous ne connaissez pas la réponse, sélectionnez «0». ·Si le niveau de capacité comporte deux éléments (la phrase est reliée par «ET»), ils doivent TOUS DEUX être atteints si vous choisissez «1» comme réponse. HYPOTHÈSE CRITIQUE: ·Étant donné que le SIS OT se réfère au développement d'une surveillance et d'un partage des données coordonnés, le fait de sélectionner «1» implique que le niveau de capacité a été atteint dans les secteurs «Une seule santé» qui sont concernés par cette activité. Dans le cas contraire, veuillez sélectionner «0».
AK20: 1
AK21: 0
B28: ÉTAPE | F28: ACTIVITÉ | K28: NIVEAU 1 | T28: NIVEAU 2 | AC28: NIVEAU 3
AJ30: COMMENTAIRES:
B31: Suivi et évaluation | F31: =Activities!V8 -> SE-3 Normes de qualité des données | K31: =Activities!W8 -> Il existe une méthodologie de gestion de la qualité des données | T31: =Activities!W9 -> La qualité des données a été testée et considérée comme étant conforme aux objectifs du système de surveillance coordonné | AC31: =Activities!W10 -> La qualité des données est conforme aux normes et recommandations internationales
R37: (dans l'affirmative) | AA37: (dans l'affirmative)
K44: RÉPONSE: | R44: =IF(O44="Yes",1,0) -> 0 | T44: RÉPONSE: | AA44: =IF(X44="Yes",1,0) -> 0 | AC44: RÉPONSE: | AI44: =IF(AG44="Yes",1,0) -> 0

Sheet Toolbox
B1: Numéro | C1: NOM DE LA RESSOURCE | D1: BRÈVE DESCRIPTION | E1: LIEN VERS LA RESSOURCE | F1: NOTE | G1: MATÉRIEL et VIDÉOS UTILES | H1: PUBLICATIONS | K1: $A$1
B2: 1 | C2: =Backbone!A21 -> AfyaData | D2: AfyaData est un outil de surveillance des maladies «Une seule santé» conçu pour répondre aux besoins de surveillance humaine, animale et environnementale. Il comprend (a) une application mobile utilisée pour collecter des données et recevoir un retour d'information (interaction), et (b) une application web utilisée pour gérer les données, les utilisateurs et les formulaires de surveillance qui peuvent être distribués aux collecteurs de données sur la base des protocoles d'autorisation d'accès définis. | E2: https://github.com/sacids/afyadata1.2 https://github.com/sacids/AfyaDataApp | G2: http://www.sacids.org/news/one-health-community-afyadata-tool/ | H2: https://publichealth.jmir.org/2017/4/e94/ https://www.openaccessgovernment.org/one-health-surveillance-systems/62354/ | J2: $A$1 | K2: $G$7 | L2: $A$1
B3: 2 | C3: =Backbone!A437 -> Analyse de la politique sur le terrain (PFA) | D3: L'analyse de la politique sur le terrain (PFA) est une cartographie spécialisée des parties prenantes qui permet de visualiser le système des organisations qui interagissent sur une question politique donnée. La PFA est utilisée pour identifier les organisations (publiques, privées ou à but non lucratif) à plusieurs niveaux du système (local, national, régional et international), ainsi que pour cartographier les structures (politiques, cadres, directives, infrastructures physiques ou technologiques) créées par ces organisations. Cela permet aux individus de naviguer de manière réfléchie à travers ces structures pour assurer la pertinence de l'allocation des ressources et de l'engagement des parties prenantes. La PFA peut aider à identifier les points critiques du système multisectoriel où les acteurs individuels peuvent avoir un impact ou apporter les changements nécessaires. La vidéo de la PFA oriente les utilisateurs à travers le processus de cartographie, et les modèles associés aident les utilisateurs à analyser leurs cartes afin de veiller à l'utilité des informations dans l'élaboration de leurs programmes ou de leurs politiques. | E3: Vidéo: https://www.youtube.com/watch?v=v26_j72svjM&feature=youtu.be | F3: La vidéo Hubert et le modèle PFA développé pour le SIS OT présentent cette ressource. Pour toute question ou information sur l'utilisation de la PFA, veuillez contacter Kaylee Myhre Errecaborde à myhre044@umn.edu | H3: https://www.researchgate.net/publication/242456068_Analyzing_Policy_Fields_Helping_Students_Understand_Complex_State_and_Local_Contexts http://www.jodisandfort.org/uploads/4/5/0/9/45098387/policy_field_audit.pdf | L3: =ADDRESS(ROW(B1),COLUMN(B1)) -> $B$1
B4: 3 | C4: =Backbone!A420 -> Analyse des écarts PVS de l'Organisation mondiale de la santé animale (OMSA) | D4: Les Pays Membres de l'OMSA peuvent demander une analyse des écarts PVS, qui les aide à réaliser une planification détaillée en fonction des résultats de l'évaluation de leur PVS. L'Analyse des écarts PVS (comprenant l'outil d'évaluation des coûts PVS) est un exercice soigneusement structuré, conduit auprès des Services vétérinaires nationaux dans le but de déterminer leurs cibles prioritaires, ainsi que les stratégies, les activités et les investissements nécessaires pour atteindre ces objectifs. Pendant la mission, les services vétérinaires du pays, assistés par une équipe d'experts certifiés OMSA, et utilisant les informations de l'évaluation PVS comme base de référence, développent des actions stratégiques et chiffrées visant à améliorer leurs performances et à atteindre les objectifs nationaux. | E4: https://www.woah.org/en/what-we-offer/improving-veterinary-services/pvs-pathway/ | F4: La mission d'analyse des écarts PVS peut être demandée après réception du rapport approuvé de la mission PVS. | G4: http://www.oie.int/solidarity/pvs-pathway/planning-gap-analysis/
B5: 4 | C5: =Backbone!A271 -> Analyse du réseau des infrastructures de laboratoire (LINA) | D5: LINA fournit une fonctionnalité avancée de modélisation computationnelle et d'analyse de données dans une application en ligne simple à utiliser. L'outil offre la possibilité de visualiser facilement, à l'aide d'organigrammes, les capacités et les moyens du réseau national de laboratoires, mais aussi de chaque laboratoire séparément. Il est utile lors de la mise en place du réseau de laboratoires d'un pays, mais aussi dans le cadre d'une évaluation continue basée sur les besoins (scénarios de simulation, notamment en cas d'apparition de foyer épidémique). Cet outil contribue à optimiser le réseau de transport d'échantillons, à renforcer les capacités des laboratoires, à planifier les programmes de lutte contre les maladies, et à faciliter une réponse rapide (par exemple, en cas d'apparition de foyer épidémique, identification des capacités disponibles et répartition de la charge de travail des laboratoires). | F5: Pour en savoir plus sur la possibilité d'accéder à l'outil, veuillez contacter Patrick Finley <pdfinle@sandia.gov et Walter Beyeler <webeyel@sandia.gov
B6: 5 | C6: =Backbone!A604 -> Application de suivi des expositions et des cas de rage (REACT) | D6: Un outil visant à soutenir la mise en œuvre de programmes de gestion intégrée des cas de morsures. L'outil, qui se présente sous la forme d'une application, permet de mener des enquêtes standardisées et systématiques sur le terrain pour les personnes exposées à la rage et les animaux suspectés d'être infectés. L'outil guide la collecte des données et fournit un retour d'information en temps réel aux utilisateurs concernant les procédures d'enquête sur la gestion intégrée des cas de morsure (IBCM), le risque de rage chez les animaux à l'étude et les processus de quarantaine. L'application suit les cas au fil du temps, offrant à l'utilisateur la possibilité de surveiller des informations épidémiologiques et médicales importantes de façon longitudinale. Les données sont collectées hors ligne, mais elles peuvent être immédiatement téléchargées sur un serveur partagé et sécurisé auquel peuvent accéder les utilisateurs qui ont été préalablement approuvés par des organisations de santé animale et humaine. Un site web personnalisé aide les utilisateurs à visualiser et à analyser les données relatives à la gestion intégrée des cas de morsure (IBCM) et à l'exposition à la rage, à la fois pour définir les directives de traitement des victimes de morsure et pour obtenir des informations utiles aux interventions de lutte contre la rage, notamment en matière de vaccination des chiens. | E6: https://rabiestaskforce.com/toolkit | F6: Disponible en anglais, en français, en espagnol, en vietnamien et en thaïlandais. Cette application est principalement conçue pour la collecte, l'agrégation et l'analyse de données dans le cadre des enquêtes et des rapports liés aux cas de rage humaine et animale, mais elle peut être adaptée à de nombreux contextes, dans la mesure où elle permet aux utilisateurs de créer n'importe quel type de rapport. | G6: https://www.youtube.com/watch?v=BQJ5D6wGIeg | H6: https://www.cdc.gov/mmwr/volumes/68/wr/mm6832a6.htm
B7: 6 | C7: =Backbone!A435 -> Approche de gestion progressive de la résistance aux antimicrobiens (AMR-PMP) | D7: L'Approche de gestion progressive de la résistance aux antimicrobiens (FAO-PMP-AMR) est un outil d'autoévaluation pragmatique qui oriente les pays dans l'élaboration et la mise en œuvre d'un plan d'action national multisectoriel «Une seule santé» pour lutter contre la RAM. Elle comprend un outil d'auto-évaluation permettant de quantifier le niveau de mise en œuvre. | F7: Pour toute demande d'accès à l'outil, s'adresser à FAO-AMR-PMP@fao.org | G7: http://www.fao.org/antimicrobial-resistance/resources/tools/fao-pmp-amr/en/ | H7: http://www.fao.org/antimicrobial-resistance/resources/tools/fao-pmp-amr/en/ http://www.fao.org/europe/news/detail-news/en/c/1200272/ http://www.fao.org/africa/news/detail-news/en/c/1190787
B8: 7 | C8: =Backbone!A194 -> Approche d'évaluation des systèmes de santé (HSAA) | D8: L'approche d'évaluation des systèmes de santé (HSAA) est proposée comme une aide destinée à diagnostiquer la performance des systèmes de santé et obtenir des informations sur l'ensemble du système, afin de mieux orienter la planification du secteur de la santé. Elle examine l'ensemble du système de santé, y compris la gouvernance, le financement, la prestation des services de santé, les ressources humaines, la gestion des produits pharmaceutiques et les systèmes d'information sur la santé, sans oublier le secteur privé, qui est une partie importante mais souvent négligée du système. | E8: https://www.hfgproject.org/the-health-system-assessment-approach-a-how-to-manual/
B9: 8 | C9: =Backbone!A453 -> Approche par étapes pour l'élimination de la rage (SARE) | D9: SARE est un outil pratique de planification, de suivi et d'évaluation qui permet d'orienter, de déployer et d'affiner des programmes de lutte contre la rage. Il fournit une feuille d'évaluation Excel contenant des étapes mesurables conçues comme un flux logique d'activités, qui permettent de passer de l'étape 0 à l'étape 5 jusqu'à l'éradication de la rage transmise par les chiens. | E9: https://caninerabiesblueprint.org/A-stepwise-approach-to-planning?lang=en | F9: Pour obtenir la feuille de résultats pour les évaluations SARE, veuillez contacter https://rabiesblueprint.org/sare.html | G9: https://caninerabiesblueprint.org/IMG/pdf/sare_outline_2017_f.pdf
B10: 9 | C10: =Backbone!A239 -> Atelier national de rapprochement et d'échange RSI-PVS | D10: Cet outil contribue à orienter les parties prenantes «Une seule santé» dans le cadre d'un atelier où celles-ci aborderont les exigences du Règlement sanitaire international (RSI), ainsi que de la coordination et des opérations qu'elles doivent mener pour répondre à ces exigences. L'atelier est conçu pour établir un «diagnostic» de la coordination multisectorielle à travers différentes problématiques, et créer une feuille de route pour faire avancer celle-ci en vue de parvenir à la conformité au RSI et à atteindre de hautes performances au niveau national. | E10: https://extranet.who.int/sph/ihr-pvs-bridging-workshop | F10: Disponible en anglais, en russe et en français Fourni par l'OMS et l'OMSA. Pour cette évaluation, les contacts sont delarocques@who.int (Stéphane de la Rocque de Séverac) et le Dr. François Caya (f.caya@oie.int) | H10: https://www.ncbi.nlm.nih.gov/pubmed/31564739
B11: 10 | C11: =Backbone!A383 -> Boîte à outils de cartographie et de ressources des systèmes «Une seule santé» (OH-SMART) | D11: L'OH-SMART est un processus en six étapes qui aide les parties prenantes de plusieurs secteurs à cartographier, analyser et améliorer tout système existant qui nécessite une collaboration interdisciplinaire et multisectorielle. Le processus OH-SMART peut être utilisé pour renforcer les systèmes «Une seule santé» au niveau communautaire, local, sous-national, national et régional en réponse à tout défi multisectoriel, y compris la révision des cadres de réponse d'urgence, l'amélioration des plans d'action contre la résistance aux antimicrobiens, la création de protocoles de collaboration multi-organisations en matière de maladies infectieuses et le soutien à la gestion collaborative des risques au niveau communautaire. | F11: Le guide du facilitateur OH-SMART est destiné aux personnes qui ont suivi la formation d'exécutant ou de maître facilitateur. Les exécutants OH-SMART suivent une formation de formateurs et encadrent un atelier OH-SMART. Ils sont ensuite capables d'utiliser la boîte à outils de manière indépendante. La formation des formateurs est proposée selon une modalité en ligne, proposée de façon régulière, ou en personne dans le cadre de la mise en œuvre d'OH-SMART. Une partie des frais de formation en ligne est consacrée à l'encadrement et au soutien des exécutants afin qu'ils puissent adapter et mettre en œuvre l'outil pour leur usage particulier. Contact: Katey Pelican à pelicank@umn.edu | G11: https://oh-smart.umn.edu/ | H11: Publications OH-SMART: https://oh-smart.umn.edu/oh-smart-action/oh-smart-publications
B12: 11 | C12: =Backbone!A677 -> Boîte à outils de simulation | D12: Une simulation est un exercice qui imite un scénario réel pour évaluer ou renforcer les protocoles et les capacités de préparation. Les simulations permettent aux organisations d'identifier des lacunes ou des points faibles dans les compétences et des capacités de leur personnel. Les plateformes se livrent généralement à des exercices de simulation pour examiner et renforcer le niveau de coordination entre les secteurs «Une seule santé» dans les activités de préparation. Cette boîte à outils aide les plateformes et autres parties prenantes à choisir le type de simulation approprié et à concevoir et mettre en œuvre une simulation efficace. Elle a pour objectif de fournir un aperçu de haut niveau des simulations. | E12: https://www.onehealthapp.org/ | F12: Section «Ressources «Une seule santé»»
B13: 12 | C13: =Backbone!A624 -> Boîte à outils pour la cartographie des parties prenantes «Une seule santé» | D13: Cette boîte à outils sert de guide dans le processus de planification et d'exécution de la cartographie des parties prenantes. Le processus étape par étape donne un aperçu des phases du processus de cartographie des parties prenantes. L'objectif de ce processus de cartographie des parties prenantes est d'identifier et d'analyser tous les acteurs essentiels devant être impliqués dans la constitution de la plateforme «Une seule santé» et l'exécution de ses fonctions, ainsi que d'orienter le développement et la mise en œuvre d'activités clés «Une seule santé», telles que les directives techniques et l'élaboration de politiques. Les outils contenus dans cette boîte à outils sont conçus pour pouvoir être adaptés à des contextes pays différents. | E13: https://www.onehealthapp.org/ | F13: Veuillez vous reporter à la section «Ressources «Une seule santé»» d'OH-app.
B14: 13 | C14: =Backbone!A648 -> Boîte à outils pour la planification de la préparation et la réponse | D14: Cette boîte à outils est conçue pour aider les pays à élaborer des plans multisectoriels de préparation et de réponse aux événements de santé publique, y compris ceux dont l'étiologie est initialement inconnue. Elle peut être utilisée par les pays qui ne disposent d'aucun plan ou par ceux qui souhaitent renforcer les plans, les documents techniques ou les procédures opérationnelles standard existants. Basée sur le cadre de la Région Afrique de l'OMS pour la planification d'un événement d'étiologie initialement inconnue, cette boîte à outils fournit des orientations techniques détaillées sur le renforcement des capacités multisectorielles de préparation et de réponse. | E14: https://www.onehealthapp.org/ | F14: Veuillez vous reporter à la section «Ressources «Une seule santé»» d'OH-app.
B15: 14 | C15: =Backbone!A683 -> Boîte à outils pour la promotion d'une politique «Une seule santé» | D15: Cette boîte à outils aide les parties prenantes de l'approche «Une seule santé» à élaborer et à mettre en œuvre une stratégie de promotion de cette politique qui les aidera à faire passer leurs messages et ainsi gagner le soutien des décideurs, identifier les outils et les événements de sensibilisation pour renforcer la collaboration et les politiques, et entretenir des alliances et des champions ralliés à la cause «Une seule santé». | E15: https://www.onehealthapp.org/ | F15: Veuillez vous reporter à la section «Ressources «Une seule santé»» d'OH-app.
B16: 15 | C16: =Backbone!A628 -> Boîte à outils pour la structure organisationnelle et les termes de référence | D16: Cette boîte à outils décrit le processus général et les outils nécessaires pour soutenir les efforts des pays visant à développer ou à revoir la structure organisationnelle d'une plateforme «Une seule santé», notamment un organigramme et des termes de référence. À travers l'assistance au développement ou à la révision des structures organisationnelles de la plateforme, l'objectif devrait être de promouvoir la formalisation d'une plateforme «Une seule santé» officiellement approuvée par tous les Ministères concernés et les hauts dirigeants gouvernementaux. | E16: https://www.onehealthapp.org/ | F16: Section «Ressources «Une seule santé»»
B17: 16 | C17: =Backbone!A680 -> Boîte à outils pour l'analyse a posteriori après l'apparition d'un foyer épidémique | D17: Cette boîte à outils oriente les représentants de la plateforme «Une seule santé» à travers le processus, étape par étape, de planification et d'exécution d'une analyse a posteriori (AAP) après l'apparition d'un foyer épidémique. | E17: https://www.onehealthapp.org/ | F17: Veuillez vous reporter à la section «Ressources «Une seule santé»» d'OH-app.
B18: 17 | C18: =Backbone!A595 -> Boîte à outils pour le contrôle de la qualité des données (DQR) | D18: La boîte à outils pour le contrôle de la qualité des données (DQR) propose une approche intégrée de la qualité des données. Elle se compose d'un ensemble de directives et d'outils servant de base à une approche normalisée et holistique de la qualité des données qui favorise l'institutionnalisation d'une évaluation régulière de la qualité des données dans les pays. Elle comporte trois modules, chacun composé de méthodes et d'outils spécifiques: (1) Cadre et paramètres; (2) Contrôle théorique de la qualité des données; (3) Vérification des données et évaluation du système. | E18: https://www.measureevaluation.org/our-work/data-quality/data-quality-review
B19: 18 | C19: =Backbone!A685 -> Boîte à outils pour le modèle de politique «Une seule santé» | D19: Cette boîte à outils est conçue pour aider les décideurs à comprendre la nature et l'ampleur de l'impact sur la santé vétérinaire, humaine et environnementale que pourraient avoir les changements dans les populations animales et humaines, et présente quelques-unes des options politiques disponibles. | E19: https://www.onehealthapp.org/ | F19: Veuillez vous reporter à la section «Ressources «Une seule santé»» d'OH-app.
B20: 19 | C20: =Backbone!A634 -> Boîte à outils pour l'élaboration d'un manuel de gouvernance | D20: Pour être efficaces, les plateformes nationales «Une seule santé» doivent mettre au point et s'accorder sur des processus de gouvernance qui expliquent clairement comment elles fonctionneront. Cette boîte à outils présente la manière dont il faut élaborer un manuel de gouvernance décrivant l'objectif de la plateforme, ses rôles et responsabilités, les protocoles de réunion et de communication, l'allocation des ressources humaines, financières et techniques, ainsi qu'un moyen d'évaluer et de communiquer les performances. | E20: https://www.onehealthapp.org/ | F20: Section «Ressources «Une seule santé»»
B21: 20 | C21: =Backbone!A137 -> Cadre de collecte de données EFSA | D21: Outil en ligne pour la collecte des données. Les données devraient être obligatoirement transmises par tous les États Membres de l'UE. Vise à simplifier la procédure de collecte de données sur les zoonoses entre les parties et à faciliter l'échange, l'extraction et la réutilisation de celles-ci. | E21: https://dcf.efsa.europa.eu/dcf-war/dc | F21: Une autorisation est nécessaire. Pour de plus amples informations, veuillez contacter Mario.MONGUIDI@efsa.europa.eu | G21: https://efsa.onlinelibrary.wiley.com/doi/pdf/10.2903/j.efsa.2014.3945
B22: 21 | C22: =Backbone!A265 -> Cadre de compétences de leadership pour les laboratoires (GLLP) | D22: Le Cadre de compétences de leadership pour les laboratoires décrit les neuf compétences essentielles dont ont besoin les responsables de laboratoire pour construire et diriger un «système national de laboratoires de santé» durable, comprenant des laboratoires humains, vétérinaires, environnementaux, agricoles, alimentaires et chimiques, en vue de soutenir les efforts de détection, de contrôle et de prévention des maladies dans les systèmes de santé du monde entier. | E22: https://www.who.int/ihr/publications/laboratory-leadership-competency-framework-first-edition/en/ https://www.who.int/ihr/publications/laboratory-leadership-competency-framework-first-edition/fr/ https://www.who.int/ihr/publications/laboratory-leadership-competency-framework-first-edition/ru/ https://www.who.int/ihr/publications/laboratory-leadership-competency-framework-first-edition/es/ | F22: Le Cadre de compétences de leadership pour les laboratoires est disponible en anglais, en français, en russe et en espagnol. Le Cadre de compétences de leadership pour les laboratoires soutient le déploiement du Programme mondial pour le leadership des laboratoires. | G22: https://www.who.int/ihr/lyon/global-laboratory-leadership-programme/en/ | H22: https://www.frontiersin.org/articles/10.3389/fpubh.2019.00199/full https://apps.who.int/iris/bitstream/handle/10665/325635/WER24may2019-xiv-xvii-eng-fre.pdf http://dx.doi.org/10.2471/BLT.17.195883
B23: 22 | C23: =Backbone!A2 -> Cadre de surveillance basé sur les événements des CDC en Afrique | D23: Le cadre pour la surveillance basée sur les événements (SBE) offre une orientation aux professionnels de la santé publique qui cherchent à mettre en œuvre la SBE à tous les échelons administratifs de leur pays. Dans les pays de l'Union africaine qui ont adopté la stratégie de Surveillance intégrée de la maladie et la riposte (IDSR), ce document est un complément capable d'améliorer la mise en œuvre de cette IDSR. | E23: https://africacdc.org/download/africa-cdc-event-based-surveillance-framework/ | F23: Étant donné qu'ensemble, la surveillance basée sur les indicateurs (SBI) et la surveillance basée sur les événements (SBE) constituent la composante d'alerte précoce et de réponse du système de surveillance de la santé publique, ce cadre est destiné à être utilisé pour la mise en œuvre de la SBE. Des traductions en anglais et en français sont disponibles.
B24: 23 | C24: =Backbone!A510 -> Cadre d'évaluation de la surveillance (SERVAL) | D24: Un guide par étapes sur la façon de planifier, de structurer et de mener à bien l'évaluation des systèmes de surveillance de la santé animale, testé et éprouvé dans le secteur vétérinaire britannique. Il a été conçu pour faciliter l'évaluation exhaustive de composantes (activités) de surveillance séparées ou de programmes de surveillance entiers. | E24: https://www.rvc.ac.uk/Media/Default/VEEPH/Documents/SERVAL.pdf
B25: 24 | C25: =Backbone!A561 -> Cadre d'évaluation de la surveillance (SurF) | D25: Un cadre d'évaluation des systèmes de surveillance utilisable dans les domaines de la biosécurité, de la santé végétale ou animale. Il a été mis au point par le Ministère des industries primaires de Nouvelle-Zélande pour son propre usage, mais il est rendu public afin que d'autres organisations puissent l'utiliser. | E25: https://www.mpi.govt.nz/dmsdocument/18091/direct | H25: https://onlinelibrary.wiley.com/doi/full/10.1111/tbed.12898
B26: 25 | C26: =Backbone!A183 -> Cadre d'évaluation des systèmes de surveillance de santé publique pour la détection précoce des foyers épidémiques | D26: Un cadre de planification opérationnelle et d'évaluation pour les systèmes de surveillance syndromique. Le cadre contribue à la planification et à l'évaluation de la totalité du système de surveillance sur la base d'un certain nombre de seuils autodéterminés. | E26: https://www.researchgate.net/publication/8576839_Framework_for_Evaluating_Public_Health_Surveillance_Systems_for_Early_Detection_of_Outbreaks_Recommendations_from_the_CDC_Working_Group
B27: 26 | C27: =Backbone!A33 -> Cadre pour le renforcement de la prévention et du contrôle de l'anthrax | D27: Le Cadre présente un historique de la maladie du charbon et explique comment améliorer la prévention et le contrôle de cette maladie chez les animaux et les humains. Il est destiné aux responsables de la santé publique et animale des pays où cette maladie est endémique. Il peut être utilisé pour la formation sur la prévention et le contrôle de la maladie du charbon, ou pour servir de brève référence aux planificateurs de la santé publique. | E27: https://www.cdc.gov/anthrax/resources/anthrax-framework.html | H27: https://wwwnc.cdc.gov/eid/article/23/13/17-0431_article
B28: 27 | C28: =Backbone!A482 -> Cartographie des ressources pour le RSI et la sécurité sanitaire (Remap) | D28: La cartographie des ressources pour le RSI et la sécurité sanitaire (REMAP) est un outil au format Excel développé par l'OMS pour cartographier les ressources disponibles et potentielles qui contribuent au développement et à la conservation des capacités du RSI au niveau des pays. L'OMS aide les pays à élaborer des modèles et des listes de contrôle appropriés pour le REMAP en fonction du contexte de chaque pays. Pour ce faire, des consultations sont organisées avec des parties prenantes nationales multisectorielles, notamment des donateurs et des partenaires. | F28: Pour obtenir des informations supplémentaires, notamment sur l'accès, veuillez contacter l'équipe à sph@who.int | G28: https://apps.who.int/iris/bitstream/handle/10665/329385/WHO-WHE-CPI-2019.17-eng.pdf?sequence=1&isAllowed=y
B29: 28 | C29: =Backbone!A396 -> Codex sur la surveillance «Une seule santé» | D29: Un cadre de haut niveau qui favorise la collaboration, la compréhension mutuelle, l'échange de connaissances et l'interopérabilité des données entre les secteurs de surveillance «Une seule santé». Le Codex sur la surveillance «Une seule santé» (OHS-Codex) présente un ensemble de ressources pratiques ainsi que des pointeurs vers des exemples d'application réussie de ces ressources. | E29: https://oh-surveillance-codex.readthedocs.io/en/latest/index.html
B30: 29 | C30: =Backbone!A296 -> Directives actualisées pour l'évaluation des systèmes de surveillance de la santé publique | D30: Ce rapport fournit des directives actualisées pour l'évaluation des systèmes de surveillance, à partir du Cadre d'évaluation des programmes de santé publique des CDC, des recherches et des discussions sur les préoccupations liées aux systèmes de surveillance de la santé publique, et des commentaires émis par la communauté de la santé publique. Les directives de ce rapport décrivent de nombreuses tâches et activités connexes qui peuvent être appliquées au système de surveillance de la santé publique. | E30: https://www.cdc.gov/mmwr/preview/mmwrhtml/rr5013a1.htm
B31: 30 | C31: =Backbone!A176 -> Directives pour la conception de plans de surveillance des maladies animales | D31: Le modèle général et le cadre du plan de surveillance des maladies infectieuses | E31: http://www.fao.org/3/cb3252en/cb3252en.pdf
B32: 31 | C32: =Backbone!A59 -> Directives relatives aux compétences des professionnels de laboratoire de santé publique: CDC et Association des laboratoires de santé publique | D32: Les directives qui décrivent les connaissances, les compétences et les aptitudes que doivent posséder les professionnels pour fournir les principaux services des laboratoires de santé publique (LSP) de manière efficace et efficiente. | E32: https://www.cdc.gov/mmwr/preview/mmwrhtml/su6401a1.htm?s_cid=su6401a1_w | F32: Applicable aux activités spécifiques du secteur public qui pourraient contribuer à la mise en place des éléments constitutifs de la surveillance coordonnée.
B33: 32 | C33: =Backbone!A643 -> Élaboration du plan stratégique «Une seule santé» | D33: Cette boîte à outils guide le processus d'élaboration d'un plan stratégique national «Une seule santé», étape par étape, au moyen d'une approche participative et axée sur les parties prenantes. Un plan stratégique «Une seule santé» est un document de politique nationale qui définit une approche coordonnée et multisectorielle «Une seule santé» face aux menaces que constituent les maladies, notamment les zoonoses, pour la santé publique. Il sert également de base à la planification du travail de la plateforme et d'outil de promotion pour la mobilisation des ressources. | E33: https://www.onehealthapp.org/ | F33: Veuillez vous reporter à la section «Ressources «Une seule santé»» d'OH-app.
B34: 33 | C34: =Backbone!A166 -> EMPRES Système mondial d'information sur les maladies animales (EMPRES-i) | D34: Un système d'information sécurisé en ligne pour aider les services vétérinaires au niveau des pays en leur fournissant une base de données de référence sur les maladies animales, y compris les zoonoses, à l'échelon régional et mondial. | E34: Site public: http://empres-i.fao.org/eipws3g/ Site interne de la FAO: https://caf.fao.org/login?service=http%3A%2F%2Fempres-i.fao.org%2Fempresi3g%2Findex.html%3Fwsid%3Dempresi%26lang%3DEN-en%26proxy%3Dfalse | F34: Il est possible d'avoir libre accès à la ressource dans le cas de l'outil public, mais la version interne n'est utilisable qu'avec l'autorisation du chef de projet. L'accès est possible grâce à une adresse électronique et un mot de passe fournis par le département informatique de la FAO. | G34: http://empres-i.fao.org/eipws3g/assets/docs/EMPRES-i_Manual.pdf https://youtu.be/oLa5MRe3qDw https://youtu.be/5WkB4q5DR6k https://youtu.be/6tef0goSBlY https://youtu.be/Ew9TukjBbB0 | H34: http://www.fao.org/3/a-i4386e.pdf http://www.fao.org/publications/card/fr/c/4296b6d5-14c9-5e72-b467-15f09baa29de/ https://www.ijidonline.com/article/S1201-9712(18)34603-4/fulltext https://www.researchgate.net/publication/311821964 http://www.fao.org/3/a-i4386e.pdf
B35: 34 | C35: =Backbone!A100 -> Évaluation des collaborations au sein d'un système de surveillance multisectoriel (EcoSur) | D35: EcoSur est un outil semi-quantitatif dont l'objectif est d'évaluer l'organisation et le fonctionnement de la collaboration au sein d'un système de surveillance multisectoriel, ainsi que d'analyser les points forts et les points faibles de cette collaboration. Au final, les résultats de l'évaluation peuvent contribuer à la formulation de recommandations visant à améliorer la collaboration au sein du système de surveillance multisectoriel. | E35: https://survtools.org/wiki/surveillance-evaluation/doku.php?id=quality_of_the_collaboration | H35: https://doi.org/10.3389/fvets.2019.00109 http://www.theses.fr/s168606
B36: 35 | C36: =Backbone!A367 -> Évaluation des systèmes «Une seule santé» pour les zoonoses prioritaires (OH-SAPZ) | D36: L'outil vise à faciliter une évaluation systématique des structures nationales de coordination de l'initiative «Une seule santé» en matière de prévention, de détection et de réponse aux zoonoses. Les utilisateurs doivent suivre un processus en trois phases: priorisation des maladies; cartographie des systèmes de surveillance et laboratoires; analyse et recommandations. Plus généralement, le processus OH-SAPZ est conçu pour faire la lumière sur les points forts et les points faibles d'un pays en matière de communication et de coordination intersectorielles, tout en offrant une démarche claire pour combler les lacunes détectées. | E36: https://ghss.georgetown.edu/oh-sapz/ | F36: Pour toute demande de modèles, de diapositives et de scénarios, veuillez envoyer un e-mail. Erin.Sorrell@georgetown.edu, Claire.Standley@georgetown.edu | G36: Manuel de l'utilisateur OH-SAPZ https://ghss.georgetown.edu/oh-sapz/ | H36: https://www.ncbi.nlm.nih.gov/pmc/articles/PMC4600904/ https://www.ncbi.nlm.nih.gov/pmc/articles/PMC6479159/
B37: 36 | C37: =Backbone!A83 -> Évaluation ECDC des systèmes de suivi et de surveillance de la qualité des données - Manuel des méthodes et des applications | D37: Un manuel pour le suivi de la qualité des données de surveillance des maladies à l'attention des professionnels de la santé publique. Il vise à fournir une orientation sur les processus de suivi de la qualité des données et d'évaluation des systèmes de surveillance dans les États Membres de l'UE/EEE, ainsi qu'à faciliter la tâche quotidienne des professionnels de la santé publique qui travaillent avec des données de surveillance sur les maladies transmissibles. | E37: https://www.ecdc.europa.eu/en/publications-data/data-quality-monitoring-and-surveillance-system-evaluation-handbook-methods-and | H37: https://bmjopenquality.bmj.com/content/4/1/u209037.w3663; https://www.ncbi.nlm.nih.gov/pmc/articles/PMC5372144/
B38: 37 | C38: =Backbone!A256 -> Évaluation externe conjointe (EEC) | D38: Cet outil est conçu pour évaluer la capacité des pays à prévenir, détecter et répondre rapidement aux menaces pour la santé publique, qu'elles soient d'origine naturelle, délibérée ou accidentelle. L'évaluation externe conjointe (EEC) fournit 19 indicateurs d'évaluation des pays qui reflètent des degrés progressifs de capacité des pays, allant de «non mis en œuvre» à «pleinement mis en œuvre, testé et mis en pratique». | E38: https://www.who.int/publications/i/item/joint-external-evaluation-tool-(jee-tool)---second-edition https://apps.who.int/iris/bitstream/handle/10665/204368/9789241510172_eng.pdf?sequence=1 | F38: Pour toute assistance, contactez votre bureau national ou régional de l'OMS. | G38: https://www.who.int/publications/i/item/handbook-for-the-integration-of-the-oie-pvs-results-into-the-jee-process
B39: 38 | C39: =Backbone!A163 -> Event Mobile Application (EMAi) | D39: EMA-i est une application d'établissement de rapports en temps réel mise au point par la FAO. Grâce à EMA-i, les vétérinaires fonctionnaires recueillent sur le terrain des informations sur les maladies animales, qui sont ensuite transmises via le réseau. L'application génère des rapports géoréférencés, qui sont transmis à l'interface utilisateur pays à travers le Système mondial d'information sur les maladies animales de la FAO (EMPRES-i), où les données sont stockées et traitées en toute sécurité. L'outil est adapté aux besoins nationaux en matière d'établissement de rapports sur les maladies. | F39: Pour obtenir des informations supplémentaires, notamment sur l'accès, veuillez contacter Sabina.Ramazzotto@fao.org | H39: http://www.fao.org/3/a-i4853e.pdf http://www.fao.org/3/CA1078EN/ca1078en.pdf http://boutique.oie.int/extrait/24tekola657670.pdf
B40: 39 | C40: =Backbone!A179 -> FoodChain-Lab (FCL) | D40: FoodChain-Lab (FCL) est un logiciel de traçage libre et gratuit. Il fournit des analyses de traçage des denrées alimentaires en amont et en aval afin d'identifier la source d'une contamination à l'origine de foyers épidémiques d'origine alimentaire ou d'autres incidents liés à l'alimentation. FCL offre des fonctions de collecte, de gestion et de visualisation des données ainsi que des méthodes d'analyse interactives. FCL a été appliqué avec succès dans un certain nombre de foyers épidémiques. | E40: https://foodrisklabs.bfr.bund.de/foodchain-lab/ https://fcl-portal.bfr.berlin/ | G40: https://foodrisklabs.bfr.bund.de/foodchain-lab/ https://foodrisklabs.bfr.bund.de/foodchain-lab/ https://github.com/SiLeBAT/BfROpenLab https://github.com/SiLeBAT/fcl-client | H40: https://www.liebertpub.com/doi/pdf/10.1089/fpd.2012.1296 https://journals.plos.org/plosone/article?id=10.1371/journal.pone.0151977 https://efsa.onlinelibrary.wiley.com/doi/epdf/10.2903/sp.efsa.2019.EN-1742
B41: 40 | C41: =Backbone!A433 -> Glossaire du Programme conjoint européen «Une seule santé» (OHEJP) | D41: Le glossaire «Une seule santé» à base communautaire, disponible en ligne et appelé Glossaire OHEJP, regroupe plus de 1 000 entrées de termes «Une seule santé» ou spécifiques du secteur de la santé publique, de la santé animale et de la sécurité alimentaire. Le glossaire OHEJP fournit également des outils qui permettent de mettre en évidence les similitudes et les différences entre les secteurs. | E41: https://foodrisklabs.bfr.bund.de/oh-collaboration/ | G41: https://foodrisklabs.bfr.bund.de/oh-collaboration/ https://data.d4science.net/nPk4 https://oh-surveillance-codex.readthedocs.io/en/latest/2-the-collaboration-principle.html#ohejp-glossary
B42: 41 | C42: =Backbone!A51 -> Guide de discussion sur les capacités sanitaires aux frontières (BHCDG) | D42: Le guide de discussion sur les capacités sanitaires aux frontières comprend des outils de modèles pour mener des discussions avec des représentants au niveau national, des districts et des points de passage frontaliers terrestres sur sept problématiques relatives aux systèmes de santé aux frontières: 1. Caractéristiques de la frontière 2. Disponibilité des services médicaux et de santé publique 3. Plans de réponse et formations 4. Systèmes de surveillance 5. Systèmes de communication 6. Mobilisation sociale 7. Partage d'informations binationales et régionales. | F42: Pour en savoir plus sur cette ressource, veuillez contacter l'équipe mondiale chargée de la santé aux frontières au sein des CDC: gbht@cdc.gov
B43: 42 | C43: =Backbone!A675 -> Incorporation de l'approche «Une seule santé» dans un kit d'orientation politique et technique | D43: Cette boîte à outils oriente le processus d'intégration du concept de l'approche «Une seule santé» dans les politiques sectorielles et intersectorielles, nouvelles et existantes, ainsi que dans les documents d'orientation technique, y compris les directives, les procédures opérationnelles standard (POS), les protocoles et les plans, dans le cadre d'une promotion élargie de la politique «Une seule santé» et des efforts multisectoriels de préparation et de réponse. | E43: https://www.onehealthapp.org/ | F43: Section «Ressources «Une seule santé»»
B44: 43 | C44: =Backbone!A155 -> Initiative de veille épidémique à sources ouvertes (EIOS) | D44: L'initiative EIOS est le fruit d'une collaboration unique entre l'OMS et plusieurs parties prenantes qui regroupe des initiatives, des réseaux et des systèmes, nouveaux et existants, afin de créer une approche «Une seule santé» unifiée pour tous les dangers visant à la détection précoce, la vérification et l'évaluation des risques et des menaces pour la santé publique à partir d'informations d'exploitation libre. | E44: https://portal.who.int/eios/Login | F44: Pour en savoir plus ou pour participer à cette initiative, veuillez envoyer un e-mail à l'équipe principale EIOS eios@who.int
B45: 44 | C45: =Backbone!A395 -> L'évaluation «Une seule santé» pour la planification et la performance (OH-APP) | D45: OH-APP est un cadre de suivi permettant aux mécanismes de coordination multisectoriels (MCM) d'auto-évaluer annuellement leurs capacités et performances organisationnelles en vue d'orienter la planification et l'aide au développement. L'OH-APP complète l'Évaluation externe conjointe (EEC) de l'OMS en fournissant des indicateurs plus spécifiques qui permettent de mesurer la maturité d'un MCM et d'évaluer sa progression vers un mécanisme durable capable de coordonner une collaboration multisectorielle et multipartite en vue de se préparer et de répondre aux menaces pour la santé publique. L'OH-APP est dispensé dans le cadre d'un atelier de deux jours, à l'aide d'outils de prise de décision participative. Les résultats de l'évaluation sont utilisés pour orienter la prise de décision en matière de planification conjointe, de mise en œuvre et de réponse aux menaces pour la santé publique. | E45: https://www.onehealthapp.org/ | F45: Il est possible d'accéder à cette application en utilisant un pays fictif, le Concordia. Pour des raisons de communication interne, seuls les utilisateurs disposant d'un identifiant officiel «Une seule santé» sont en mesure d'ajouter des évaluations pour d'autres pays. La fonctionnalité est la même, de sorte que les utilisateurs peuvent utiliser cette application pour évaluer la capacité et la performance organisationnelle «Une seule santé» dans le contexte de leur propre pays sans avoir besoin d'un identifiant officiel pour cette application.
B46: 45 | C46: =Backbone!A288 -> Liste et catégorisation des maladies animales prioritaires, y compris celles transmissibles à l'homme (Phylum) | D46: L'outil de catégorisation et de priorisation est prévu pour faciliter les étapes analytiques du protocole. Cet outil consiste en un fichier Excel, structuré en plusieurs modules. Chaque module correspond à une feuille de calcul séparée qui évalue un impact ou un type de données particulier. | E46: https://www.oie.int/solidarity/global-studies/categorisation-of-animal-diseases/ | G46: https://www.who.int/ihr/procedures/mission-reports/en/
B47: 46 | C47: =Backbone!A65 -> Logiciel d'information de santé au niveau des districts 2 (DHIS2) | D47: DHIS2 est une plateforme d'exploitation libre en ligne sur les systèmes d'information pour la gestion sanitaire (HMIS). La plateforme permet l'entreposage et la visualisation des données, et offre aux utilisateurs et aux décideurs politiques la possibilité de générer des analyses à partir de données en temps réel. DHIS2 est un logiciel libre et ouvert. Chaque pays possède sa propre «instance» de la plateforme DHIS2, et dispose de la pleine propriété de l'application et des données. Les Ministères de la santé, en collaboration avec les experts de la communauté DHIS2, configurent leur propre système d'information à partir de la plateforme générique. | E47: https://www.dhis2.org/home | F47: Le développement du logiciel central de la plateforme DHIS2 est géré par le Programme des systèmes d'information sanitaire (HISP) de l'Université d'Oslo (UiO). Contact: post@dhis2.org
B48: 47 | C48: =Backbone!A291 -> Méthodologie d'analyse de la législation relative à la RAM dans le secteur de l'alimentation et de l'agriculture | D48: La méthodologie développée par la FAO est un outil conçu pour orienter les analyses de la législation nationale en matière de RAM dans les secteurs de l'alimentation et de l'agriculture. Elle peut être appliquée pour soutenir un processus d'examen juridique permettant de révéler les lacunes et les points faibles de la législation nationale en matière d'utilisation des antimicrobiens et de résistance à ceux-ci, ainsi que d'évaluer la compatibilité des différents types d'instruments juridiques nationaux et régionaux avec les normes internationales de lutte contre la RAM. | F48: Pour en savoir plus sur la possibilité d'accéder à l'outil, veuillez contacter le Service du droit pour le développement du Bureau juridique (LEGN) de la FAO à l'adresse suivante: LEGN-Chief@fao.org
B49: 48 | C49: =Backbone!A427 -> Mission PVS pour les laboratoires de l'Organisation mondiale de la santé animale (OMSA) | D49: La mission PVS pour les laboratoires est considérée comme faisant partie intégrante des programmes spécifiques de l'OMSA qui visent à soutenir les pays. Les objectifs de ces missions sont non seulement de déterminer les ressources dont a besoin le réseau national de laboratoires, mais aussi d'évaluer la pertinence de la structure et de la viabilité de ce dernier dans le contexte national afin de présenter aux services vétérinaires les éléments nécessaires à une prise de décision stratégique. Ces missions permettent également d'analyser la relation entre le réseau national de laboratoires et tous les autres prestataires de services. | E49: https://www.oie.int/fileadmin/Home/eng/Support_to_OIE_Members/pdf/OIE_PVS_Pathway_Laboratory_Manual_2014.pdf | F49: La demande de mission PVS doit être envoyée par le délégué national de l'OMSA au directeur général de l'OMSA. | G49: https://rr-asia.oie.int/wp-content/uploads/2019/12/6a-managing-an-oie-pvs-evaluation-part-1_bangkok-dec-2019.pdf
B50: 49 | C50: =Backbone!A571 -> Organisation mondiale de la santé animale (OMSA) Application Alerts du Système mondial d'information sanitaire (WAHIS) | D50: L'application Alerts du WAHIS permet à ses utilisateurs de recevoir, sur leurs téléphones mobiles ou tablettes, des alertes sanitaires (notifications immédiates) et des rapports de suivi dès qu'ils sont publiés par l'OMSA. | F50: App store; Google Playstore, Play Market | G50: https://www.oie.int/en/for-the-media/press-releases/detail/article/oie-alerts-and-animal-health-information-now-available-on-your-smartphone-or-tablet/
B51: 50 | C51: =Backbone!A447 -> Outil d'analyse coût-efficacité de la surveillance de la rage animale | D51: Un outil basé sur Excel permettant d'effectuer une analyse coût-efficacité des programmes de prévention de la rage. | E51: https://www.ncbi.nlm.nih.gov/pubmed/28719253 | F51: L'outil Excel peut être téléchargé dans un fichier supplémentaire.
B52: 51 | C52: =Backbone!A42 -> Outil d'autoévaluation APHL pour l'informatique | D52: L'outil permet aux laboratoires de santé publique d'évaluer les points forts et les lacunes des capacités informatiques au regard de 19 domaines opérationnels essentiels. Il saisit les données de façon longitudinale, ce qui permet aux laboratoires d'effectuer une mesure des progrès réalisés et de tirer parti des résultats pour promouvoir efficacement leurs besoins. | E52: https://www.aphl.org/programs/informatics/Documents/LEI_2013Jun_Informatics-Self-Assessment-Tool-for-PHLs.pdf | F52: L'outil d'auto-évaluation pour l'informatique a été publié à la fois sous forme de document pdf et d'outil en ligne. La version en ligne permet aux utilisateurs enregistrés de sauvegarder leur travail et d'effectuer des comparaisons avec leurs évaluations précédentes. Elle offre également une puissante capacité de visualisation permettant d'afficher les données sous forme de graphiques. Pour en savoir plus sur l'accès à la version en ligne, veuillez contacter rachel.sheperd@aphl.org
B53: 52 | C53: =Backbone!A268 -> Outil de cartographie des laboratoires de la FAO (LMT) | D53: LMT est un système destiné à évaluer la fonctionnalité des laboratoires vétérinaires selon un processus à deux niveaux: i) une évaluation de la fonctionnalité du laboratoire au moyen d'un questionnaire détaillé et standardisé qui peut être mené par un évaluateur externe ou par auto-évaluation; et ii) la saisie des données recueillies dans une application numérique qui génère des graphiques et des tableaux permettant d'obtenir une «vue instantanée» du niveau de fonctionnalité d'un laboratoire donné et son évolution dans le temps, par exemple sur une base annuelle. L'outil sert également à établir une base de référence de l'état du laboratoire avant une intervention, de façon à pouvoir mesurer précisément les progrès et l'impact obtenus après celle-ci. | E53: http://www.fao.org/ag/againfo/programmes/en/empres/news_130514.html | F53: Anglais et français disponibles en ligne, autres langues sur demande: Chinois, thaïlandais, azerbaïdjanais, russe, indonésien (bahasa) Point de contact: EMPRES-Lab-Unit@fao.org LMT est une famille d'outils, dans laquelle le module central LMT Core peut être complété par d'autres comme le module LMT-security et le module LMT-AMR disponibles à ce jour. | H53: https://www.ncbi.nlm.nih.gov/pmc/articles/PMC6136606/
B54: 53 | C54: =Backbone!A174 -> Outil de cartographie épidémiologique (EMT) | D54: Outil basé sur Excel destiné à évaluer les capacités épidémiologiques nationales des services vétérinaires. Il est conçu pour fournir des évaluations complètes de la capacité vétérinaire en matière d'épidémiologie aux niveaux national, infra-national et local, avec l'engagement de diverses parties prenantes. L'EMT a pour objectif de fournir une évaluation des capacités en matière épidémiologique dans différents secteurs et disciplines comme la santé animale, la santé humaine, la santé environnementale, l'épidémiologie, les laboratoires, en mettant l'accent sur trois domaines techniques principaux (institutionnel, ressources humaines en épidémiologie et applications sur les capacités épidémiologiques). | F54: Pour de plus amples informations sur EMT, veuillez contacter le FAO RAP Kachen.Wongsathapornchai@fao.org
B55: 54 | C55: =Backbone!A47 -> Outil de la FAO d’évaluation de la surveillance nationale de l'antibiorésistance et des compétences des laboratoires (ATLASS) | D55: L'outil de la FAO d’évaluation de la surveillance nationale de l'antibiorésistance et des compétences des laboratoires (FAO-ATLASS) renforce la capacité des pays en matière de surveillance de la RAM en contribuant à l'amélioration de l'harmonisation et de la coordination de celle-ci aux niveaux national, régional et mondial.Il s'agit d'un outil permettant de générer des données de base et des recommandations adaptées pour améliorer les capacités de détection du système national de surveillance de la RAM dans les secteurs de l'alimentation et de l'agriculture par le biais d'une évaluation externe et d'une auto-évaluation (menée par des évaluateurs ATLASS externes ou nationaux formés). FAO-ATLASS comprend deux modules principaux: FAO-ATLASS Surveillance et FAO-ATLASS Laboratory. Il couvre les domaines du réseau de production de données sur la RAM (laboratoires), de la collecte et de l'analyse des données en la matière, de la gouvernance, de la communication et de la durabilité globale | E55: http://www.fao.org/antimicrobial-resistance/resources/tools/fao-atlass/en/ | F55: Pour demander une mission ATLASS, veuillez contacter votre bureau national/régional de la FAO, et/ou envoyer directement un e-mail à EMPRES-Lab-Unit@fao.org | H55: http://www.fao.org/antimicrobial-resistance/resources/tools/fao-atlass/en/
B56: 55 | C56: =Backbone!A517 -> Outil d'évaluation de la surveillance (SET) de la FAO | D56: L'Outil d'évaluation de la surveillance (SET) évalue les systèmes nationaux de surveillance des zoonoses en employant une méthodologie exhaustive et reproductible. Des entretiens avec les principaux décideurs, du niveau central jusqu'aux éleveurs sur le terrain, sont utilisés pour générer des graphiques montrant les points forts et les points faibles des systèmes. À partir de ceux-ci, des plans d'action visant à l'amélioration sont élaborés conjointement avec les services vétérinaires. | F56: L'outil est accessible sur demande. Les utilisateurs intéressés par le SET doivent contacter les développeurs au préalable pour s'assurer que ceux-ci ont bien utilisé les tout derniers documents et la méthodologie appropriée. Les coordonnateurs peuvent être contactés en consultant la page web du projet ici: http://www.fao.org/ag/againfo/programmes/en/empres/tools_SET.html | G56: http://www.fao.org/ag/againfo/programmes/en/empres/tools_SET.html https://fao.adobeconnect.com/_a1026619000/faoset/ https://fao.adobeconnect.com/_a1026619000/p6w4mnvs0d2f/?proto=true | H56: http://www.fao.org/3/CA1770EN/ca1770en.pdf http://www.fao.org/3/CA1832FR/ca1832fr.pdf http://www.fao.org/3/CA1778EN/ca1778en.pdf http://www.fao.org/3/CA2917FR/ca2917fr.pdf http://www.fao.org/3/ca3754en/ca3754en.pdf http://www.fao.org/3/ca5753fr/ca5753fr.pdf http://www.fao.org/3/ca7549en/ca7549en.pdf
B57: 56 | C57: =Backbone!A400 -> Outil d'évaluation de l'état de préparation et des besoins pour une surveillance «Une seule santé» (OHSRRT) | D57: L'OHSRRT est un outil d'évaluation utilisé pour déterminer l'état de préparation du pays et dresser la liste des besoins nécessaires au développement d'un système de surveillance «Une seule santé» basé sur des facteurs de réussite critiques. L'outil comprend un guide et un questionnaire d'engagement pour les parties prenantes, une feuille de saisie et de caractérisation des données, et l'évaluation de l'état de préparation et des besoins (OHSRRT). L'outil est structuré de manière à ce que les résultats qu'il permet de recueillir servent de base à la rédaction d'un rapport d'analyse des besoins et à l'élaboration d'exigences fonctionnelles pour garantir le bon fonctionnement du système de surveillance «Une seule santé». | F57: Pour plus d'informations sur cet outil, veuillez contacter le Service d'intervention et de redressement d'urgence (ERRB) des CDC, le Bureau «Une seule santé» des CDC ou le Laboratoire de physique appliquée Johns Hopkins (JHU/APL) Contact JHU/APL: Karen Meidenbauer, Docteure en médecine vétérinaire et Master en santé publique (DVM-MPH) Karen.meidenbauer@jhuapl.edu
B58: 57 | C58: =Backbone!A234 -> Outil d'évaluation des coûts du Règlement sanitaire international (RSI) de l'Université de Georgetown | D58: L'outil d'évaluation des coûts du RSI aide les utilisateurs à élaborer des estimations de coûts pour la mise en place de capacités durables dans le cadre du Règlement sanitaire international (RSI). L'interface intuitive permet d'estimer les coûts des améliorations à apporter pour atteindre les objectifs de capacité sur la base de l'expérience acquise sur le terrain et offre une orientation pour atteindre les capacités techniques spécifiques précisées dans l'Évaluation externe conjointe. | E58: https://ghscosting.org/ | H58: https://pubmed.ncbi.nlm.nih.gov/30167334/ https://www.liebertpub.com/doi/pdf/10.1089/hs.2019.0063 https://ghscosting.org/export/IHR%20Costing%20Tool%20-%20Definitions%20and%20References.pdf
B59: 58 | C59: =Backbone!A430 -> Outil d'évaluation des coûts d'un foyer épidémique | D59: Un outil de collecte de données au format Excel qui peut être utilisé pour estimer les coûts des enquêtes régulières et des efforts de réponse aux foyers épidémiques dans un pays. L'OCT peut aider à normaliser la collecte des données sur les ressources utilisées dans l'investigation et la réponse aux foyers épidémiques, ainsi qu'à identifier les principaux facteurs de coût et à orienter les budgets annuels. | F59: Pour utiliser l'outil d'évaluation des coûts des foyers épidémiques (OCT), pour avoir accès aux documents de référence ou pour toute autre consultation, veuillez contacter la Dr. Cynthia H. Cassell à chcassell@cdc.gov ou le Dr. Mahlet A. Woldetsadik à mwoldetsadik@cdc.gov
B60: 59 | C60: =Backbone!A598 -> Outil d'évaluation des laboratoires de l'OMS | D60: L'outil fournit des orientations et des feuilles de calcul pour la collecte de données afin d'évaluer: 1. l'organisation stratégique et le soutien du Gouvernement au niveau national (structure, organisation et réglementation du ou des systèmes de laboratoire nationaux), 2. les capacités techniques spécifiques au niveau des laboratoires (laboratoires sélectionnés qui sont représentatifs du pays). Il comprend deux parties, le système (LAT/System) et les installations (LAT/Facility). Chaque partie comprend un fichier Excel et un fichier pdf. Le recours aux fichiers Excel facilite la collecte des données, en permettant le calcul, la notation et l'agrégation des données de manière automatique. Les deux questionnaires peuvent être utilisés de façon indépendante ou en combinaison. | E60: https://www.who.int/ihr/publications/laboratory_tool/en/ | F60: Disponible en anglais, en français, en espagnol et en russe.
B61: 60 | C61: =Backbone!A450 -> Outil d'évaluation des progrès vers l'éradication de la rage (TAPER) | D61: Cet outil facilite l'évaluation des données de surveillance de la rage collectées de manière régulière, en vue de fournir des orientations de gestion actualisées et adaptées aux conditions locales, de manière à surmonter les obstacles et à poursuivre les progrès vers l'éradication de la maladie. | E61: https://boydorr.shinyapps.io/paho_rabies/ https://github.com/katiehampson1978/paho_rabies | F61: L'algorithme est simple et peut être mis en œuvre à l'aide d'un code déposé sur Github. De plus amples détails sont fournis dans un document en cours de révision. Pour obtenir de l'aide sur la façon dont il est possible de s'adapter à d'autres contextes, veuillez contacter Isty Rysava (istyrysava@gmail.com) ou Katie Hampson (Katie.Hampson@glasgow.ac.uk | H61: https://doi.org/10.1186/s12879-020-05457-x
B62: 61 | C62: =Backbone!A351 -> Outil d'évaluation des réseaux de surveillance (OASIS) | D62: Il s'agit d'un outil semi-quantitatif standardisé pour l'évaluation des systèmes de surveillance des zoonoses et des maladies animales. Il constitue un ensemble de 78 critères d'évaluation répartis en dix sections, représentant les différentes parties fonctionnelles d'un système de surveillance. Chaque critère se voit attribuer une note conformément aux instructions d'un guide de notation. Les résultats obtenus sont présentés en trois graphiques. OASIS est destiné à être utilisé de manière participative avec les personnes en charge du système qui est à l'étude | E62: https://www.plateforme-esa.fr/article/l-outil-d-evaluation-oasis | F62: Disponible en anglais et en français | H62: https://www.cambridge.org/core/journals/epidemiology-and-infection/article/oasis-an-assessment-tool-of-epidemiological-surveillance-systems-in-animal-health-and-food-safety/845374EB93FAE51055A5354A02C4BE33/core-reader
B63: 62 | C63: =Backbone!A38 -> Outil d'évaluation informatique pour les laboratoires APHL | D63: Un outil permettant de recueillir des informations de référence auprès des laboratoires pour enregistrer le flux de données, le flux de travail, l'infrastructure, les ressources humaines et la formation, les équipements disponibles, la gestion des données, y compris l'enregistrement des données et l'établissement de rapports. Cet outil a été modifié en fonction du type de laboratoire évalué. | E63: https://www.aphl.org/aboutAPHL/publications/Documents/GH-2018Nov-LIS-Guidebook-web.pdf | F63: On peut le trouver à l'Annexe F du document.
B64: 63 | C64: =Backbone!A97 -> Outil ECDC pour l'établissement des priorités en matière de menaces de maladies infectieuses | D64: Cet outil de Microsoft Excel permet de prioriser les menaces liées aux maladies infectieuses d'une manière transparente, comparable et méthodologiquement reproductible. Il permet d'établir un classement relatif des différentes menaces de maladies infectieuses. Son objectif est de compléter d'autres méthodes qui aident également à la prise de décision dans la planification de la préparation. | E64: https://www.ecdc.europa.eu/en/publications-data/ecdc-tool-prioritisation-infectious-disease-threats | F64: Contacts: publications@ecdc.europa.eu; info@ecdc.europa.eu | G64: https://www.ecdc.europa.eu/sites/default/files/documents/Tool-for-disease-priority-ranking_handbook-update-dec-18.pdf | H64: https://www.ecdc.europa.eu/en/publications-data/literature-review-best-practices-ranking-emerging-infectious-disease-threats https://www.eurosurveillance.org/content/10.2807/1560-7917.ES.2016.21.17.30212
B65: 64 | C65: =Backbone!A557 -> Outil par étapes pour l'éradication de la brucellose (STEB) | D65: Un outil d'auto-évaluation basé sur un tableur, développé pour aider les pays à évaluer leur capacité actuelle à prévenir, contrôler et éliminer la brucellose. En identifiant des lacunes dans les capacités, le STEB aide les pays à concevoir des activités qui utilisent l'approche «Une seule santé» dans la prévention, le contrôle et l'élimination de la brucellose. | F65: Pour obtenir des informations supplémentaires, notamment sur l'accès, veuillez contacter onehealth@cdc.gov et bspb@cdc.gov
B66: 65 | C66: =Backbone!A483 -> Outils de surveillance en ligne (SURVTOOLS) | D66: Ensemble d'outils de conception et d'évaluation de la surveillance destinés aux techniciens compétents chargés de concevoir, de mettre en œuvre ou d'évaluer la surveillance de la santé animale. Ces outils orientent les utilisateurs à travers les étapes essentielles du cycle conception/évaluation/re-conception en vue de la planification stratégique de la surveillance de la santé animale et favorisent la compréhension des concepts, méthodes et exigences critiques. | E66: https://survtools.org https://survtools.org/wiki/surveillance-design-framework/doku.php https://survtools.org/wiki/surveillance-evaluation/doku.php | F66: Les outils SURVTOOLS sont fournis à travers une plateforme en ligne accessible au public (https://survtools.org/; enregistrement requis lors de la première utilisation). | G66: https://www.youtube.com/watch?v=6bXBn-Kglp8&feature=youtu.be&list=PLPamJyFyCit8UGPOaEwr_bR0LCKkcKzJ6 https://www.youtube.com/watch?v=8aLKTw7z63U&feature=youtu.be | H66: https://doi.org/10.1016/j.prevetmed.2019.104777 https://www.researchgate.net/publication/299393001_RISKSUR_tools_taking_animal_health_surveillance_into_the_future_through_interdisciplinary_integration_of_scientific_evidence doi.org/10.1186/s12917-016-0822-5
B67: 66 | C67: =Backbone!A303 -> Plan d'action national pour la sécurité sanitaire (PANSS) | D67: Un processus de planification pluriannuel, mené par le pays lui-même, capable d'accélérer la mise en œuvre des capacités essentielles du RSI et fondé sur l'approche «Une seule santé» et «à l'échelle de l'ensemble de l'administration» pour tous les risques. Il recense les priorités nationales en matière de sécurité sanitaire, rassemble les secteurs, identifie les partenaires et alloue des ressources pour le développement des capacités en matière de sécurité sanitaire. Le PANSS constitue également un processus global permettant de recueillir toutes les initiatives de préparation en cours dans un pays, ainsi qu'un mécanisme de gouvernance nationale pour la gestion des urgences et des risques de catastrophe. | E67: https://apps.who.int/iris/bitstream/handle/10665/312220/WHO-WHE-CPI-19.5-eng.pdf?sequence=1 | F67: Le site web contient de nombreuses informations, mais il semble nécessaire pour les pays de travailler en étroite collaboration avec l'OMS dans ce processus.
B68: 67 | C68: =Backbone!A415 -> Priorisation des maladies zoonotiques dans le cadre de l'approche «Une seule santé» (OHZDP) | D68: Outil d'aide à la décision au format Excel fournissant des orientations étape par étape sur la conduite d'un processus de priorisation multisectoriel «Une seule santé» dans le cadre d'un atelier. L'outil utilise un processus qualitatif, semi-quantitatif et quantitatif dans lequel les participants élaborent un certain nombre de critères permettant de prioriser les zoonoses, puis développent des questions représentatives de ces critères afin de les classer, pour enfin calculer des valeurs de classement sur la base de ces données. | F68: Contact onehealth@cdc.gov
B69: 68 | C69: =Backbone!A184 -> Processus d'élimination globale de la rage chez le chien (GDREP) | D69: Un outil sous Excel offrant une interface conviviale comprenant les différents aspects d'un programme d'élimination de la rage canine, répartis en deux catégories principales portant respectivement sur les aspects épidémiologiques/logistiques et financiers. | E69: https://rabiesalliance.org/app/gdrep https://rabiesalliance.org/capacity-building/gdrep | F69: L'outil est accessible sous la forme d'un fichier Excel supplémentaire dans la publication (https://www.ncbi.nlm.nih.gov/pmc/articles/PMC5300989/) ou sur le site web https://rabiesalliance.org/capacity-building/gdrep | G69: https://rabiesalliance.org/capacity-building/gdrep | H69: https://www.ncbi.nlm.nih.gov/pmc/articles/PMC5300989/ https://journals.plos.org/plosntds/article?id=10.1371/journal.pntd.0006756 https://wwwnc.cdc.gov/eid/article/23/12/17-1148_article
B70: 69 | C70: =Backbone!A419 -> Profil d'évaluation des performances des services vétérinaires (PVS) de l'Organisation mondiale de la santé animale (OMSA) | D70: Il s'agit d'une évaluation externe, menée dans le pays par un groupe d'experts formés par l'OMSA, qui collectent et analysent les informations de base et les preuves recueillies au cours de la mission, dont une partie importante est réalisée sur le terrain. La mission utilise l'outil PVS de l'OMSA, à travers lequel 45 compétences critiques sont évaluées de façon systématique. Le résultat final est un rapport d'évaluation qui donne une vue d'ensemble de l'état des services vétérinaires, évalue leurs performances et identifie leurs points forts et leurs points faibles sur la base des normes internationales de l'OMSA. | E70: https://www.oie.int/solidarity/pvs-pathway/ | F70: La demande de mission PVS doit être envoyée par le délégué national de l'OMSA au directeur général de l'OMSA. | G70: https://rr-asia.oie.int/wp-content/uploads/2019/12/6a-managing-an-oie-pvs-evaluation-part-1_bangkok-dec-2019.pdf
B71: 70 | C71: =Backbone!A346 -> Programme national de normes de performance en santé publique (NPHPSP): Instrument d'évaluation des performances des systèmes de santé publique locaux (version 2) | D71: L'objectif d'une évaluation des performances est de renforcer et d'améliorer le système de santé publique. L'instrument NPHPSP est basé sur le cadre des dix services essentiels de la santé publique. Pour chaque service essentiel, les normes modèles décrivent ou correspondent aux principales activités menées au niveau local. Dans le cadre du processus d'évaluation, les participants à l'ensemble du système de santé publique local ont l'occasion de discuter et de déterminer leurs performances par rapport à chacune des 30 normes modèles. | E71: https://www.cdc.gov/publichealthgateway/nphps/index.html?CDC_AA_refVal=https%3A%2F%2Fwww.cdc.gov%2Fnphpsp%2Findex.html | F71: L'instrument a été développé pour les systèmes de santé publique des États-Unis. Il peut être pris comme exemple pour l'adaptation aux conditions locales.
B72: 71 | C72: =Backbone!A445 -> Rabies ECON | D72: Un outil sous Excel permettant d'estimer la charge épidémiologique imputée à la rage canine et l'impact épidémiologique et économique potentiel d'un programme de vaccination contre cette maladie. | E72: https://www.ncbi.nlm.nih.gov/pubmed/29791440 | F72: L'outil Excel peut être téléchargé dans un fichier supplémentaire.
B73: 72 | C73: =Backbone!A418 -> Recueil d'informations sur les postes-frontière uniques | D73: Cette ressource, développée par des pays d'Afrique de l'Est et directement applicable à ces derniers, fournit une description complète d'un certain nombre de considérations que les organisations nationales de deux pays voisins devraient prendre en compte pour l'établissement d'un système commun de gestion des mouvements transfrontaliers de personnes et de marchandises aux points de passage frontalier terrestres prioritaires. | E73: https://www.tralac.org/documents/resources/african-union/1682-osbp-sourcebook-2nd-edition-may-2016/file.html
B74: 73 | C74: =Backbone!A552 -> Règlement sanitaire international (2005): outil d’autoévaluation pour l'établissement de rapports annuels par les États Parties (SPAR) | D74: Un outil d'établissement de rapports qui aide les États parties au Règlement sanitaire international (RSI) à s'acquitter de leur obligation de rendre compte chaque année à l'Assemblée mondiale de la santé (WHA) du respect des exigences en matière de capacités prévues par ledit règlement et à encourager la transparence et la responsabilité mutuelle entre les États parties envers la santé publique mondiale, conformément au Cadre de suivi et d'évaluation du RSI de l'OMS. | E74: support papier https://apps.who.int/iris/bitstream/handle/10665/272432/WHO-WHE-CPI-2018.16-eng.pdf?sequence=1 ; format électronique https://extranet.who.int/e-spar | F74: Les coordonnateurs nationaux du RSI ont accès à une plateforme en ligne pour l'établissement de rapports SPAR. | G74: https://extranet.who.int/sph/news/ihr-self-assessment-annual-reporting-tool-spar-2018
B75: 74 | C75: =Backbone!A332 -> Réseau pour l'évaluation de l'approche «Une seule santé» (NEOH) | D75: En tant que partie intégrante d'un cadre d'évaluation, il mesure la conformité d'un système de surveillance au principe «Une seule santé» en déterminant les aspects critiques de l'intégration, à savoir la réflexion, la planification, le travail, l'apprentissage, le partage et l'organisation systémique de l'approche «Une seule santé» dans des feuilles de travail au format Excel standardisées comportant chacune un maximum de 17 questions à répondre. | E75: https://www.wageningenacademic.com/doi/abs/10.3920/978-90-8686-875-9 https://www.wageningenacademic.com/doi/suppl/10.3920/978-90-8686-875-9/suppl_file/%20NEOH_ESM_4_The%20neoh%20evaluation%20tools.xlsx | G75: https://www.wageningenacademic.com/doi/suppl/10.3920/978-90-8686-875-9/suppl_file/%20NEOH_ESM_4_The%20neoh%20evaluation%20tools.xlsx https://www.wageningenacademic.com/doi/suppl/10.3920/978-90-8686-875-9 | H75: https://www.frontiersin.org/articles/10.3389/fpubh.2017.00020/full https://www.frontiersin.org/articles/10.3389/fvets.2018.00033/full https://www.frontiersin.org/articles/10.3389/fpubh.2018.00045/full https://www.frontiersin.org/articles/10.3389/fpubh.2018.00074/full https://www.frontiersin.org/articles/10.3389/fvets.2018.00147/full https://www.frontiersin.org/articles/10.3389/fvets.2018.00163/full https://www.frontiersin.org/articles/10.3389/fvets.2018.00023/full https://www.frontiersin.org/articles/10.3389/fvets.2017.00238/full https://www.frontiersin.org/articles/10.3389/fpubh.2017.00236/full
B76: 75 | C76: =Backbone!A575 -> Résistance aux antimicrobiens: un manuel pour la mise en œuvre de plans d'action nationaux | D76: Le manuel pour la mise en œuvre de plans d'action nationaux destinés à lutter contre la résistance aux antimicrobiens. Un certain nombre d'outils d'aide ont également été mis au point par l'OMS, en collaboration avec la FAO et l'OMSA, pour accompagner ce manuel. Parmi eux figurent notamment des exemples de termes de référence pour les mécanismes de coordination proposés, un modèle générique de plan d'action national, un exemple de plan de suivi et d'évaluation, ou encore une liste de contrôle. | E76: https://apps.who.int/iris/bitstream/handle/10665/204470/9789241549530_eng.pdf | F76: Ce manuel et ses documents complémentaires pourraient être adaptés pour être utilisés dans le domaine des zoonoses.
B77: 76 | C77: =Backbone!A686 -> Stratégie de financement durable pour la boîte à outils «Une seule santé» | D77: L'objectif de cette boîte à outils est d'aider les plateformes «Une seule santé» et autres mécanismes de coordination à demander et recevoir des fonds pour soutenir leurs opérations et leurs activités à long terme. | E77: https://www.onehealthapp.org/ | F77: Veuillez vous reporter à la section «Ressources «Une seule santé»» d'OH-app.
B78: 77 | C78: =Backbone!A61 -> Stratégies de communication et de coordination multisectorielles aux frontières | D78: L'outil se compose de modules de formation à utiliser dans le cadre d'un atelier. Cet outil a été conçu pour orienter les parties prenantes dans le processus de détermination des mécanismes de partage d'informations spécifiques d'un secteur, ainsi que dans la création de mécanismes de partage d'informations multisectoriels ou transfrontaliers. Ils peuvent être granulaires et opérationnels, ou de haut niveau, selon les objectifs de l'utilisateur. | F78: Pour de plus amples informations sur cette ressource, veuillez contacter l'équipe mondiale chargée de la santé aux frontières au sein de l'US-CDC: gbht@cdc.gov | H78: https://wwwnc.cdc.gov/eid/article/23/13/17-0520_article https://www.liebertpub.com/doi/10.1089/hs.2019.0080
B79: 78 | C79: =Backbone!A489 -> Suite pour une biosurveillance électronique automatisée mondiale (SAGES) | D79: Une suite d'outils logiciels d'exploitation libre conçus pour améliorer la surveillance électronique des maladies dans des situations où les ressources sont limitées. SAGES utilise des outils de surveillance électronique des maladies combinés à d'autres outils interopérables en libre accès, ainsi que les infrastructures technologiques locales disponibles, pour permettre et/ou améliorer la capacité de surveillance électronique des maladies dans le monde entier. Parmi les fonctionnalités de SAGES figurent la collecte de données mobiles, l'analyse temporelle et spatiale par cartographie géographique, la détection d'événements anormaux et la requête dynamique. | E79: https://github.com/sages-health/openessence | F79: Pour en savoir plus, veuillez contacter le Laboratoire de physique appliquée Johns Hopkins (JHU/APL) Contact JHU/APL: Shraddha Patel Shraddha.patel@jhuapl.edu | G79: https://www.jhuapl.edu/sages/ | H79: https://doi.org/10.1186/1472-6947-12-99 https://doi.org/10.1371/journal.pone.0019750
B80: 79 | C80: =Backbone!A567 -> SurvCost: Outil permettant d'estimer le coût de la surveillance intégrée de la maladie et la riposte | D80: L'outil Survcost est conçu pour estimer les coûts d'un système de surveillance intégrée de la maladie et la riposte (IDSR). L'outil a été développé au moyen de Microsoft Excel et il est destiné aux pays souhaitant intégrer et renforcer leurs systèmes de surveillance des maladies infectieuses. | E80: https://www.cdc.gov/globalhealth/healthprotection/idsr/pdf/survcost2.xls | G80: https://www.cdc.gov/globalhealth/healthprotection/idsr/pdf/SurvCost-Manual-Jan-2008.pdf
B81: 80 | C81: =Backbone!A195 -> Surveillance intégrée de la maladie et la riposte (IDSR) | D81: Stratégie globale de l'OMS/AFRO visant à renforcer les capacités pour la détection, la confirmation et la réponse aux cas suspects et à l'apparition de foyers épidémiques, ainsi que pour l'utilisation des informations afin de prédire et de planifier les événements de santé publique à tous les niveaux du système de santé. | E81: https://www.afro.who.int/publications/technical-guidelines-integrated-disease-surveillance-and-response-african-region-third | G81: https://www.tephinet.org/integrated-disease-surveillance-and-response-idsr-elearning-course https://www.cdc.gov/globalhealth/healthprotection/idsr/pdf/idsr-matrix_28x18_english.pdf https://www.who.int/csr/labepidemiology/projects/diseasesurv/en/ https://www.afro.who.int/publications/guide-introduction-idsr-curricula-health-training-institutions
B82: 81 | C82: =Backbone!A31 -> Surveillance intégrée de la résistance aux antimicrobiens (AGISAR) | D82: L'objectif de cette référence est d'aider les États Membres de l'OMS et les autres parties prenantes à mettre en place et à déployer des programmes de surveillance intégrée de résistance aux antimicrobiens chez les bactéries d'origine alimentaire (à savoir, celles généralement transmises par les aliments). La référence présente des exemples détaillés de pays. | E82: https://apps.who.int/iris/bitstream/handle/10665/255747/9789241512411-eng.pdf?sequence=1 | F82: C'est une ressource qui peut être utilisée comme exemple pour être adaptée à la surveillance coordonnée des zoonoses.
B83: 82 | C83: =Backbone!A522 -> Système de gestion des données de laboratoire «SILAB for Africa» (SILABFA) | D83: SILABFA est un Système de gestion des données de laboratoire (LIMS) développé par un laboratoire public italien (IZSAM) qui est mis en place dans des pays africains. Le système est capable de retracer toutes les étapes du diagnostic, depuis la réception des échantillons jusqu'aux rapports finaux. Les modules statistiques, inventaire, traçage des fonds et biobanque sont entièrement intégrés. SILABFA est conçu pour garantir l'interopérabilité entre des systèmes externes. | E83: https://demo.izs.it/silabfa_eth/ | F83: Pour accéder à une version de démonstration gratuite, veuillez contacter silab.support@izs.it L'environnement de démonstration sera lié aux données de test utilisées pour le développement, et non pas aux cas réels. | H83: DOI: 10.1089/tmj.2018.0208 http://www.sidilv.org/index.php/component/docman/doc_download/123-volume-atti-sidilv-2016?Itemid= https://www.ncbi.nlm.nih.gov/pubmed/23038071
B84: 83 | C84: =Backbone!A531 -> Système de gestion des données de laboratoire Mini (MiniLIMS) | D84: MiniLIMS est un système d'information conçu pour la gestion des données d'un laboratoire d'analyse à l'organisation simple. Il collecte des données sur les points d'échantillonnage, le type de matériel et les espèces sélectionnés, les tests effectués et les résultats obtenus, et le stockage des échantillons. Un module relatif à la RAM est intégré. | E84: https://demo.izs.it/silabfa_mini/ | F84: Pour accéder à une version de démonstration gratuite, veuillez contacter silab.support@izs.it L'environnement de démonstration sera lié aux données de test utilisées pour le développement, et non pas aux cas réels.
B85: 84 | C85: =Backbone!A540 -> Système de gestion et d'analyse de la surveillance et la réponse aux foyers épidémiques (SORMAS) | D85: Un système de santé en ligne mobile et d'exploitation libre qui met en œuvre des procédures de contrôle de maladies et de gestion de foyers épidémiques, et assure la surveillance et la détection précoce de ces derniers grâce à une surveillance numérique en temps réel impliquant des établissements de soins de santé et des laboratoires périphériques. | E85: https://github.com/hzi-braunschweig | F85: Le système est adaptable à une surveillance «Une seule santé» coordonnée. Pour en savoir plus, contactez sormas@helmholtz-hzi.de | H85: https://www.ncbi.nlm.nih.gov/pubmed/30147081; https://www.thieme-connect.com/products/ejournals/abstract/10.1055/s-0037-1605995 https://www.ncbi.nlm.nih.gov/pubmed/30373727
B86: 85 | C86: =Backbone!A138 -> Système électronique intégré de surveillance des maladies (EIDSS) | D86: EIDSS est un système électronique en ligne et personnalisable d'établissement de rapports sur les maladies qui peut aider à la surveillance passive et active de la santé humaine et vétérinaire, aux diagnostics de laboratoire, à la surveillance des vecteurs et à la gestion des foyers épidémiques, capable de fournir ainsi un flux d'informations en temps quasi réel pour la prise de décisions en matière de maladies infectieuses. | E86: Github.com/EIDSS
B87: 86 | C87: =Backbone!A592 -> WHO CHOICE | D87: WHO CHOICE est un programme qui aide les pays à établir les priorités de leur système de santé en fonction des coûts et des impacts. Il fait appel à un certain nombre de méthodes et d'outils. La composante coût-efficacité généralisée du programme s'intéresse à l'identification des interventions en matière de soins de santé qui offrent le meilleur rapport qualité-prix, c'est-à-dire les meilleurs progrès dans le domaine de la santé pour chaque dollar dépensé en santé. L'outil «Une seule santé» est utilisé pour aider les pays à analyser les coûts et la faisabilité de leurs plans stratégiques, ainsi qu'à évaluer leur impact potentiel. | E87: https://www.who.int/news-room/feature-stories/detail/new-cost-effectiveness-updates-from-who-choice

Sheet PP1_tools
B2: Ressources des coordonnateurs
AG7: Accessibilité | AI7: Langue | AK7: Facilité d'utilisation | AM7: Flexibilité | AO7: Besoins de données | AQ7: Analyse des données | AS7: Acceptabilité | AU7: «Une seule santé» | AW7: Impact
AY14: SCORE BRUT | BB14: SCORE AJUSTÉ (Selon les préférences de l'utilisateur)
B18: RESSOURCES DE NIVEAU 1 | D18: DÉSIGNATION | I18: NOM DE LA RESSOURCE | P18: BRÈVE DESCRIPTION | Y18: TYPE DE RESSOURCE | AC18: CARACTÈRE GÉNÉRAL DE LA RESSOURCE
AG22: ='Attribute Survey'!S22 -> 0 | AI22: ='Attribute Survey'!S26 -> 0 | AK22: ='Attribute Survey'!S30 -> 0 | AM22: ='Attribute Survey'!S34 -> 0 | AO22: ='Attribute Survey'!S38 -> 0 | AQ22: ='Attribute Survey'!S42 -> 0 | AS22: ='Attribute Survey'!S46 -> 0 | AU22: ='Attribute Survey'!S50 -> 0 | AW22: ='Attribute Survey'!S54 -> 0
D23: Ressources les mieux adaptées | I23: =Backbone!A437 -> Analyse de la politique sur le terrain (PFA) | P23: Une cartographie spécialisée des parties prenantes qui permet de visualiser le système des organisations qui interagissent sur une question politique donnée. | Y23: =INDEX(Backbone!$R2:$R893,MATCH(I23,Backbone!$A2:$A893,0)) -> Document d'orientation | AC23: =INDEX(Backbone!$S2:$S893,MATCH(I23,Backbone!$A2:$A893,0)) -> «Une seule santé»; Généralisée | AG23: =INDEX(Backbone!$H2:$H893,MATCH(I23,Backbone!$A2:$A893,0)) -> 7.8 | AI23: =INDEX(Backbone!$I2:$I893,MATCH(I23,Backbone!$A2:$A893,0)) -> 8 | AK23: =INDEX(Backbone!$J2:$J893,MATCH(I23,Backbone!$A2:$A893,0)) -> 9.8 | AM23: =INDEX(Backbone!$K2:$K893,MATCH(I23,Backbone!$A2:$A893,0)) -> 10 | AO23: =INDEX(Backbone!$L2:$L893,MATCH(I23,Backbone!$A2:$A893,0)) -> 7.1 | AQ23: =INDEX(Backbone!$M2:$M893,MATCH(I23,Backbone!$A2:$A893,0)) -> 4 | AS23: =INDEX(Backbone!$N2:$N893,MATCH(I23,Backbone!$A2:$A893,0)) -> 7 | AU23: =INDEX(Backbone!$O2:$O893,MATCH(I23,Backbone!$A2:$A893,0)) -> 8.8 | AW23: =INDEX(Backbone!$P2:$P893,MATCH(I23,Backbone!$A2:$A893,0)) -> 5 | AY23: =INDEX(Backbone!$Q2:$Q893,MATCH(I23,Backbone!$A2:$A893,0)) -> 0.75 | BB23: =(AG23*AG22+AI23*AI22+AK23*AK22+AM23*AM22+AO23*AO22+AQ23*AQ22+AS23*AS22+AU23*AU22+AW23*AW22)/(SUM(AG22:AW22)*10) ->  | BE23: Aller à Boîte à outils: | BG23: =HYPERLINK("#"&ADDRESS(MATCH(I23,Toolbox!$C$1:$C$30010),1,,,"Toolbox"),VLOOKUP(I23,Toolbox!$C$1:$C$30010,1,FALSE)) -> Analyse de la politique sur le terrain (PFA)
D30: Autres ressources intéressantes | I30: =Backbone!A2 -> Cadre de surveillance basé sur les événements des CDC en Afrique | P30: Des orientations à l'attention des professionnels de la santé publique qui cherchent à mettre en œuvre la surveillance basée sur les événements à tous les échelons administratifs de leur pays. | Y30: =INDEX(Backbone!$R2:$R893,MATCH(I30,Backbone!$A2:$A893,0)) -> Document d'orientation | AC30: =INDEX(Backbone!$S2:$S893,MATCH(I30,Backbone!$A2:$A893,0)) -> «Une seule santé»; Généralisée | AG30: =INDEX(Backbone!$H2:$H893,MATCH(I30,Backbone!$A2:$A893,0)) -> 8 | AI30: =INDEX(Backbone!$I2:$I893,MATCH(I30,Backbone!$A2:$A893,0)) -> 6 | AK30: =INDEX(Backbone!$J2:$J893,MATCH(I30,Backbone!$A2:$A893,0)) -> 8.2 | AM30: =INDEX(Backbone!$K2:$K893,MATCH(I30,Backbone!$A2:$A893,0)) -> 8.3 | AO30: =INDEX(Backbone!$L2:$L893,MATCH(I30,Backbone!$A2:$A893,0)) -> 6.1 | AQ30: =INDEX(Backbone!$M2:$M893,MATCH(I30,Backbone!$A2:$A893,0)) -> 3.5 | AS30: =INDEX(Backbone!$N2:$N893,MATCH(I30,Backbone!$A2:$A893,0)) -> 4 | AU30: =INDEX(Backbone!$O2:$O893,MATCH(I30,Backbone!$A2:$A893,0)) -> 7 | AW30: =INDEX(Backbone!$P2:$P893,MATCH(I30,Backbone!$A2:$A893,0)) -> 6 | AY30: =INDEX(Backbone!$Q2:$Q893,MATCH(I30,Backbone!$A2:$A893,0)) -> 0.6322222222 | BB30: =(AG30*AG22+AI30*AI22+AK30*AK22+AM30*AM22+AO30*AO22+AQ30*AQ22+AS30*AS22+AU30*AU22+AW30*AW22)/(SUM(AG22:AW22)*10) ->  | BE30: Aller à Boîte à outils: | BG30: =HYPERLINK("#"&ADDRESS(MATCH(I30,Toolbox!$C$1:$C$300),1,,,"Toolbox"),VLOOKUP(I30,Toolbox!$C$1:$C$300,1,FALSE)) -> Cadre de surveillance basé sur les événements des CDC en Afrique
I36: =Backbone!A100 -> Évaluation des collaborations au sein d'un système de surveillance multisectoriel (EcoSur) | P36: Un outil dont l'objectif est d'évaluer l'organisation et le fonctionnement de la collaboration au sein d'un système de surveillance multisectoriel, ainsi que d'analyser les points forts et les points faibles de cette collaboration. | Y36: =INDEX(Backbone!$R2:$R893,MATCH(I36,Backbone!$A2:$A893,0)) -> Outil ou processus dirigé/facilité | AC36: =INDEX(Backbone!$S2:$S893,MATCH(I36,Backbone!$A2:$A893,0)) -> «Une seule santé»; Généralisée | AG36: =INDEX(Backbone!$H2:$H893,MATCH(I36,Backbone!$A2:$A893,0)) -> 8.3 | AI36: =INDEX(Backbone!$I2:$I893,MATCH(I36,Backbone!$A2:$A893,0)) -> 6 | AK36: =INDEX(Backbone!$J2:$J893,MATCH(I36,Backbone!$A2:$A893,0)) -> 8.5 | AM36: =INDEX(Backbone!$K2:$K893,MATCH(I36,Backbone!$A2:$A893,0)) -> 7.8 | AO36: =INDEX(Backbone!$L2:$L893,MATCH(I36,Backbone!$A2:$A893,0)) -> 8.3 | AQ36: =INDEX(Backbone!$M2:$M893,MATCH(I36,Backbone!$A2:$A893,0)) -> 6.7 | AS36: =INDEX(Backbone!$N2:$N893,MATCH(I36,Backbone!$A2:$A893,0)) -> 3.3 | AU36: =INDEX(Backbone!$O2:$O893,MATCH(I36,Backbone!$A2:$A893,0)) -> 9.1 | AW36: =INDEX(Backbone!$P2:$P893,MATCH(I36,Backbone!$A2:$A893,0)) -> 4.7 | AY36: =INDEX(Backbone!$Q2:$Q893,MATCH(I36,Backbone!$A2:$A893,0)) -> 0.6966666667 | BB36: =(AG36*AG22+AI36*AI22+AK36*AK22+AM36*AM22+AO36*AO22+AQ36*AQ22+AS36*AS22+AU36*AU22+AW36*AW22)/(SUM(AG22:AW22)*10) ->  | BE36: Aller à Boîte à outils: | BG36: =HYPERLINK("#"&ADDRESS(MATCH(I36,Toolbox!$C$1:$C$300),1,,,"Toolbox"),VLOOKUP(I36,Toolbox!$C$1:$C$300,1,FALSE)) -> Évaluation des collaborations au sein d'un système de surveillance multisectoriel (EcoSur)
I42: =Backbone!A195 -> Surveillance intégrée de la maladie et la riposte (IDSR) | P42: Une stratégie visant à renforcer les capacités pour la détection, la confirmation et la réponse aux cas suspects et à l'apparition de foyers épidémiques, ainsi que pour l'utilisation des informations afin de prédire et de planifier les événements de santé publique. | Y42: =INDEX(Backbone!$R2:$R893,MATCH(I42,Backbone!$A2:$A893,0)) -> Document d'orientation | AC42: =INDEX(Backbone!$S2:$S893,MATCH(I42,Backbone!$A2:$A893,0)) -> Spécifique du secteur; Généralisée | AG42: =INDEX(Backbone!$H2:$H893,MATCH(I42,Backbone!$A2:$A893,0)) -> 7.4 | AI42: =INDEX(Backbone!$I2:$I893,MATCH(I42,Backbone!$A2:$A893,0)) -> 10 | AK42: =INDEX(Backbone!$J2:$J893,MATCH(I42,Backbone!$A2:$A893,0)) -> 7.4 | AM42: =INDEX(Backbone!$K2:$K893,MATCH(I42,Backbone!$A2:$A893,0)) -> 8.7 | AO42: =INDEX(Backbone!$L2:$L893,MATCH(I42,Backbone!$A2:$A893,0)) -> 6.7 | AQ42: =INDEX(Backbone!$M2:$M893,MATCH(I42,Backbone!$A2:$A893,0)) -> 4.5 | AS42: =INDEX(Backbone!$N2:$N893,MATCH(I42,Backbone!$A2:$A893,0)) -> 8 | AU42: =INDEX(Backbone!$O2:$O893,MATCH(I42,Backbone!$A2:$A893,0)) -> 7.2 | AW42: =INDEX(Backbone!$P2:$P893,MATCH(I42,Backbone!$A2:$A893,0)) -> 8.5 | AY42: =INDEX(Backbone!$Q2:$Q893,MATCH(I42,Backbone!$A2:$A893,0)) -> 0.76 | BB42: =(AG42*AG22+AI42*AI22+AK42*AK22+AM42*AM22+AO42*AO22+AQ42*AQ22+AS42*AS22+AU42*AU22+AW42*AW22)/(SUM(AG22:AW22)*10) ->  | BE42: Aller à Boîte à outils: | BG42: =HYPERLINK("#"&ADDRESS(MATCH(I42,Toolbox!$C$1:$C$300),1,,,"Toolbox"),VLOOKUP(I42,Toolbox!$C$1:$C$300,1,FALSE)) -> Surveillance intégrée de la maladie et la riposte (IDSR)
I48: =Backbone!A367 -> Évaluation des systèmes «Une seule santé» pour les zoonoses prioritaires (OH-SAPZ) | P48: L'outil vise à faciliter une évaluation systématique des structures nationales de coordination de l'initiative «Une seule santé» en matière de prévention, de détection et de réponse aux zoonoses. | Y48: =INDEX(Backbone!$R2:$R893,MATCH(I48,Backbone!$A2:$A893,0)) -> Outil d'autoévaluation | AC48: =INDEX(Backbone!$S2:$S893,MATCH(I48,Backbone!$A2:$A893,0)) -> «Une seule santé»; Généralisée | AG48: =INDEX(Backbone!$H2:$H893,MATCH(I48,Backbone!$A2:$A893,0)) -> 7.9 | AI48: =INDEX(Backbone!$I2:$I893,MATCH(I48,Backbone!$A2:$A893,0)) -> 7.3 | AK48: =INDEX(Backbone!$J2:$J893,MATCH(I48,Backbone!$A2:$A893,0)) -> 7.2 | AM48: =INDEX(Backbone!$K2:$K893,MATCH(I48,Backbone!$A2:$A893,0)) -> 7.8 | AO48: =INDEX(Backbone!$L2:$L893,MATCH(I48,Backbone!$A2:$A893,0)) -> 6.5 | AQ48: =INDEX(Backbone!$M2:$M893,MATCH(I48,Backbone!$A2:$A893,0)) -> 5.2 | AS48: =INDEX(Backbone!$N2:$N893,MATCH(I48,Backbone!$A2:$A893,0)) -> 4 | AU48: =INDEX(Backbone!$O2:$O893,MATCH(I48,Backbone!$A2:$A893,0)) -> 8.3 | AW48: =INDEX(Backbone!$P2:$P893,MATCH(I48,Backbone!$A2:$A893,0)) -> 9.7 | AY48: =INDEX(Backbone!$Q2:$Q893,MATCH(I48,Backbone!$A2:$A893,0)) -> 0.71 | BB48: =(AG48*AG22+AI48*AI22+AK48*AK22+AM48*AM22+AO48*AO22+AQ48*AQ22+AS48*AS22+AU48*AU22+AW48*AW22)/(SUM(AG22:AW22)*10) ->  | BE48: Aller à Boîte à outils: | BG48: =HYPERLINK("#"&ADDRESS(MATCH(I48,Toolbox!C1:C300),1,,,"Toolbox"),VLOOKUP(I48,Toolbox!C1:C300,1,FALSE)) -> Évaluation des systèmes «Une seule santé» pour les zoonoses prioritaires (OH-SAPZ)
AG74: Accessibilité | AI74: Langue | AK74: Facilité d'utilisation | AM74: Flexibilité | AO74: Besoins de données | AQ74: Analyse des données | AS74: Acceptabilité | AU74: «Une seule santé» | AW74: Impact
B80: RESSOURCES DE NIVEAU 3
AY81: SCORE BRUT | BB81: SCORE AJUSTÉ (Selon les préférences de l'utilisateur)
D85: DÉSIGNATION | I85: NOM DE LA RESSOURCE | P85: BRÈVE DESCRIPTION | Y85: TYPE DE RESSOURCE | AC85: CARACTÈRE GÉNÉRAL DE LA RESSOURCE
D90: Autres ressources intéressantes | I90: =Backbone!A303 -> Plan d'action national pour la sécurité sanitaire (PANSS) | P90: Un processus de planification mené par le pays lui-même, capable d'accélérer la mise en œuvre des capacités essentielles du Règlement sanitaire international (RSI) et fondé sur l'approche «Une seule santé» et «à l'échelle de l'ensemble de l'administration» pour tous les risques. | Y90: =INDEX(Backbone!$R2:$R893,MATCH(I90,Backbone!$A2:$A893,0)) -> Document d'orientation | AC90: =INDEX(Backbone!$S2:$S893,MATCH(I90,Backbone!$A2:$A893,0)) -> «Une seule santé»; Généralisée | AG90: =INDEX(Backbone!$H2:$H893,MATCH(I90,Backbone!$A2:$A893,0)) -> 8 | AI90: =INDEX(Backbone!$I2:$I893,MATCH(I90,Backbone!$A2:$A893,0)) -> 9 | AK90: =INDEX(Backbone!$J2:$J893,MATCH(I90,Backbone!$A2:$A893,0)) -> 7.8 | AM90: =INDEX(Backbone!$K2:$K893,MATCH(I90,Backbone!$A2:$A893,0)) -> 10 | AO90: =INDEX(Backbone!$L2:$L893,MATCH(I90,Backbone!$A2:$A893,0)) -> 8 | AQ90: =INDEX(Backbone!$M2:$M893,MATCH(I90,Backbone!$A2:$A893,0)) -> 4.5 | AS90: =INDEX(Backbone!$N2:$N893,MATCH(I90,Backbone!$A2:$A893,0)) -> 10 | AU90: =INDEX(Backbone!$O2:$O893,MATCH(I90,Backbone!$A2:$A893,0)) -> 10 | AW90: =INDEX(Backbone!$P2:$P893,MATCH(I90,Backbone!$A2:$A893,0)) -> 10 | AY90: =INDEX(Backbone!$Q2:$Q893,MATCH(I90,Backbone!$A2:$A893,0)) -> 0.8588888889 | BB90: =(AG90*AG22+AI90*AI22+AK90*AK22+AM90*AM22+AO90*AO22+AQ90*AQ22+AS90*AS22+AU90*AU22+AW90*AW22)/(SUM(AG22:AW22)*10) ->  | BE90: Aller à Boîte à outils: | BG90: =HYPERLINK("#"&ADDRESS(MATCH(I90,Toolbox!$C$1:$C$300),1,,,"Toolbox"),VLOOKUP(I90,Toolbox!$C$1:$C$300,1,FALSE)) -> Plan d'action national pour la sécurité sanitaire (PANSS)
I96: =Backbone!A400 -> Outil d'évaluation de l'état de préparation et des besoins pour une surveillance «Une seule santé» (OHSRRT) | P96: Un outil d'évaluation de la préparation et des besoins utilisé pour déterminer l'état de préparation du pays et dresser la liste des besoins nécessaires au développement d'un système de surveillance «Une seule santé» basé sur des facteurs de réussite critiques. | Y96: =INDEX(Backbone!$R2:$R893,MATCH(I96,Backbone!$A2:$A893,0)) -> Outil d'autoévaluation | AC96: =INDEX(Backbone!$S2:$S893,MATCH(I96,Backbone!$A2:$A893,0)) -> «Une seule santé»; Généralisée | AG96: =INDEX(Backbone!$H2:$H893,MATCH(I96,Backbone!$A2:$A893,0)) -> 8 | AI96: =INDEX(Backbone!$I2:$I893,MATCH(I96,Backbone!$A2:$A893,0)) -> 6 | AK96: =INDEX(Backbone!$J2:$J893,MATCH(I96,Backbone!$A2:$A893,0)) -> 7.4 | AM96: =INDEX(Backbone!$K2:$K893,MATCH(I96,Backbone!$A2:$A893,0)) -> 8.7 | AO96: =INDEX(Backbone!$L2:$L893,MATCH(I96,Backbone!$A2:$A893,0)) -> 6 | AQ96: =INDEX(Backbone!$M2:$M893,MATCH(I96,Backbone!$A2:$A893,0)) -> 2.5 | AS96: =INDEX(Backbone!$N2:$N893,MATCH(I96,Backbone!$A2:$A893,0)) -> 2 | AU96: =INDEX(Backbone!$O2:$O893,MATCH(I96,Backbone!$A2:$A893,0)) -> 9.6 | AW96: =INDEX(Backbone!$P2:$P893,MATCH(I96,Backbone!$A2:$A893,0)) -> 5.5 | AY96: =INDEX(Backbone!$Q2:$Q893,MATCH(I96,Backbone!$A2:$A893,0)) -> 0.6188888889 | BB96: =(AG96*AG22+AI96*AI22+AK96*AK22+AM96*AM22+AO96*AO22+AQ96*AQ22+AS96*AS22+AU96*AU22+AW96*AW22)/(SUM(AG22:AW22)*10) ->  | BE96: Aller à Boîte à outils: | BG96: =HYPERLINK("#"&ADDRESS(MATCH(I96,Toolbox!$C$1:$C$300),1,,,"Toolbox"),VLOOKUP(I96,Toolbox!$C$1:$C$300,1,FALSE)) -> Outil d'évaluation de l'état de préparation et des besoins pour une surveillance «Une seule santé» (OHSRRT)

Sheet PP2_tools
B2: Ressources pour la priorisation
